Payment Date,Transaction Number,Net Amount,Supplier (Beneficiary) Name,Local Supplier Internal Reference,Directorate / Service Where Expenditure Incurred,Service Category Label,Service Category URI,SeRCOP Expenditure Category,SeRCOP Expenditure Code,Purpose of Spend,SeRCOP Detailed Expenditure Code,Capital/Revenue,Procurement Classification
02/10/2017,18897,819.74,COUNCIL TAX REFUND,299993,General Fund Financing,Holding A/C,N/A,Excluded from General Fund,N/A,Collection Fund,N/A,Revenue,00.NON INFLUENCIBLE
02/10/2017,18899,620.75,COUNCIL TAX REFUND,299993,General Fund Financing,Holding A/C,N/A,Excluded from General Fund,N/A,Collection Fund,N/A,Revenue,00.NON INFLUENCIBLE
02/10/2017,18901,686.09,COUNCIL TAX REFUND,299993,General Fund Financing,Holding A/C,N/A,Excluded from General Fund,N/A,Collection Fund,N/A,Revenue,00.NON INFLUENCIBLE
02/10/2017,18921,315.91,COUNCIL TAX REFUND,299993,General Fund Financing,Holding A/C,N/A,Excluded from General Fund,N/A,Collection Fund,N/A,Revenue,00.NON INFLUENCIBLE
02/10/2017,18930,1095.29,NNDR,299990,General Fund Financing,Holding A/C,N/A,Excluded from General Fund,N/A,Collection Fund,N/A,Revenue,00.NON INFLUENCIBLE
02/10/2017,18931,994.54,NNDR,299990,General Fund Financing,Holding A/C,N/A,Excluded from General Fund,N/A,Collection Fund,N/A,Revenue,00.NON INFLUENCIBLE
02/10/2017,18932,1459.35,NNDR,299990,General Fund Financing,Holding A/C,N/A,Excluded from General Fund,N/A,Collection Fund,N/A,Revenue,00.NON INFLUENCIBLE
02/10/2017,18939,871.20,NNDR,299990,General Fund Financing,Holding A/C,N/A,Excluded from General Fund,N/A,Collection Fund,N/A,Revenue,00.NON INFLUENCIBLE
02/10/2017,18940,864.00,NNDR,299990,General Fund Financing,Holding A/C,N/A,Excluded from General Fund,N/A,Collection Fund,N/A,Revenue,00.NON INFLUENCIBLE
02/10/2017,18941,847.80,NNDR,299990,General Fund Financing,Holding A/C,N/A,Excluded from General Fund,N/A,Collection Fund,N/A,Revenue,00.NON INFLUENCIBLE
02/10/2017,18942,687.58,NNDR,299990,General Fund Financing,Holding A/C,N/A,Excluded from General Fund,N/A,Collection Fund,N/A,Revenue,00.NON INFLUENCIBLE
02/10/2017,18946,290.40,NNDR,299990,General Fund Financing,Holding A/C,N/A,Excluded from General Fund,N/A,Collection Fund,N/A,Revenue,00.NON INFLUENCIBLE
02/10/2017,18947,288.00,NNDR,299990,General Fund Financing,Holding A/C,N/A,Excluded from General Fund,N/A,Collection Fund,N/A,Revenue,00.NON INFLUENCIBLE
02/10/2017,18948,282.60,NNDR,299990,General Fund Financing,Holding A/C,N/A,Excluded from General Fund,N/A,Collection Fund,N/A,Revenue,00.NON INFLUENCIBLE
02/10/2017,18949,277.20,NNDR,299990,General Fund Financing,Holding A/C,N/A,Excluded from General Fund,N/A,Collection Fund,N/A,Revenue,00.NON INFLUENCIBLE
02/10/2017,18950,270.00,NNDR,299990,General Fund Financing,Holding A/C,N/A,Excluded from General Fund,N/A,Collection Fund,N/A,Revenue,00.NON INFLUENCIBLE
02/10/2017,18951,259.80,NNDR,299990,General Fund Financing,Holding A/C,N/A,Excluded from General Fund,N/A,Collection Fund,N/A,Revenue,00.NON INFLUENCIBLE
02/10/2017,18954,464.25,COUNCIL TAX REFUND,299993,General Fund Financing,Holding A/C,N/A,Excluded from General Fund,N/A,Collection Fund,N/A,Revenue,00.NON INFLUENCIBLE
02/10/2017,18959,626.69,COUNCIL TAX REFUND,299993,General Fund Financing,Holding A/C,N/A,Excluded from General Fund,N/A,Collection Fund,N/A,Revenue,00.NON INFLUENCIBLE
02/10/2017,1505626,350.61,HOUSING BENEFIT,299992,Finance,Housing Services,108,Transfer Payments,506,Housing Benefits,5048,Revenue,00.NON INFLUENCIBLE
02/10/2017,1505627,311.44,HOUSING BENEFIT,299992,Finance,Housing Services,108,Transfer Payments,506,Housing Benefits,5048,Revenue,00.NON INFLUENCIBLE
02/10/2017,1505630,613.97,HOUSING BENEFIT,299992,Finance,Housing Services,108,Transfer Payments,506,Housing Benefits,5048,Revenue,00.NON INFLUENCIBLE
02/10/2017,1505631,1200.31,HOUSING BENEFIT,299992,Finance,Housing Services,108,Transfer Payments,506,Housing Benefits,5048,Revenue,00.NON INFLUENCIBLE
02/10/2017,1505632,262.29,HOUSING BENEFIT,299992,Finance,Housing Services,108,Transfer Payments,506,Housing Benefits,5048,Revenue,00.NON INFLUENCIBLE
02/10/2017,1505648,301.62,SWIFT - PREPAID CARDS,299980,"Health, Education, Care and Safeguarding",Adult Social Care,101,Third Party Payments,505,Other Establishments,5041,Revenue,22.SUPPORT SERVICES
02/10/2017,1505649,257.59,SWIFT - PREPAID CARDS,299980,"Health, Education, Care and Safeguarding",Adult Social Care,101,Third Party Payments,505,Other Establishments,5041,Revenue,22.SUPPORT SERVICES
02/10/2017,1505656,342.72,SWIFT - PREPAID CARDS,299980,"Health, Education, Care and Safeguarding",Adult Social Care,101,Third Party Payments,505,Other Establishments,5041,Revenue,22.SUPPORT SERVICES
02/10/2017,1505659,954.57,SWIFT - PREPAID CARDS,299980,"Health, Education, Care and Safeguarding",Adult Social Care,101,Third Party Payments,505,Other Establishments,5041,Revenue,22.SUPPORT SERVICES
02/10/2017,1505664,552.66,SWIFT - PREPAID CARDS,299980,"Health, Education, Care and Safeguarding",Adult Social Care,101,Third Party Payments,505,Other Establishments,5041,Revenue,22.SUPPORT SERVICES
02/10/2017,1505667,259.92,SWIFT - PREPAID CARDS,299980,"Health, Education, Care and Safeguarding",Adult Social Care,101,Third Party Payments,505,Other Establishments,5041,Revenue,22.SUPPORT SERVICES
02/10/2017,1505668,321.25,SWIFT - PREPAID CARDS,299980,"Health, Education, Care and Safeguarding",Adult Social Care,101,Third Party Payments,505,Other Establishments,5041,Revenue,22.SUPPORT SERVICES
02/10/2017,1505672,332.01,SWIFT - PREPAID CARDS,299980,"Health, Education, Care and Safeguarding",Adult Social Care,101,Third Party Payments,505,Other Establishments,5041,Revenue,22.SUPPORT SERVICES
02/10/2017,1505675,311.61,SWIFT - PREPAID CARDS,299980,"Health, Education, Care and Safeguarding",Adult Social Care,101,Third Party Payments,505,Other Establishments,5041,Revenue,22.SUPPORT SERVICES
02/10/2017,1505679,309.00,SWIFT - PREPAID CARDS,299980,"Health, Education, Care and Safeguarding",Adult Social Care,101,Third Party Payments,505,Other Establishments,5041,Revenue,22.SUPPORT SERVICES
02/10/2017,1505680,538.64,SWIFT - PREPAID CARDS,299980,"Health, Education, Care and Safeguarding",Adult Social Care,101,Third Party Payments,505,Other Establishments,5041,Revenue,22.SUPPORT SERVICES
02/10/2017,1505682,278.75,SWIFT - PREPAID CARDS,299980,"Health, Education, Care and Safeguarding",Adult Social Care,101,Third Party Payments,505,Other Establishments,5041,Revenue,22.SUPPORT SERVICES
02/10/2017,1505685,429.00,SWIFT - PREPAID CARDS,299980,"Health, Education, Care and Safeguarding",Adult Social Care,101,Third Party Payments,505,Other Establishments,5041,Revenue,22.SUPPORT SERVICES
02/10/2017,1505686,271.16,SWIFT - PREPAID CARDS,299980,"Health, Education, Care and Safeguarding",Adult Social Care,101,Third Party Payments,505,Other Establishments,5041,Revenue,22.SUPPORT SERVICES
02/10/2017,1505687,922.46,SWIFT - PREPAID CARDS,299980,"Health, Education, Care and Safeguarding",Adult Social Care,101,Third Party Payments,505,Other Establishments,5041,Revenue,22.SUPPORT SERVICES
02/10/2017,1505695,2219.25,SWIFT - PREPAID CARDS,299980,"Health, Education, Care and Safeguarding",Adult Social Care,101,Third Party Payments,505,Other Establishments,5041,Revenue,22.SUPPORT SERVICES
02/10/2017,1505704,442.68,SWIFT - PREPAID CARDS,299980,"Health, Education, Care and Safeguarding",Adult Social Care,101,Third Party Payments,505,Other Establishments,5041,Revenue,22.SUPPORT SERVICES
02/10/2017,1505709,2380.00,SWIFT - PREPAID CARDS,299980,"Health, Education, Care and Safeguarding",Adult Social Care,101,Third Party Payments,505,Other Establishments,5041,Revenue,22.SUPPORT SERVICES
02/10/2017,1505712,1488.50,SWIFT - PREPAID CARDS,299980,"Health, Education, Care and Safeguarding",Adult Social Care,101,Third Party Payments,505,Other Establishments,5041,Revenue,22.SUPPORT SERVICES
02/10/2017,1505715,305.73,SWIFT - PREPAID CARDS,299980,"Health, Education, Care and Safeguarding",Adult Social Care,101,Third Party Payments,505,Other Establishments,5041,Revenue,22.SUPPORT SERVICES
02/10/2017,1505719,490.91,SWIFT - PREPAID CARDS,299980,"Health, Education, Care and Safeguarding",Adult Social Care,101,Third Party Payments,505,Other Establishments,5041,Revenue,22.SUPPORT SERVICES
02/10/2017,1505727,2825.15,SWIFT - PREPAID CARDS,299980,"Health, Education, Care and Safeguarding",Adult Social Care,101,Third Party Payments,505,Other Establishments,5041,Revenue,22.SUPPORT SERVICES
02/10/2017,1505738,308.00,SWIFT - PREPAID CARDS,299980,"Health, Education, Care and Safeguarding",Adult Social Care,101,Third Party Payments,505,Other Establishments,5041,Revenue,22.SUPPORT SERVICES
02/10/2017,1505742,290.00,SWIFT - PREPAID CARDS,299980,"Health, Education, Care and Safeguarding",Adult Social Care,101,Third Party Payments,505,Other Establishments,5041,Revenue,22.SUPPORT SERVICES
02/10/2017,1505744,392.00,SWIFT - PREPAID CARDS,299980,"Health, Education, Care and Safeguarding",Adult Social Care,101,Third Party Payments,505,Other Establishments,5041,Revenue,22.SUPPORT SERVICES
02/10/2017,1505751,356.72,SWIFT - PREPAID CARDS,299980,"Health, Education, Care and Safeguarding",Adult Social Care,101,Third Party Payments,505,Other Establishments,5041,Revenue,22.SUPPORT SERVICES
02/10/2017,1505754,1290.14,SWIFT - PREPAID CARDS,299980,"Health, Education, Care and Safeguarding",Adult Social Care,101,Third Party Payments,505,Other Establishments,5041,Revenue,22.SUPPORT SERVICES
02/10/2017,1505755,560.00,SWIFT - PREPAID CARDS,299980,"Health, Education, Care and Safeguarding",Adult Social Care,101,Third Party Payments,505,Other Establishments,5041,Revenue,22.SUPPORT SERVICES
02/10/2017,1505756,298.29,SWIFT - PREPAID CARDS,299980,"Health, Education, Care and Safeguarding",Adult Social Care,101,Third Party Payments,505,Other Establishments,5041,Revenue,22.SUPPORT SERVICES
02/10/2017,1505760,311.40,SWIFT - PREPAID CARDS,299980,"Health, Education, Care and Safeguarding",Adult Social Care,101,Third Party Payments,505,Other Establishments,5041,Revenue,22.SUPPORT SERVICES
02/10/2017,1505761,549.94,SWIFT - PREPAID CARDS,299980,"Health, Education, Care and Safeguarding",Adult Social Care,101,Third Party Payments,505,Other Establishments,5041,Revenue,22.SUPPORT SERVICES
02/10/2017,1505766,271.16,SWIFT - PREPAID CARDS,299980,"Health, Education, Care and Safeguarding",Adult Social Care,101,Third Party Payments,505,Other Establishments,5041,Revenue,22.SUPPORT SERVICES
02/10/2017,1505767,590.34,SWIFT - PREPAID CARDS,299980,"Health, Education, Care and Safeguarding",Adult Social Care,101,Third Party Payments,505,Other Establishments,5041,Revenue,22.SUPPORT SERVICES
02/10/2017,1505779,360.64,SWIFT - PREPAID CARDS,299980,"Health, Education, Care and Safeguarding",Adult Social Care,101,Third Party Payments,505,Other Establishments,5041,Revenue,22.SUPPORT SERVICES
02/10/2017,1505788,2359.40,SWIFT - PREPAID CARDS,299980,"Health, Education, Care and Safeguarding",Adult Social Care,101,Third Party Payments,505,Other Establishments,5041,Revenue,22.SUPPORT SERVICES
02/10/2017,1505792,260.05,SWIFT - PREPAID CARDS,299980,"Health, Education, Care and Safeguarding",Adult Social Care,101,Third Party Payments,505,Other Establishments,5041,Revenue,22.SUPPORT SERVICES
02/10/2017,1505794,1945.44,SWIFT - PREPAID CARDS,299980,"Health, Education, Care and Safeguarding",Adult Social Care,101,Third Party Payments,505,Other Establishments,5041,Revenue,22.SUPPORT SERVICES
02/10/2017,1505795,275.00,SWIFT - PREPAID CARDS,299980,"Health, Education, Care and Safeguarding",Adult Social Care,101,Third Party Payments,505,Other Establishments,5041,Revenue,22.SUPPORT SERVICES
02/10/2017,1505805,252.86,SWIFT - PREPAID CARDS,299980,"Health, Education, Care and Safeguarding",Adult Social Care,101,Third Party Payments,505,Other Establishments,5041,Revenue,22.SUPPORT SERVICES
02/10/2017,1505807,333.01,SWIFT - PREPAID CARDS,299980,"Health, Education, Care and Safeguarding",Adult Social Care,101,Third Party Payments,505,Other Establishments,5041,Revenue,22.SUPPORT SERVICES
02/10/2017,1505820,497.93,SWIFT - PREPAID CARDS,299980,"Health, Education, Care and Safeguarding",Adult Social Care,101,Third Party Payments,505,Other Establishments,5041,Revenue,22.SUPPORT SERVICES
02/10/2017,1505827,884.20,SWIFT - PREPAID CARDS,299980,"Health, Education, Care and Safeguarding",Adult Social Care,101,Third Party Payments,505,Other Establishments,5041,Revenue,22.SUPPORT SERVICES
02/10/2017,1505828,254.88,SWIFT - PREPAID CARDS,299980,"Health, Education, Care and Safeguarding",Adult Social Care,101,Third Party Payments,505,Other Establishments,5041,Revenue,22.SUPPORT SERVICES
02/10/2017,1505835,691.08,SWIFT - PREPAID CARDS,299980,"Health, Education, Care and Safeguarding",Adult Social Care,101,Third Party Payments,505,Other Establishments,5041,Revenue,22.SUPPORT SERVICES
02/10/2017,1505838,668.15,SWIFT - PREPAID CARDS,299980,"Health, Education, Care and Safeguarding",Adult Social Care,101,Third Party Payments,505,Other Establishments,5041,Revenue,22.SUPPORT SERVICES
02/10/2017,1505841,1770.72,SWIFT - PREPAID CARDS,299980,"Health, Education, Care and Safeguarding",Adult Social Care,101,Third Party Payments,505,Other Establishments,5041,Revenue,22.SUPPORT SERVICES
02/10/2017,1505845,627.13,SWIFT - PREPAID CARDS,299980,"Health, Education, Care and Safeguarding",Adult Social Care,101,Third Party Payments,505,Other Establishments,5041,Revenue,22.SUPPORT SERVICES
02/10/2017,1505846,383.82,SWIFT - PREPAID CARDS,299980,"Health, Education, Care and Safeguarding",Adult Social Care,101,Third Party Payments,505,Other Establishments,5041,Revenue,22.SUPPORT SERVICES
02/10/2017,1505847,359.66,SWIFT - PREPAID CARDS,299980,"Health, Education, Care and Safeguarding",Adult Social Care,101,Third Party Payments,505,Other Establishments,5041,Revenue,22.SUPPORT SERVICES
02/10/2017,1505848,645.12,SWIFT - PREPAID CARDS,299980,"Health, Education, Care and Safeguarding",Adult Social Care,101,Third Party Payments,505,Other Establishments,5041,Revenue,22.SUPPORT SERVICES
02/10/2017,1505849,405.79,SWIFT - PREPAID CARDS,299980,"Health, Education, Care and Safeguarding",Adult Social Care,101,Third Party Payments,505,Other Establishments,5041,Revenue,22.SUPPORT SERVICES
02/10/2017,1505850,1008.71,SWIFT - PREPAID CARDS,299980,"Health, Education, Care and Safeguarding",Adult Social Care,101,Third Party Payments,505,Other Establishments,5041,Revenue,22.SUPPORT SERVICES
02/10/2017,1505852,267.19,SWIFT - PREPAID CARDS,299980,"Health, Education, Care and Safeguarding",Adult Social Care,101,Third Party Payments,505,Other Establishments,5041,Revenue,22.SUPPORT SERVICES
02/10/2017,1505855,823.47,SWIFT - PREPAID CARDS,299980,"Health, Education, Care and Safeguarding",Adult Social Care,101,Third Party Payments,505,Other Establishments,5041,Revenue,22.SUPPORT SERVICES
02/10/2017,1505864,252.80,SWIFT - PREPAID CARDS,299980,"Health, Education, Care and Safeguarding",Adult Social Care,101,Third Party Payments,505,Other Establishments,5041,Revenue,22.SUPPORT SERVICES
02/10/2017,1505874,1054.00,SWIFT - PREPAID CARDS,299980,"Health, Education, Care and Safeguarding",Adult Social Care,101,Third Party Payments,505,Other Establishments,5041,Revenue,22.SUPPORT SERVICES
02/10/2017,1505875,329.46,SWIFT - PREPAID CARDS,299980,"Health, Education, Care and Safeguarding",Adult Social Care,101,Third Party Payments,505,Other Establishments,5041,Revenue,22.SUPPORT SERVICES
02/10/2017,1505882,264.60,SWIFT - PREPAID CARDS,299980,"Health, Education, Care and Safeguarding",Adult Social Care,101,Third Party Payments,505,Other Establishments,5041,Revenue,22.SUPPORT SERVICES
02/10/2017,1505883,415.50,SWIFT - PREPAID CARDS,299980,"Health, Education, Care and Safeguarding",Adult Social Care,101,Third Party Payments,505,Other Establishments,5041,Revenue,22.SUPPORT SERVICES
02/10/2017,1505891,287.00,SWIFT - PREPAID CARDS,299980,"Health, Education, Care and Safeguarding",Adult Social Care,101,Third Party Payments,505,Other Establishments,5041,Revenue,22.SUPPORT SERVICES
02/10/2017,1505892,1075.20,SWIFT - PREPAID CARDS,299980,"Health, Education, Care and Safeguarding",Adult Social Care,101,Third Party Payments,505,Other Establishments,5041,Revenue,22.SUPPORT SERVICES
02/10/2017,1505893,1716.53,SWIFT - PREPAID CARDS,299980,"Health, Education, Care and Safeguarding",Adult Social Care,101,Third Party Payments,505,Other Establishments,5041,Revenue,22.SUPPORT SERVICES
02/10/2017,1505898,261.20,SWIFT - PREPAID CARDS,299980,"Health, Education, Care and Safeguarding",Adult Social Care,101,Third Party Payments,505,Other Establishments,5041,Revenue,22.SUPPORT SERVICES
02/10/2017,1505904,1261.24,SWIFT - PREPAID CARDS,299980,"Health, Education, Care and Safeguarding",Adult Social Care,101,Third Party Payments,505,Other Establishments,5041,Revenue,22.SUPPORT SERVICES
02/10/2017,1505905,349.57,SWIFT - PREPAID CARDS,299980,"Health, Education, Care and Safeguarding",Adult Social Care,101,Third Party Payments,505,Other Establishments,5041,Revenue,22.SUPPORT SERVICES
02/10/2017,1505906,378.44,SWIFT - PREPAID CARDS,299980,"Health, Education, Care and Safeguarding",Adult Social Care,101,Third Party Payments,505,Other Establishments,5041,Revenue,22.SUPPORT SERVICES
02/10/2017,1505912,610.77,SWIFT - PREPAID CARDS,299980,"Health, Education, Care and Safeguarding",Adult Social Care,101,Third Party Payments,505,Other Establishments,5041,Revenue,22.SUPPORT SERVICES
02/10/2017,1505915,491.15,SWIFT - PREPAID CARDS,299980,"Health, Education, Care and Safeguarding",Adult Social Care,101,Third Party Payments,505,Other Establishments,5041,Revenue,22.SUPPORT SERVICES
02/10/2017,1505918,441.00,SWIFT - PREPAID CARDS,299980,"Health, Education, Care and Safeguarding",Adult Social Care,101,Third Party Payments,505,Other Establishments,5041,Revenue,22.SUPPORT SERVICES
02/10/2017,1505919,294.21,SWIFT - PREPAID CARDS,299980,"Health, Education, Care and Safeguarding",Adult Social Care,101,Third Party Payments,505,Other Establishments,5041,Revenue,22.SUPPORT SERVICES
02/10/2017,1505920,490.00,SWIFT - PREPAID CARDS,299980,"Health, Education, Care and Safeguarding",Adult Social Care,101,Third Party Payments,505,Other Establishments,5041,Revenue,22.SUPPORT SERVICES
02/10/2017,1505923,828.17,SWIFT - PREPAID CARDS,299980,"Health, Education, Care and Safeguarding",Adult Social Care,101,Third Party Payments,505,Other Establishments,5041,Revenue,22.SUPPORT SERVICES
02/10/2017,1505924,396.60,SWIFT - PREPAID CARDS,299980,"Health, Education, Care and Safeguarding",Adult Social Care,101,Third Party Payments,505,Other Establishments,5041,Revenue,22.SUPPORT SERVICES
02/10/2017,1505926,282.56,SWIFT - PREPAID CARDS,299980,"Health, Education, Care and Safeguarding",Adult Social Care,101,Third Party Payments,505,Other Establishments,5041,Revenue,22.SUPPORT SERVICES
02/10/2017,1505930,256.23,SWIFT - PREPAID CARDS,299980,"Health, Education, Care and Safeguarding",Adult Social Care,101,Third Party Payments,505,Other Establishments,5041,Revenue,22.SUPPORT SERVICES
02/10/2017,1505935,520.21,SWIFT - PREPAID CARDS,299980,"Health, Education, Care and Safeguarding",Adult Social Care,101,Third Party Payments,505,Other Establishments,5041,Revenue,22.SUPPORT SERVICES
02/10/2017,1505942,255.50,SWIFT - PREPAID CARDS,299980,"Health, Education, Care and Safeguarding",Adult Social Care,101,Third Party Payments,505,Other Establishments,5041,Revenue,22.SUPPORT SERVICES
02/10/2017,1505944,1875.16,SWIFT - PREPAID CARDS,299980,"Health, Education, Care and Safeguarding",Adult Social Care,101,Third Party Payments,505,Other Establishments,5041,Revenue,22.SUPPORT SERVICES
02/10/2017,1505948,1311.29,SWIFT - PREPAID CARDS,299980,"Health, Education, Care and Safeguarding",Adult Social Care,101,Third Party Payments,505,Other Establishments,5041,Revenue,22.SUPPORT SERVICES
02/10/2017,1505956,937.89,SWIFT - PREPAID CARDS,299980,"Health, Education, Care and Safeguarding",Adult Social Care,101,Third Party Payments,505,Other Establishments,5041,Revenue,22.SUPPORT SERVICES
02/10/2017,1505959,509.02,SWIFT - PREPAID CARDS,299980,"Health, Education, Care and Safeguarding",Adult Social Care,101,Third Party Payments,505,Other Establishments,5041,Revenue,22.SUPPORT SERVICES
02/10/2017,1505964,500.39,SWIFT - PREPAID CARDS,299980,"Health, Education, Care and Safeguarding",Adult Social Care,101,Third Party Payments,505,Other Establishments,5041,Revenue,22.SUPPORT SERVICES
02/10/2017,1505965,255.40,SWIFT - PREPAID CARDS,299980,"Health, Education, Care and Safeguarding",Adult Social Care,101,Third Party Payments,505,Other Establishments,5041,Revenue,22.SUPPORT SERVICES
02/10/2017,1505966,262.00,SWIFT - PREPAID CARDS,299980,"Health, Education, Care and Safeguarding",Adult Social Care,101,Third Party Payments,505,Other Establishments,5041,Revenue,22.SUPPORT SERVICES
02/10/2017,1505968,502.05,SWIFT - PREPAID CARDS,299980,"Health, Education, Care and Safeguarding",Adult Social Care,101,Third Party Payments,505,Other Establishments,5041,Revenue,22.SUPPORT SERVICES
02/10/2017,1505977,266.03,SWIFT - PREPAID CARDS,299980,"Health, Education, Care and Safeguarding",Adult Social Care,101,Third Party Payments,505,Other Establishments,5041,Revenue,22.SUPPORT SERVICES
02/10/2017,1505984,260.00,SWIFT - PREPAID CARDS,299980,"Health, Education, Care and Safeguarding",Adult Social Care,101,Third Party Payments,505,Other Establishments,5041,Revenue,22.SUPPORT SERVICES
02/10/2017,1505990,377.26,SWIFT - PREPAID CARDS,299980,"Health, Education, Care and Safeguarding",Adult Social Care,101,Third Party Payments,505,Other Establishments,5041,Revenue,22.SUPPORT SERVICES
02/10/2017,1505992,685.10,SWIFT - PREPAID CARDS,299980,"Health, Education, Care and Safeguarding",Adult Social Care,101,Third Party Payments,505,Other Establishments,5041,Revenue,22.SUPPORT SERVICES
02/10/2017,1505998,1658.11,SWIFT - PREPAID CARDS,299980,"Health, Education, Care and Safeguarding",Adult Social Care,101,Third Party Payments,505,Other Establishments,5041,Revenue,22.SUPPORT SERVICES
02/10/2017,1505999,254.18,SWIFT - PREPAID CARDS,299980,"Health, Education, Care and Safeguarding",Adult Social Care,101,Third Party Payments,505,Other Establishments,5041,Revenue,22.SUPPORT SERVICES
02/10/2017,1506000,341.92,SWIFT - PREPAID CARDS,299980,"Health, Education, Care and Safeguarding",Adult Social Care,101,Third Party Payments,505,Other Establishments,5041,Revenue,22.SUPPORT SERVICES
02/10/2017,1506001,402.88,SWIFT - PREPAID CARDS,299980,"Health, Education, Care and Safeguarding",Children's & Education Services,103,Third Party Payments,505,Other Establishments,5041,Revenue,22.SUPPORT SERVICES
02/10/2017,1506002,270.00,SWIFT - PREPAID CARDS,299980,"Health, Education, Care and Safeguarding",Adult Social Care,101,Third Party Payments,505,Other Establishments,5041,Revenue,22.SUPPORT SERVICES
02/10/2017,1506012,2699.84,SWIFT - PREPAID CARDS,299980,"Health, Education, Care and Safeguarding",Adult Social Care,101,Third Party Payments,505,Other Establishments,5041,Revenue,22.SUPPORT SERVICES
02/10/2017,1506013,312.45,SWIFT - PREPAID CARDS,299980,"Health, Education, Care and Safeguarding",Adult Social Care,101,Third Party Payments,505,Other Establishments,5041,Revenue,22.SUPPORT SERVICES
02/10/2017,1506018,1771.17,SWIFT - PREPAID CARDS,299980,"Health, Education, Care and Safeguarding",Adult Social Care,101,Third Party Payments,505,Other Establishments,5041,Revenue,22.SUPPORT SERVICES
02/10/2017,1506019,314.14,SWIFT - PREPAID CARDS,299980,"Health, Education, Care and Safeguarding",Adult Social Care,101,Third Party Payments,505,Other Establishments,5041,Revenue,22.SUPPORT SERVICES
02/10/2017,1506027,3224.00,SWIFT - PREPAID CARDS,299980,"Health, Education, Care and Safeguarding",Adult Social Care,101,Third Party Payments,505,Other Establishments,5041,Revenue,22.SUPPORT SERVICES
02/10/2017,1506029,1770.20,SWIFT - PREPAID CARDS,299980,"Health, Education, Care and Safeguarding",Adult Social Care,101,Third Party Payments,505,Other Establishments,5041,Revenue,22.SUPPORT SERVICES
02/10/2017,1506030,324.44,SWIFT - PREPAID CARDS,299980,"Health, Education, Care and Safeguarding",Adult Social Care,101,Third Party Payments,505,Other Establishments,5041,Revenue,22.SUPPORT SERVICES
02/10/2017,1506031,329.00,SWIFT - PREPAID CARDS,299980,"Health, Education, Care and Safeguarding",Adult Social Care,101,Third Party Payments,505,Other Establishments,5041,Revenue,22.SUPPORT SERVICES
02/10/2017,1506032,735.00,SWIFT - PREPAID CARDS,299980,"Health, Education, Care and Safeguarding",Adult Social Care,101,Third Party Payments,505,Other Establishments,5041,Revenue,22.SUPPORT SERVICES
02/10/2017,1506033,1842.15,SWIFT - PREPAID CARDS,299980,"Health, Education, Care and Safeguarding",Adult Social Care,101,Third Party Payments,505,Other Establishments,5041,Revenue,22.SUPPORT SERVICES
02/10/2017,1506035,2665.29,SWIFT - PREPAID CARDS,299980,"Health, Education, Care and Safeguarding",Adult Social Care,101,Third Party Payments,505,Other Establishments,5041,Revenue,22.SUPPORT SERVICES
02/10/2017,1506046,2109.35,SWIFT - PREPAID CARDS,299980,"Health, Education, Care and Safeguarding",Adult Social Care,101,Third Party Payments,505,Other Establishments,5041,Revenue,22.SUPPORT SERVICES
02/10/2017,1506052,508.00,SWIFT - PREPAID CARDS,299980,"Health, Education, Care and Safeguarding",Adult Social Care,101,Third Party Payments,505,Other Establishments,5041,Revenue,22.SUPPORT SERVICES
02/10/2017,1506053,759.50,SWIFT - PREPAID CARDS,299980,"Health, Education, Care and Safeguarding",Adult Social Care,101,Third Party Payments,505,Other Establishments,5041,Revenue,22.SUPPORT SERVICES
02/10/2017,1506055,1638.99,SWIFT - PREPAID CARDS,299980,"Health, Education, Care and Safeguarding",Adult Social Care,101,Third Party Payments,505,Other Establishments,5041,Revenue,22.SUPPORT SERVICES
02/10/2017,1506066,267.72,SWIFT - PREPAID CARDS,299980,"Health, Education, Care and Safeguarding",Adult Social Care,101,Third Party Payments,505,Other Establishments,5041,Revenue,22.SUPPORT SERVICES
02/10/2017,1506070,343.23,SWIFT - PREPAID CARDS,299980,"Health, Education, Care and Safeguarding",Adult Social Care,101,Third Party Payments,505,Other Establishments,5041,Revenue,22.SUPPORT SERVICES
02/10/2017,1506073,940.20,SWIFT - PREPAID CARDS,299980,"Health, Education, Care and Safeguarding",Adult Social Care,101,Third Party Payments,505,Other Establishments,5041,Revenue,22.SUPPORT SERVICES
02/10/2017,1506077,1955.11,SWIFT - PREPAID CARDS,299980,"Health, Education, Care and Safeguarding",Adult Social Care,101,Third Party Payments,505,Other Establishments,5041,Revenue,22.SUPPORT SERVICES
02/10/2017,1506078,855.36,SWIFT - PREPAID CARDS,299980,"Health, Education, Care and Safeguarding",Adult Social Care,101,Third Party Payments,505,Other Establishments,5041,Revenue,22.SUPPORT SERVICES
02/10/2017,1506079,855.36,SWIFT - PREPAID CARDS,299980,"Health, Education, Care and Safeguarding",Adult Social Care,101,Third Party Payments,505,Other Establishments,5041,Revenue,22.SUPPORT SERVICES
02/10/2017,1506085,1099.79,SWIFT - PREPAID CARDS,299980,"Health, Education, Care and Safeguarding",Adult Social Care,101,Third Party Payments,505,Other Establishments,5041,Revenue,22.SUPPORT SERVICES
02/10/2017,1506086,920.28,SWIFT - PREPAID CARDS,299980,"Health, Education, Care and Safeguarding",Adult Social Care,101,Third Party Payments,505,Other Establishments,5041,Revenue,22.SUPPORT SERVICES
02/10/2017,1506092,737.00,SWIFT - PREPAID CARDS,299980,"Health, Education, Care and Safeguarding",Adult Social Care,101,Third Party Payments,505,Other Establishments,5041,Revenue,22.SUPPORT SERVICES
02/10/2017,1506098,565.11,SWIFT - PREPAID CARDS,299980,"Health, Education, Care and Safeguarding",Adult Social Care,101,Third Party Payments,505,Other Establishments,5041,Revenue,22.SUPPORT SERVICES
02/10/2017,1506101,457.50,SWIFT - PREPAID CARDS,299980,"Health, Education, Care and Safeguarding",Adult Social Care,101,Third Party Payments,505,Other Establishments,5041,Revenue,22.SUPPORT SERVICES
02/10/2017,1506103,293.53,Redacted Personal Data,389516,"Health, Education, Care and Safeguarding",Adult Social Care,101,Third Party Payments,505,Other Establishments,5041,Revenue,00.NON INFLUENCIBLE
02/10/2017,1506104,278.20,Redacted Personal Data,394022,"Health, Education, Care and Safeguarding",Adult Social Care,101,Third Party Payments,505,Other Establishments,5041,Revenue,NON INDIVIDUAL
02/10/2017,1506104,353.00,Redacted Personal Data,394022,"Health, Education, Care and Safeguarding",Adult Social Care,101,Third Party Payments,505,Other Establishments,5041,Revenue,NON INDIVIDUAL
02/10/2017,1506107,914.60,BARCHESTER HEALTHCARE T/A LONGUEVILLE COURT,393767,"Health, Education, Care and Safeguarding",Public Health,112,Third Party Payments,505,Other Establishments,5041,Revenue,22.RESIDENTIAL
02/10/2017,1506108,1356.71,AUGUSTA CARE LTD,393744,"Health, Education, Care and Safeguarding",Adult Social Care,101,Third Party Payments,505,Private Contractors,5042,Revenue,22.RESIDENTIAL
02/10/2017,1506109,461.69,ORCHARD CARE HOMES.COM,387538,"Health, Education, Care and Safeguarding",Adult Social Care,101,Third Party Payments,505,Private Contractors,5042,Revenue,22.RESIDENTIAL
02/10/2017,1506109,520.05,ORCHARD CARE HOMES.COM,387538,"Health, Education, Care and Safeguarding",Adult Social Care,101,Third Party Payments,505,Private Contractors,5042,Revenue,22.RESIDENTIAL
02/10/2017,1506109,538.64,ORCHARD CARE HOMES.COM,387538,"Health, Education, Care and Safeguarding",Adult Social Care,101,Third Party Payments,505,Private Contractors,5042,Revenue,22.RESIDENTIAL
02/10/2017,1506109,538.64,ORCHARD CARE HOMES.COM,387538,"Health, Education, Care and Safeguarding",Adult Social Care,101,Third Party Payments,505,Private Contractors,5042,Revenue,22.RESIDENTIAL
02/10/2017,1506109,538.64,ORCHARD CARE HOMES.COM,387538,"Health, Education, Care and Safeguarding",Adult Social Care,101,Third Party Payments,505,Private Contractors,5042,Revenue,22.RESIDENTIAL
02/10/2017,1506109,538.64,ORCHARD CARE HOMES.COM,387538,"Health, Education, Care and Safeguarding",Adult Social Care,101,Third Party Payments,505,Private Contractors,5042,Revenue,22.RESIDENTIAL
02/10/2017,1506109,538.64,ORCHARD CARE HOMES.COM,387538,"Health, Education, Care and Safeguarding",Adult Social Care,101,Third Party Payments,505,Private Contractors,5042,Revenue,22.RESIDENTIAL
02/10/2017,1506109,538.64,ORCHARD CARE HOMES.COM,387538,"Health, Education, Care and Safeguarding",Adult Social Care,101,Third Party Payments,505,Private Contractors,5042,Revenue,22.RESIDENTIAL
02/10/2017,1506109,538.64,ORCHARD CARE HOMES.COM,387538,"Health, Education, Care and Safeguarding",Adult Social Care,101,Third Party Payments,505,Private Contractors,5042,Revenue,22.RESIDENTIAL
02/10/2017,1506109,538.64,ORCHARD CARE HOMES.COM,387538,"Health, Education, Care and Safeguarding",Adult Social Care,101,Third Party Payments,505,Private Contractors,5042,Revenue,22.RESIDENTIAL
02/10/2017,1506109,538.64,ORCHARD CARE HOMES.COM,387538,"Health, Education, Care and Safeguarding",Adult Social Care,101,Third Party Payments,505,Private Contractors,5042,Revenue,22.RESIDENTIAL
02/10/2017,1506109,538.64,ORCHARD CARE HOMES.COM,387538,"Health, Education, Care and Safeguarding",Adult Social Care,101,Third Party Payments,505,Private Contractors,5042,Revenue,22.RESIDENTIAL
02/10/2017,1506109,538.64,ORCHARD CARE HOMES.COM,387538,"Health, Education, Care and Safeguarding",Adult Social Care,101,Third Party Payments,505,Private Contractors,5042,Revenue,22.RESIDENTIAL
02/10/2017,1506109,538.64,ORCHARD CARE HOMES.COM,387538,"Health, Education, Care and Safeguarding",Adult Social Care,101,Third Party Payments,505,Private Contractors,5042,Revenue,22.RESIDENTIAL
02/10/2017,1506109,538.64,ORCHARD CARE HOMES.COM,387538,"Health, Education, Care and Safeguarding",Adult Social Care,101,Third Party Payments,505,Private Contractors,5042,Revenue,22.RESIDENTIAL
02/10/2017,1506109,538.64,ORCHARD CARE HOMES.COM,387538,"Health, Education, Care and Safeguarding",Adult Social Care,101,Third Party Payments,505,Private Contractors,5042,Revenue,22.RESIDENTIAL
02/10/2017,1506109,538.64,ORCHARD CARE HOMES.COM,387538,"Health, Education, Care and Safeguarding",Adult Social Care,101,Third Party Payments,505,Private Contractors,5042,Revenue,22.RESIDENTIAL
02/10/2017,1506109,538.64,ORCHARD CARE HOMES.COM,387538,"Health, Education, Care and Safeguarding",Adult Social Care,101,Third Party Payments,505,Private Contractors,5042,Revenue,22.RESIDENTIAL
02/10/2017,1506109,538.64,ORCHARD CARE HOMES.COM,387538,"Health, Education, Care and Safeguarding",Adult Social Care,101,Third Party Payments,505,Private Contractors,5042,Revenue,22.RESIDENTIAL
02/10/2017,1506109,538.64,ORCHARD CARE HOMES.COM,387538,"Health, Education, Care and Safeguarding",Adult Social Care,101,Third Party Payments,505,Private Contractors,5042,Revenue,22.RESIDENTIAL
02/10/2017,1506109,538.64,ORCHARD CARE HOMES.COM,387538,"Health, Education, Care and Safeguarding",Adult Social Care,101,Third Party Payments,505,Private Contractors,5042,Revenue,22.RESIDENTIAL
02/10/2017,1506109,538.64,ORCHARD CARE HOMES.COM,387538,"Health, Education, Care and Safeguarding",Adult Social Care,101,Third Party Payments,505,Private Contractors,5042,Revenue,22.RESIDENTIAL
02/10/2017,1506109,723.69,ORCHARD CARE HOMES.COM,387538,"Health, Education, Care and Safeguarding",Public Health,112,Third Party Payments,505,Other Establishments,5041,Revenue,22.RESIDENTIAL
02/10/2017,1506109,723.69,ORCHARD CARE HOMES.COM,387538,"Health, Education, Care and Safeguarding",Public Health,112,Third Party Payments,505,Other Establishments,5041,Revenue,22.RESIDENTIAL
02/10/2017,1506109,723.69,ORCHARD CARE HOMES.COM,387538,"Health, Education, Care and Safeguarding",Public Health,112,Third Party Payments,505,Other Establishments,5041,Revenue,22.RESIDENTIAL
02/10/2017,1506109,723.69,ORCHARD CARE HOMES.COM,387538,"Health, Education, Care and Safeguarding",Public Health,112,Third Party Payments,505,Other Establishments,5041,Revenue,22.RESIDENTIAL
02/10/2017,1506109,723.69,ORCHARD CARE HOMES.COM,387538,"Health, Education, Care and Safeguarding",Public Health,112,Third Party Payments,505,Other Establishments,5041,Revenue,22.RESIDENTIAL
02/10/2017,1506109,723.69,ORCHARD CARE HOMES.COM,387538,"Health, Education, Care and Safeguarding",Public Health,112,Third Party Payments,505,Other Establishments,5041,Revenue,22.RESIDENTIAL
02/10/2017,1506109,723.69,ORCHARD CARE HOMES.COM,387538,"Health, Education, Care and Safeguarding",Public Health,112,Third Party Payments,505,Other Establishments,5041,Revenue,22.RESIDENTIAL
02/10/2017,1506112,258.54,Redacted Personal Data,393492,"Health, Education, Care and Safeguarding",Adult Social Care,101,Third Party Payments,505,Other Establishments,5041,Revenue,NON INDIVIDUAL
02/10/2017,1506112,316.00,Redacted Personal Data,393492,"Health, Education, Care and Safeguarding",Adult Social Care,101,Third Party Payments,505,Other Establishments,5041,Revenue,NON INDIVIDUAL
02/10/2017,1506113,423.00,DEAFBLIND ENABLEMENT LTD,390700,"Health, Education, Care and Safeguarding",Adult Social Care,101,Third Party Payments,505,Other Establishments,5041,Revenue,22.SUPPORT SERVICES
02/10/2017,1506114,1438.35,THE WHITE HORSE CARE TRUST,393309,"Health, Education, Care and Safeguarding",Adult Social Care,101,Third Party Payments,505,Private Contractors,5042,Revenue,22.RESIDENTIAL
02/10/2017,1506115,488.15,NORTHRIDGE HEALTHCARE LTD,393276,"Health, Education, Care and Safeguarding",Adult Social Care,101,Third Party Payments,505,Private Contractors,5042,Revenue,22.RESIDENTIAL
02/10/2017,1506115,643.20,NORTHRIDGE HEALTHCARE LTD,393276,"Health, Education, Care and Safeguarding",Adult Social Care,101,Third Party Payments,505,Other Establishments,5041,Revenue,22.RESIDENTIAL
02/10/2017,1506115,673.20,NORTHRIDGE HEALTHCARE LTD,393276,"Health, Education, Care and Safeguarding",Adult Social Care,101,Third Party Payments,505,Other Establishments,5041,Revenue,22.RESIDENTIAL
02/10/2017,1506115,673.20,NORTHRIDGE HEALTHCARE LTD,393276,"Health, Education, Care and Safeguarding",Public Health,112,Third Party Payments,505,Other Establishments,5041,Revenue,22.RESIDENTIAL
02/10/2017,1506115,673.20,NORTHRIDGE HEALTHCARE LTD,393276,"Health, Education, Care and Safeguarding",Public Health,112,Third Party Payments,505,Other Establishments,5041,Revenue,22.RESIDENTIAL
02/10/2017,1506115,4200.00,NORTHRIDGE HEALTHCARE LTD,393276,"Health, Education, Care and Safeguarding",Adult Social Care,101,Third Party Payments,505,Private Contractors,5042,Revenue,22.RESIDENTIAL
02/10/2017,1506116,605.00,ARCADIA CARE HOMES,393208,"Health, Education, Care and Safeguarding",Adult Social Care,101,Third Party Payments,505,Private Contractors,5042,Revenue,22.RESIDENTIAL
02/10/2017,1506117,294.23,MEADOW WELL CONNECTED,355522,"Health, Education, Care and Safeguarding",Adult Social Care,101,Third Party Payments,505,Other Establishments,5041,Revenue,22.SUPPORT SERVICES
02/10/2017,1506118,500.62,HELEN MCARDLE CARE,392923,"Health, Education, Care and Safeguarding",Adult Social Care,101,Third Party Payments,505,Private Contractors,5042,Revenue,22.RESIDENTIAL
02/10/2017,1506119,554.55,HELEN MCARDLE CARE,392922,"Health, Education, Care and Safeguarding",Adult Social Care,101,Third Party Payments,505,Private Contractors,5042,Revenue,22.RESIDENTIAL
02/10/2017,1506121,777.00,CARE UK MENTAL HEALTH PARTNERSHIPS LTD,333648,"Health, Education, Care and Safeguarding",Adult Social Care,101,Third Party Payments,505,Private Contractors,5042,Revenue,22.RESIDENTIAL
02/10/2017,1506121,777.00,CARE UK MENTAL HEALTH PARTNERSHIPS LTD,333648,"Health, Education, Care and Safeguarding",Adult Social Care,101,Third Party Payments,505,Private Contractors,5042,Revenue,22.RESIDENTIAL
02/10/2017,1506122,316.00,Redacted Personal Data,392596,"Health, Education, Care and Safeguarding",Adult Social Care,101,Third Party Payments,505,Other Establishments,5041,Revenue,ADV IMAGE
02/10/2017,1506123,549.95,Redacted Personal Data,379947,"Health, Education, Care and Safeguarding",Adult Social Care,101,Third Party Payments,505,Other Establishments,5041,Revenue,00.GRANT
02/10/2017,1506124,1655.77,Redacted Personal Data,371324,"Health, Education, Care and Safeguarding",Adult Social Care,101,Third Party Payments,505,Other Establishments,5041,Revenue,00.NON INFLUENCIBLE
02/10/2017,1506125,-2954.53,UNITED RESPONSE,330350,"Health, Education, Care and Safeguarding",Adult Social Care,101,Third Party Payments,505,Private Contractors,5042,Revenue,22.SUPPORT SERVICES
02/10/2017,1506125,273.80,UNITED RESPONSE,330350,"Health, Education, Care and Safeguarding",Adult Social Care,101,Third Party Payments,505,Private Contractors,5042,Revenue,22.SUPPORT SERVICES
02/10/2017,1506125,292.60,UNITED RESPONSE,330350,"Health, Education, Care and Safeguarding",Adult Social Care,101,Third Party Payments,505,Private Contractors,5042,Revenue,22.SUPPORT SERVICES
02/10/2017,1506125,671.12,UNITED RESPONSE,330350,"Health, Education, Care and Safeguarding",Adult Social Care,101,Third Party Payments,505,Private Contractors,5042,Revenue,22.SUPPORT SERVICES
02/10/2017,1506125,671.12,UNITED RESPONSE,330350,"Health, Education, Care and Safeguarding",Adult Social Care,101,Third Party Payments,505,Private Contractors,5042,Revenue,22.SUPPORT SERVICES
02/10/2017,1506125,737.24,UNITED RESPONSE,330350,"Health, Education, Care and Safeguarding",Adult Social Care,101,Third Party Payments,505,Private Contractors,5042,Revenue,22.SUPPORT SERVICES
02/10/2017,1506125,864.39,UNITED RESPONSE,330350,"Health, Education, Care and Safeguarding",Adult Social Care,101,Third Party Payments,505,Private Contractors,5042,Revenue,22.SUPPORT SERVICES
02/10/2017,1506125,909.15,UNITED RESPONSE,330350,"Health, Education, Care and Safeguarding",Adult Social Care,101,Third Party Payments,505,Private Contractors,5042,Revenue,22.SUPPORT SERVICES
02/10/2017,1506125,947.04,UNITED RESPONSE,330350,"Health, Education, Care and Safeguarding",Adult Social Care,101,Third Party Payments,505,Private Contractors,5042,Revenue,22.SUPPORT SERVICES
02/10/2017,1506125,947.04,UNITED RESPONSE,330350,"Health, Education, Care and Safeguarding",Adult Social Care,101,Third Party Payments,505,Private Contractors,5042,Revenue,22.SUPPORT SERVICES
02/10/2017,1506125,991.80,UNITED RESPONSE,330350,"Health, Education, Care and Safeguarding",Adult Social Care,101,Third Party Payments,505,Private Contractors,5042,Revenue,22.SUPPORT SERVICES
02/10/2017,1506125,1029.69,UNITED RESPONSE,330350,"Health, Education, Care and Safeguarding",Adult Social Care,101,Third Party Payments,505,Private Contractors,5042,Revenue,22.SUPPORT SERVICES
02/10/2017,1506125,1039.40,UNITED RESPONSE,330350,"Health, Education, Care and Safeguarding",Adult Social Care,101,Third Party Payments,505,Private Contractors,5042,Revenue,22.SUPPORT SERVICES
02/10/2017,1506125,1136.44,UNITED RESPONSE,330350,"Health, Education, Care and Safeguarding",Adult Social Care,101,Third Party Payments,505,Private Contractors,5042,Revenue,22.SUPPORT SERVICES
02/10/2017,1506125,1170.31,UNITED RESPONSE,330350,"Health, Education, Care and Safeguarding",Adult Social Care,101,Third Party Payments,505,Private Contractors,5042,Revenue,22.SUPPORT SERVICES
02/10/2017,1506125,1230.01,UNITED RESPONSE,330350,"Health, Education, Care and Safeguarding",Adult Social Care,101,Third Party Payments,505,Private Contractors,5042,Revenue,22.SUPPORT SERVICES
02/10/2017,1506125,1230.01,UNITED RESPONSE,330350,"Health, Education, Care and Safeguarding",Adult Social Care,101,Third Party Payments,505,Private Contractors,5042,Revenue,22.SUPPORT SERVICES
02/10/2017,1506125,1230.01,UNITED RESPONSE,330350,"Health, Education, Care and Safeguarding",Adult Social Care,101,Third Party Payments,505,Private Contractors,5042,Revenue,22.SUPPORT SERVICES
02/10/2017,1506125,1384.39,UNITED RESPONSE,330350,"Health, Education, Care and Safeguarding",Adult Social Care,101,Third Party Payments,505,Private Contractors,5042,Revenue,22.SUPPORT SERVICES
02/10/2017,1506125,1392.66,UNITED RESPONSE,330350,"Health, Education, Care and Safeguarding",Adult Social Care,101,Third Party Payments,505,Private Contractors,5042,Revenue,22.SUPPORT SERVICES
02/10/2017,1506125,1486.85,UNITED RESPONSE,330350,"Health, Education, Care and Safeguarding",Adult Social Care,101,Third Party Payments,505,Private Contractors,5042,Revenue,22.SUPPORT SERVICES
02/10/2017,1506125,1534.54,UNITED RESPONSE,330350,"Health, Education, Care and Safeguarding",Adult Social Care,101,Third Party Payments,505,Private Contractors,5042,Revenue,22.SUPPORT SERVICES
02/10/2017,1506125,1633.64,UNITED RESPONSE,330350,"Health, Education, Care and Safeguarding",Adult Social Care,101,Third Party Payments,505,Private Contractors,5042,Revenue,22.SUPPORT SERVICES
02/10/2017,1506125,1698.80,UNITED RESPONSE,330350,"Health, Education, Care and Safeguarding",Adult Social Care,101,Third Party Payments,505,Private Contractors,5042,Revenue,22.SUPPORT SERVICES
02/10/2017,1506125,1702.31,UNITED RESPONSE,330350,"Health, Education, Care and Safeguarding",Adult Social Care,101,Third Party Payments,505,Private Contractors,5042,Revenue,22.SUPPORT SERVICES
02/10/2017,1506125,1734.89,UNITED RESPONSE,330350,"Health, Education, Care and Safeguarding",Adult Social Care,101,Third Party Payments,505,Private Contractors,5042,Revenue,22.SUPPORT SERVICES
02/10/2017,1506125,1742.30,UNITED RESPONSE,330350,"Health, Education, Care and Safeguarding",Adult Social Care,101,Third Party Payments,505,Private Contractors,5042,Revenue,22.SUPPORT SERVICES
02/10/2017,1506125,1765.90,UNITED RESPONSE,330350,"Health, Education, Care and Safeguarding",Adult Social Care,101,Third Party Payments,505,Private Contractors,5042,Revenue,22.SUPPORT SERVICES
02/10/2017,1506125,1788.85,UNITED RESPONSE,330350,"Health, Education, Care and Safeguarding",Public Health,112,Third Party Payments,505,Private Contractors,5042,Revenue,22.SUPPORT SERVICES
02/10/2017,1506125,1816.34,UNITED RESPONSE,330350,"Health, Education, Care and Safeguarding",Adult Social Care,101,Third Party Payments,505,Private Contractors,5042,Revenue,22.SUPPORT SERVICES
02/10/2017,1506125,2013.85,UNITED RESPONSE,330350,"Health, Education, Care and Safeguarding",Adult Social Care,101,Third Party Payments,505,Private Contractors,5042,Revenue,22.SUPPORT SERVICES
02/10/2017,1506125,2179.15,UNITED RESPONSE,330350,"Health, Education, Care and Safeguarding",Adult Social Care,101,Third Party Payments,505,Private Contractors,5042,Revenue,22.SUPPORT SERVICES
02/10/2017,1506125,2582.82,UNITED RESPONSE,330350,"Health, Education, Care and Safeguarding",Adult Social Care,101,Third Party Payments,505,Private Contractors,5042,Revenue,22.SUPPORT SERVICES
02/10/2017,1506125,2777.04,UNITED RESPONSE,330350,"Health, Education, Care and Safeguarding",Adult Social Care,101,Third Party Payments,505,Other Establishments,5041,Revenue,22.SUPPORT SERVICES
02/10/2017,1506125,3306.00,UNITED RESPONSE,330350,"Health, Education, Care and Safeguarding",Adult Social Care,101,Third Party Payments,505,Private Contractors,5042,Revenue,22.SUPPORT SERVICES
02/10/2017,1506125,3448.16,UNITED RESPONSE,330350,"Health, Education, Care and Safeguarding",Adult Social Care,101,Third Party Payments,505,Other Establishments,5041,Revenue,22.SUPPORT SERVICES
02/10/2017,1506125,3621.24,UNITED RESPONSE,330350,"Health, Education, Care and Safeguarding",Adult Social Care,101,Third Party Payments,505,Private Contractors,5042,Revenue,22.SUPPORT SERVICES
02/10/2017,1506125,3813.08,UNITED RESPONSE,330350,"Health, Education, Care and Safeguarding",Adult Social Care,101,Third Party Payments,505,Private Contractors,5042,Revenue,22.SUPPORT SERVICES
02/10/2017,1506125,3982.37,UNITED RESPONSE,330350,"Health, Education, Care and Safeguarding",Public Health,112,Third Party Payments,505,Private Contractors,5042,Revenue,22.SUPPORT SERVICES
02/10/2017,1506127,948.75,AUTISM CARE (UK) LIMITED,387636,"Health, Education, Care and Safeguarding",Adult Social Care,101,Third Party Payments,505,Private Contractors,5042,Revenue,22.RESIDENTIAL
02/10/2017,1506127,2389.50,AUTISM CARE (UK) LIMITED,387636,"Health, Education, Care and Safeguarding",Adult Social Care,101,Third Party Payments,505,Private Contractors,5042,Revenue,22.RESIDENTIAL
02/10/2017,1506127,2488.50,AUTISM CARE (UK) LIMITED,387636,"Health, Education, Care and Safeguarding",Adult Social Care,101,Third Party Payments,505,Private Contractors,5042,Revenue,22.RESIDENTIAL
02/10/2017,1506127,2581.00,AUTISM CARE (UK) LIMITED,387636,"Health, Education, Care and Safeguarding",Adult Social Care,101,Third Party Payments,505,Private Contractors,5042,Revenue,22.RESIDENTIAL
02/10/2017,1506127,6184.01,AUTISM CARE (UK) LIMITED,387636,"Health, Education, Care and Safeguarding",Adult Social Care,101,Third Party Payments,505,Other Establishments,5041,Revenue,22.RESIDENTIAL
02/10/2017,1506128,1940.12,WAYMARKS LTD,386037,"Health, Education, Care and Safeguarding",Adult Social Care,101,Third Party Payments,505,Other Establishments,5041,Revenue,22.SUPPORT SERVICES
02/10/2017,1506129,627.15,EXECUTIVE CARE GROUP RE PEMBROKE CARE HOME,375477,"Health, Education, Care and Safeguarding",Adult Social Care,101,Third Party Payments,505,Private Contractors,5042,Revenue,22.RESIDENTIAL
02/10/2017,1506130,584.59,EXECUTIVE CARE GROUP,358649,"Health, Education, Care and Safeguarding",Adult Social Care,101,Third Party Payments,505,Private Contractors,5042,Revenue,22.RESIDENTIAL
02/10/2017,1506131,-135.84,TURNBERRY SERVICES LIMITED,392180,"Health, Education, Care and Safeguarding",Adult Social Care,101,Income,509,"Other Grants, Reimbursements & Contributions",5063,Revenue,22.RESIDENTIAL
02/10/2017,1506131,-130.70,TURNBERRY SERVICES LIMITED,392180,"Health, Education, Care and Safeguarding",Adult Social Care,101,Income,509,"Other Grants, Reimbursements & Contributions",5063,Revenue,22.RESIDENTIAL
02/10/2017,1506131,450.34,TURNBERRY SERVICES LIMITED,392180,"Health, Education, Care and Safeguarding",Adult Social Care,101,Third Party Payments,505,Private Contractors,5042,Revenue,22.RESIDENTIAL
02/10/2017,1506131,450.34,TURNBERRY SERVICES LIMITED,392180,"Health, Education, Care and Safeguarding",Adult Social Care,101,Third Party Payments,505,Private Contractors,5042,Revenue,22.RESIDENTIAL
02/10/2017,1506131,450.34,TURNBERRY SERVICES LIMITED,392180,"Health, Education, Care and Safeguarding",Adult Social Care,101,Third Party Payments,505,Private Contractors,5042,Revenue,22.RESIDENTIAL
02/10/2017,1506131,450.34,TURNBERRY SERVICES LIMITED,392180,"Health, Education, Care and Safeguarding",Adult Social Care,101,Third Party Payments,505,Private Contractors,5042,Revenue,22.RESIDENTIAL
02/10/2017,1506131,450.34,TURNBERRY SERVICES LIMITED,392180,"Health, Education, Care and Safeguarding",Adult Social Care,101,Third Party Payments,505,Private Contractors,5042,Revenue,22.RESIDENTIAL
02/10/2017,1506131,450.34,TURNBERRY SERVICES LIMITED,392180,"Health, Education, Care and Safeguarding",Adult Social Care,101,Third Party Payments,505,Private Contractors,5042,Revenue,22.RESIDENTIAL
02/10/2017,1506132,2636.20,Redacted Personal Data,368587,"Health, Education, Care and Safeguarding",Adult Social Care,101,Third Party Payments,505,Other Establishments,5041,Revenue,NON INDIVIDUAL
02/10/2017,1506133,400.11,Redacted Personal Data,392105,"Health, Education, Care and Safeguarding",Adult Social Care,101,Third Party Payments,505,Other Establishments,5041,Revenue,22.SUPPORT SERVICES
02/10/2017,1506135,381.85,STONHAM HOUSING ASSOCIATION,303595,"Health, Education, Care and Safeguarding",Adult Social Care,101,Third Party Payments,505,Private Contractors,5042,Revenue,22.SUPPORT SERVICES
02/10/2017,1506136,378.00,PCA INDEPENDENT LIVING SOLUTIONS LLP,387634,"Health, Education, Care and Safeguarding",Adult Social Care,101,Third Party Payments,505,Other Establishments,5041,Revenue,22.DAY CARE SERVICES
02/10/2017,1506137,-100.65,HOMES TOGETHER LTD,356831,"Health, Education, Care and Safeguarding",Adult Social Care,101,Income,509,"Other Grants, Reimbursements & Contributions",5063,Revenue,00.NON INFLUENCIBLE
02/10/2017,1506137,1261.94,HOMES TOGETHER LTD,356831,"Health, Education, Care and Safeguarding",Adult Social Care,101,Third Party Payments,505,Private Contractors,5042,Revenue,00.NON INFLUENCIBLE
02/10/2017,1506138,483.64,Redacted Personal Data,391906,"Health, Education, Care and Safeguarding",Adult Social Care,101,Third Party Payments,505,Private Contractors,5042,Revenue,22.RESIDENTIAL
02/10/2017,1506139,795.49,EQUAL PARTNERSHIPS LTD,391549,"Health, Education, Care and Safeguarding",Adult Social Care,101,Third Party Payments,505,Other Establishments,5041,Revenue,22.SUPPORT SERVICES
02/10/2017,1506139,1001.15,EQUAL PARTNERSHIPS LTD,391549,"Health, Education, Care and Safeguarding",Adult Social Care,101,Third Party Payments,505,Other Establishments,5041,Revenue,22.SUPPORT SERVICES
02/10/2017,1506139,1048.01,EQUAL PARTNERSHIPS LTD,391549,"Health, Education, Care and Safeguarding",Adult Social Care,101,Third Party Payments,505,Other Establishments,5041,Revenue,22.SUPPORT SERVICES
02/10/2017,1506140,461.69,HELEN MCARDLE CARE,391638,"Health, Education, Care and Safeguarding",Adult Social Care,101,Third Party Payments,505,Private Contractors,5042,Revenue,22.RESIDENTIAL
02/10/2017,1506140,520.05,HELEN MCARDLE CARE,391638,"Health, Education, Care and Safeguarding",Adult Social Care,101,Third Party Payments,505,Private Contractors,5042,Revenue,22.RESIDENTIAL
02/10/2017,1506140,520.05,HELEN MCARDLE CARE,391638,"Health, Education, Care and Safeguarding",Adult Social Care,101,Third Party Payments,505,Private Contractors,5042,Revenue,22.RESIDENTIAL
02/10/2017,1506140,538.64,HELEN MCARDLE CARE,391638,"Health, Education, Care and Safeguarding",Adult Social Care,101,Third Party Payments,505,Private Contractors,5042,Revenue,22.RESIDENTIAL
02/10/2017,1506140,538.64,HELEN MCARDLE CARE,391638,"Health, Education, Care and Safeguarding",Adult Social Care,101,Third Party Payments,505,Private Contractors,5042,Revenue,22.RESIDENTIAL
02/10/2017,1506140,538.64,HELEN MCARDLE CARE,391638,"Health, Education, Care and Safeguarding",Adult Social Care,101,Third Party Payments,505,Private Contractors,5042,Revenue,22.RESIDENTIAL
02/10/2017,1506140,1040.10,HELEN MCARDLE CARE,391638,"Health, Education, Care and Safeguarding",Adult Social Care,101,Third Party Payments,505,Private Contractors,5042,Revenue,22.RESIDENTIAL
02/10/2017,1506140,1040.10,HELEN MCARDLE CARE,391638,"Health, Education, Care and Safeguarding",Adult Social Care,101,Third Party Payments,505,Private Contractors,5042,Revenue,22.RESIDENTIAL
02/10/2017,1506141,2952.16,Redacted Personal Data,353764,"Health, Education, Care and Safeguarding",Adult Social Care,101,Third Party Payments,505,Other Establishments,5041,Revenue,NON INDIVIDUAL
02/10/2017,1506142,507.90,RENAL HEALTH LIMITED,391424,"Health, Education, Care and Safeguarding",Adult Social Care,101,Third Party Payments,505,Private Contractors,5042,Revenue,22.RESIDENTIAL
02/10/2017,1506142,507.90,RENAL HEALTH LIMITED,391424,"Health, Education, Care and Safeguarding",Adult Social Care,101,Third Party Payments,505,Private Contractors,5042,Revenue,22.RESIDENTIAL
02/10/2017,1506142,507.90,RENAL HEALTH LIMITED,391424,"Health, Education, Care and Safeguarding",Adult Social Care,101,Third Party Payments,505,Private Contractors,5042,Revenue,22.RESIDENTIAL
02/10/2017,1506142,507.90,RENAL HEALTH LIMITED,391424,"Health, Education, Care and Safeguarding",Adult Social Care,101,Third Party Payments,505,Private Contractors,5042,Revenue,22.RESIDENTIAL
02/10/2017,1506142,507.90,RENAL HEALTH LIMITED,391424,"Health, Education, Care and Safeguarding",Adult Social Care,101,Third Party Payments,505,Private Contractors,5042,Revenue,22.RESIDENTIAL
02/10/2017,1506142,507.90,RENAL HEALTH LIMITED,391424,"Health, Education, Care and Safeguarding",Adult Social Care,101,Third Party Payments,505,Private Contractors,5042,Revenue,22.RESIDENTIAL
02/10/2017,1506142,507.90,RENAL HEALTH LIMITED,391424,"Health, Education, Care and Safeguarding",Adult Social Care,101,Third Party Payments,505,Private Contractors,5042,Revenue,22.RESIDENTIAL
02/10/2017,1506142,507.90,RENAL HEALTH LIMITED,391424,"Health, Education, Care and Safeguarding",Adult Social Care,101,Third Party Payments,505,Private Contractors,5042,Revenue,22.RESIDENTIAL
02/10/2017,1506142,507.90,RENAL HEALTH LIMITED,391424,"Health, Education, Care and Safeguarding",Adult Social Care,101,Third Party Payments,505,Private Contractors,5042,Revenue,22.RESIDENTIAL
02/10/2017,1506142,507.90,RENAL HEALTH LIMITED,391424,"Health, Education, Care and Safeguarding",Adult Social Care,101,Third Party Payments,505,Private Contractors,5042,Revenue,22.RESIDENTIAL
02/10/2017,1506142,2539.50,RENAL HEALTH LIMITED,391424,"Health, Education, Care and Safeguarding",Adult Social Care,101,Third Party Payments,505,Private Contractors,5042,Revenue,22.RESIDENTIAL
02/10/2017,1506143,353.23,HOME FARM TRUST LTD,391420,"Health, Education, Care and Safeguarding",Adult Social Care,101,Third Party Payments,505,Other Establishments,5041,Revenue,22.SUPPORT SERVICES
02/10/2017,1506143,392.53,HOME FARM TRUST LTD,391420,"Health, Education, Care and Safeguarding",Adult Social Care,101,Third Party Payments,505,Other Establishments,5041,Revenue,22.SUPPORT SERVICES
02/10/2017,1506143,392.53,HOME FARM TRUST LTD,391420,"Health, Education, Care and Safeguarding",Adult Social Care,101,Third Party Payments,505,Other Establishments,5041,Revenue,22.SUPPORT SERVICES
02/10/2017,1506143,392.53,HOME FARM TRUST LTD,391420,"Health, Education, Care and Safeguarding",Adult Social Care,101,Third Party Payments,505,Other Establishments,5041,Revenue,22.SUPPORT SERVICES
02/10/2017,1506143,403.14,HOME FARM TRUST LTD,391420,"Health, Education, Care and Safeguarding",Adult Social Care,101,Third Party Payments,505,Other Establishments,5041,Revenue,22.SUPPORT SERVICES
02/10/2017,1506143,444.15,HOME FARM TRUST LTD,391420,"Health, Education, Care and Safeguarding",Adult Social Care,101,Third Party Payments,505,Other Establishments,5041,Revenue,22.SUPPORT SERVICES
02/10/2017,1506143,444.15,HOME FARM TRUST LTD,391420,"Health, Education, Care and Safeguarding",Adult Social Care,101,Third Party Payments,505,Other Establishments,5041,Revenue,22.SUPPORT SERVICES
02/10/2017,1506143,444.15,HOME FARM TRUST LTD,391420,"Health, Education, Care and Safeguarding",Adult Social Care,101,Third Party Payments,505,Other Establishments,5041,Revenue,22.SUPPORT SERVICES
02/10/2017,1506143,483.00,HOME FARM TRUST LTD,391420,"Health, Education, Care and Safeguarding",Adult Social Care,101,Third Party Payments,505,Other Establishments,5041,Revenue,22.SUPPORT SERVICES
02/10/2017,1506143,483.00,HOME FARM TRUST LTD,391420,"Health, Education, Care and Safeguarding",Adult Social Care,101,Third Party Payments,505,Other Establishments,5041,Revenue,22.SUPPORT SERVICES
02/10/2017,1506143,543.90,HOME FARM TRUST LTD,391420,"Health, Education, Care and Safeguarding",Adult Social Care,101,Third Party Payments,505,Other Establishments,5041,Revenue,22.SUPPORT SERVICES
02/10/2017,1506143,573.65,HOME FARM TRUST LTD,391420,"Health, Education, Care and Safeguarding",Adult Social Care,101,Third Party Payments,505,Other Establishments,5041,Revenue,22.SUPPORT SERVICES
02/10/2017,1506144,1210.00,SELF NORTH EAST LTD,391376,"Health, Education, Care and Safeguarding",Adult Social Care,101,Third Party Payments,505,Private Contractors,5042,Revenue,22.RESIDENTIAL
02/10/2017,1506145,-100.15,CRAEGMOOR HEALTHCARE,320607,"Health, Education, Care and Safeguarding",Adult Social Care,101,Income,509,"Other Grants, Reimbursements & Contributions",5063,Revenue,22.RESIDENTIAL
02/10/2017,1506145,650.15,CRAEGMOOR HEALTHCARE,320607,"Health, Education, Care and Safeguarding",Adult Social Care,101,Third Party Payments,505,Private Contractors,5042,Revenue,22.RESIDENTIAL
02/10/2017,1506146,-6196.46,BLUE DOOR PROJECT,371685,"Health, Education, Care and Safeguarding",Adult Social Care,101,Third Party Payments,505,Other Establishments,5041,Revenue,22.DAY CARE SERVICES
02/10/2017,1506146,5731.57,BLUE DOOR PROJECT,371685,"Health, Education, Care and Safeguarding",Adult Social Care,101,Third Party Payments,505,Other Establishments,5041,Revenue,22.DAY CARE SERVICES
02/10/2017,1506147,406.96,WALLDENE COURT - ANCHOR TRUST,323724,"Health, Education, Care and Safeguarding",Adult Social Care,101,Third Party Payments,505,Private Contractors,5042,Revenue,22.RESIDENTIAL
02/10/2017,1506147,459.43,WALLDENE COURT - ANCHOR TRUST,323724,"Health, Education, Care and Safeguarding",Adult Social Care,101,Third Party Payments,505,Other Establishments,5041,Revenue,22.RESIDENTIAL
02/10/2017,1506147,488.15,WALLDENE COURT - ANCHOR TRUST,323724,"Health, Education, Care and Safeguarding",Adult Social Care,101,Third Party Payments,505,Private Contractors,5042,Revenue,22.RESIDENTIAL
02/10/2017,1506147,488.15,WALLDENE COURT - ANCHOR TRUST,323724,"Health, Education, Care and Safeguarding",Adult Social Care,101,Third Party Payments,505,Private Contractors,5042,Revenue,22.RESIDENTIAL
02/10/2017,1506147,488.15,WALLDENE COURT - ANCHOR TRUST,323724,"Health, Education, Care and Safeguarding",Adult Social Care,101,Third Party Payments,505,Private Contractors,5042,Revenue,22.RESIDENTIAL
02/10/2017,1506147,488.15,WALLDENE COURT - ANCHOR TRUST,323724,"Health, Education, Care and Safeguarding",Adult Social Care,101,Third Party Payments,505,Private Contractors,5042,Revenue,22.RESIDENTIAL
02/10/2017,1506147,488.15,WALLDENE COURT - ANCHOR TRUST,323724,"Health, Education, Care and Safeguarding",Adult Social Care,101,Third Party Payments,505,Private Contractors,5042,Revenue,22.RESIDENTIAL
02/10/2017,1506147,488.15,WALLDENE COURT - ANCHOR TRUST,323724,"Health, Education, Care and Safeguarding",Adult Social Care,101,Third Party Payments,505,Private Contractors,5042,Revenue,22.RESIDENTIAL
02/10/2017,1506147,488.15,WALLDENE COURT - ANCHOR TRUST,323724,"Health, Education, Care and Safeguarding",Adult Social Care,101,Third Party Payments,505,Private Contractors,5042,Revenue,22.RESIDENTIAL
02/10/2017,1506147,488.15,WALLDENE COURT - ANCHOR TRUST,323724,"Health, Education, Care and Safeguarding",Adult Social Care,101,Third Party Payments,505,Private Contractors,5042,Revenue,22.RESIDENTIAL
02/10/2017,1506147,488.15,WALLDENE COURT - ANCHOR TRUST,323724,"Health, Education, Care and Safeguarding",Adult Social Care,101,Third Party Payments,505,Private Contractors,5042,Revenue,22.RESIDENTIAL
02/10/2017,1506147,488.15,WALLDENE COURT - ANCHOR TRUST,323724,"Health, Education, Care and Safeguarding",Adult Social Care,101,Third Party Payments,505,Private Contractors,5042,Revenue,22.RESIDENTIAL
02/10/2017,1506147,488.15,WALLDENE COURT - ANCHOR TRUST,323724,"Health, Education, Care and Safeguarding",Adult Social Care,101,Third Party Payments,505,Private Contractors,5042,Revenue,22.RESIDENTIAL
02/10/2017,1506147,488.15,WALLDENE COURT - ANCHOR TRUST,323724,"Health, Education, Care and Safeguarding",Adult Social Care,101,Third Party Payments,505,Private Contractors,5042,Revenue,22.RESIDENTIAL
02/10/2017,1506147,508.70,WALLDENE COURT - ANCHOR TRUST,323724,"Health, Education, Care and Safeguarding",Adult Social Care,101,Third Party Payments,505,Private Contractors,5042,Revenue,22.RESIDENTIAL
02/10/2017,1506147,508.70,WALLDENE COURT - ANCHOR TRUST,323724,"Health, Education, Care and Safeguarding",Adult Social Care,101,Third Party Payments,505,Private Contractors,5042,Revenue,22.RESIDENTIAL
02/10/2017,1506147,508.70,WALLDENE COURT - ANCHOR TRUST,323724,"Health, Education, Care and Safeguarding",Adult Social Care,101,Third Party Payments,505,Private Contractors,5042,Revenue,22.RESIDENTIAL
02/10/2017,1506147,508.70,WALLDENE COURT - ANCHOR TRUST,323724,"Health, Education, Care and Safeguarding",Adult Social Care,101,Third Party Payments,505,Private Contractors,5042,Revenue,22.RESIDENTIAL
02/10/2017,1506147,508.70,WALLDENE COURT - ANCHOR TRUST,323724,"Health, Education, Care and Safeguarding",Adult Social Care,101,Third Party Payments,505,Private Contractors,5042,Revenue,22.RESIDENTIAL
02/10/2017,1506147,508.70,WALLDENE COURT - ANCHOR TRUST,323724,"Health, Education, Care and Safeguarding",Adult Social Care,101,Third Party Payments,505,Private Contractors,5042,Revenue,22.RESIDENTIAL
02/10/2017,1506147,508.70,WALLDENE COURT - ANCHOR TRUST,323724,"Health, Education, Care and Safeguarding",Adult Social Care,101,Third Party Payments,505,Private Contractors,5042,Revenue,22.RESIDENTIAL
02/10/2017,1506147,508.70,WALLDENE COURT - ANCHOR TRUST,323724,"Health, Education, Care and Safeguarding",Adult Social Care,101,Third Party Payments,505,Private Contractors,5042,Revenue,22.RESIDENTIAL
02/10/2017,1506147,643.20,WALLDENE COURT - ANCHOR TRUST,323724,"Health, Education, Care and Safeguarding",Adult Social Care,101,Third Party Payments,505,Other Establishments,5041,Revenue,22.RESIDENTIAL
02/10/2017,1506147,673.20,WALLDENE COURT - ANCHOR TRUST,323724,"Health, Education, Care and Safeguarding",Adult Social Care,101,Third Party Payments,505,Other Establishments,5041,Revenue,22.RESIDENTIAL
02/10/2017,1506147,673.20,WALLDENE COURT - ANCHOR TRUST,323724,"Health, Education, Care and Safeguarding",Adult Social Care,101,Third Party Payments,505,Other Establishments,5041,Revenue,22.RESIDENTIAL
02/10/2017,1506147,673.20,WALLDENE COURT - ANCHOR TRUST,323724,"Health, Education, Care and Safeguarding",Public Health,112,Third Party Payments,505,Other Establishments,5041,Revenue,22.RESIDENTIAL
02/10/2017,1506147,673.20,WALLDENE COURT - ANCHOR TRUST,323724,"Health, Education, Care and Safeguarding",Public Health,112,Third Party Payments,505,Other Establishments,5041,Revenue,22.RESIDENTIAL
02/10/2017,1506147,673.20,WALLDENE COURT - ANCHOR TRUST,323724,"Health, Education, Care and Safeguarding",Public Health,112,Third Party Payments,505,Other Establishments,5041,Revenue,22.RESIDENTIAL
02/10/2017,1506147,697.36,WALLDENE COURT - ANCHOR TRUST,323724,"Health, Education, Care and Safeguarding",Adult Social Care,101,Third Party Payments,505,Private Contractors,5042,Revenue,22.RESIDENTIAL
02/10/2017,1506149,1706.60,EQUAL PARTNERSHIPS LTD,390887,"Health, Education, Care and Safeguarding",Adult Social Care,101,Third Party Payments,505,Other Establishments,5041,Revenue,NON INDIVIDUAL
02/10/2017,1506150,520.05,ST MARTINS CARE LIMITED,383318,"Health, Education, Care and Safeguarding",Adult Social Care,101,Third Party Payments,505,Private Contractors,5042,Revenue,22.RESIDENTIAL
02/10/2017,1506150,520.05,ST MARTINS CARE LIMITED,383318,"Health, Education, Care and Safeguarding",Adult Social Care,101,Third Party Payments,505,Private Contractors,5042,Revenue,22.RESIDENTIAL
02/10/2017,1506150,520.05,ST MARTINS CARE LIMITED,383318,"Health, Education, Care and Safeguarding",Adult Social Care,101,Third Party Payments,505,Private Contractors,5042,Revenue,22.RESIDENTIAL
02/10/2017,1506150,520.05,ST MARTINS CARE LIMITED,383318,"Health, Education, Care and Safeguarding",Adult Social Care,101,Third Party Payments,505,Private Contractors,5042,Revenue,22.RESIDENTIAL
02/10/2017,1506150,520.05,ST MARTINS CARE LIMITED,383318,"Health, Education, Care and Safeguarding",Adult Social Care,101,Third Party Payments,505,Private Contractors,5042,Revenue,22.RESIDENTIAL
02/10/2017,1506192,488.15,AKARI CARE HOMES LIMITED,387465,"Health, Education, Care and Safeguarding",Adult Social Care,101,Third Party Payments,505,Private Contractors,5042,Revenue,22.RESIDENTIAL
02/10/2017,1506192,488.15,AKARI CARE HOMES LIMITED,387465,"Health, Education, Care and Safeguarding",Adult Social Care,101,Third Party Payments,505,Private Contractors,5042,Revenue,22.RESIDENTIAL
02/10/2017,1506192,488.15,AKARI CARE HOMES LIMITED,387465,"Health, Education, Care and Safeguarding",Adult Social Care,101,Third Party Payments,505,Private Contractors,5042,Revenue,22.RESIDENTIAL
02/10/2017,1506192,488.15,AKARI CARE HOMES LIMITED,387465,"Health, Education, Care and Safeguarding",Adult Social Care,101,Third Party Payments,505,Private Contractors,5042,Revenue,22.RESIDENTIAL
02/10/2017,1506192,488.15,AKARI CARE HOMES LIMITED,387465,"Health, Education, Care and Safeguarding",Adult Social Care,101,Third Party Payments,505,Private Contractors,5042,Revenue,22.RESIDENTIAL
02/10/2017,1506192,488.15,AKARI CARE HOMES LIMITED,387465,"Health, Education, Care and Safeguarding",Adult Social Care,101,Third Party Payments,505,Private Contractors,5042,Revenue,22.RESIDENTIAL
02/10/2017,1506192,508.70,AKARI CARE HOMES LIMITED,387465,"Health, Education, Care and Safeguarding",Adult Social Care,101,Third Party Payments,505,Private Contractors,5042,Revenue,22.RESIDENTIAL
02/10/2017,1506192,508.70,AKARI CARE HOMES LIMITED,387465,"Health, Education, Care and Safeguarding",Adult Social Care,101,Third Party Payments,505,Private Contractors,5042,Revenue,22.RESIDENTIAL
02/10/2017,1506192,508.70,AKARI CARE HOMES LIMITED,387465,"Health, Education, Care and Safeguarding",Adult Social Care,101,Third Party Payments,505,Private Contractors,5042,Revenue,22.RESIDENTIAL
02/10/2017,1506192,508.70,AKARI CARE HOMES LIMITED,387465,"Health, Education, Care and Safeguarding",Adult Social Care,101,Third Party Payments,505,Private Contractors,5042,Revenue,22.RESIDENTIAL
02/10/2017,1506192,508.70,AKARI CARE HOMES LIMITED,387465,"Health, Education, Care and Safeguarding",Adult Social Care,101,Third Party Payments,505,Private Contractors,5042,Revenue,22.RESIDENTIAL
02/10/2017,1506192,508.70,AKARI CARE HOMES LIMITED,387465,"Health, Education, Care and Safeguarding",Adult Social Care,101,Third Party Payments,505,Private Contractors,5042,Revenue,22.RESIDENTIAL
02/10/2017,1506192,508.70,AKARI CARE HOMES LIMITED,387465,"Health, Education, Care and Safeguarding",Adult Social Care,101,Third Party Payments,505,Private Contractors,5042,Revenue,22.RESIDENTIAL
02/10/2017,1506192,508.70,AKARI CARE HOMES LIMITED,387465,"Health, Education, Care and Safeguarding",Adult Social Care,101,Third Party Payments,505,Private Contractors,5042,Revenue,22.RESIDENTIAL
02/10/2017,1506192,508.70,AKARI CARE HOMES LIMITED,387465,"Health, Education, Care and Safeguarding",Adult Social Care,101,Third Party Payments,505,Private Contractors,5042,Revenue,22.RESIDENTIAL
02/10/2017,1506192,508.70,AKARI CARE HOMES LIMITED,387465,"Health, Education, Care and Safeguarding",Adult Social Care,101,Third Party Payments,505,Private Contractors,5042,Revenue,22.RESIDENTIAL
02/10/2017,1506192,508.70,AKARI CARE HOMES LIMITED,387465,"Health, Education, Care and Safeguarding",Adult Social Care,101,Third Party Payments,505,Private Contractors,5042,Revenue,22.RESIDENTIAL
02/10/2017,1506192,508.70,AKARI CARE HOMES LIMITED,387465,"Health, Education, Care and Safeguarding",Adult Social Care,101,Third Party Payments,505,Private Contractors,5042,Revenue,22.RESIDENTIAL
02/10/2017,1506192,508.70,AKARI CARE HOMES LIMITED,387465,"Health, Education, Care and Safeguarding",Adult Social Care,101,Third Party Payments,505,Private Contractors,5042,Revenue,22.RESIDENTIAL
02/10/2017,1506192,508.70,AKARI CARE HOMES LIMITED,387465,"Health, Education, Care and Safeguarding",Adult Social Care,101,Third Party Payments,505,Private Contractors,5042,Revenue,22.RESIDENTIAL
02/10/2017,1506192,508.70,AKARI CARE HOMES LIMITED,387465,"Health, Education, Care and Safeguarding",Adult Social Care,101,Third Party Payments,505,Private Contractors,5042,Revenue,22.RESIDENTIAL
02/10/2017,1506192,508.70,AKARI CARE HOMES LIMITED,387465,"Health, Education, Care and Safeguarding",Adult Social Care,101,Third Party Payments,505,Private Contractors,5042,Revenue,22.RESIDENTIAL
02/10/2017,1506192,508.70,AKARI CARE HOMES LIMITED,387465,"Health, Education, Care and Safeguarding",Adult Social Care,101,Third Party Payments,505,Private Contractors,5042,Revenue,22.RESIDENTIAL
02/10/2017,1506192,508.70,AKARI CARE HOMES LIMITED,387465,"Health, Education, Care and Safeguarding",Adult Social Care,101,Third Party Payments,505,Private Contractors,5042,Revenue,22.RESIDENTIAL
02/10/2017,1506192,508.70,AKARI CARE HOMES LIMITED,387465,"Health, Education, Care and Safeguarding",Adult Social Care,101,Third Party Payments,505,Private Contractors,5042,Revenue,22.RESIDENTIAL
02/10/2017,1506192,511.67,AKARI CARE HOMES LIMITED,387465,"Health, Education, Care and Safeguarding",Adult Social Care,101,Third Party Payments,505,Private Contractors,5042,Revenue,22.RESIDENTIAL
02/10/2017,1506192,511.67,AKARI CARE HOMES LIMITED,387465,"Health, Education, Care and Safeguarding",Adult Social Care,101,Third Party Payments,505,Private Contractors,5042,Revenue,22.RESIDENTIAL
02/10/2017,1506192,520.05,AKARI CARE HOMES LIMITED,387465,"Health, Education, Care and Safeguarding",Adult Social Care,101,Third Party Payments,505,Private Contractors,5042,Revenue,22.RESIDENTIAL
02/10/2017,1506192,520.05,AKARI CARE HOMES LIMITED,387465,"Health, Education, Care and Safeguarding",Adult Social Care,101,Third Party Payments,505,Private Contractors,5042,Revenue,22.RESIDENTIAL
02/10/2017,1506192,520.05,AKARI CARE HOMES LIMITED,387465,"Health, Education, Care and Safeguarding",Adult Social Care,101,Third Party Payments,505,Private Contractors,5042,Revenue,22.RESIDENTIAL
02/10/2017,1506150,520.05,ST MARTINS CARE LIMITED,383318,"Health, Education, Care and Safeguarding",Adult Social Care,101,Third Party Payments,505,Private Contractors,5042,Revenue,22.RESIDENTIAL
02/10/2017,1506150,520.05,ST MARTINS CARE LIMITED,383318,"Health, Education, Care and Safeguarding",Adult Social Care,101,Third Party Payments,505,Private Contractors,5042,Revenue,22.RESIDENTIAL
02/10/2017,1506150,520.05,ST MARTINS CARE LIMITED,383318,"Health, Education, Care and Safeguarding",Adult Social Care,101,Third Party Payments,505,Private Contractors,5042,Revenue,22.RESIDENTIAL
02/10/2017,1506150,520.05,ST MARTINS CARE LIMITED,383318,"Health, Education, Care and Safeguarding",Adult Social Care,101,Third Party Payments,505,Private Contractors,5042,Revenue,22.RESIDENTIAL
02/10/2017,1506150,520.05,ST MARTINS CARE LIMITED,383318,"Health, Education, Care and Safeguarding",Adult Social Care,101,Third Party Payments,505,Private Contractors,5042,Revenue,22.RESIDENTIAL
02/10/2017,1506150,520.05,ST MARTINS CARE LIMITED,383318,"Health, Education, Care and Safeguarding",Adult Social Care,101,Third Party Payments,505,Private Contractors,5042,Revenue,22.RESIDENTIAL
02/10/2017,1506150,520.05,ST MARTINS CARE LIMITED,383318,"Health, Education, Care and Safeguarding",Adult Social Care,101,Third Party Payments,505,Private Contractors,5042,Revenue,22.RESIDENTIAL
02/10/2017,1506150,520.05,ST MARTINS CARE LIMITED,383318,"Health, Education, Care and Safeguarding",Adult Social Care,101,Third Party Payments,505,Private Contractors,5042,Revenue,22.RESIDENTIAL
02/10/2017,1506150,520.05,ST MARTINS CARE LIMITED,383318,"Health, Education, Care and Safeguarding",Adult Social Care,101,Third Party Payments,505,Private Contractors,5042,Revenue,22.RESIDENTIAL
02/10/2017,1506150,520.05,ST MARTINS CARE LIMITED,383318,"Health, Education, Care and Safeguarding",Adult Social Care,101,Third Party Payments,505,Private Contractors,5042,Revenue,22.RESIDENTIAL
02/10/2017,1506150,520.05,ST MARTINS CARE LIMITED,383318,"Health, Education, Care and Safeguarding",Adult Social Care,101,Third Party Payments,505,Private Contractors,5042,Revenue,22.RESIDENTIAL
02/10/2017,1506150,520.05,ST MARTINS CARE LIMITED,383318,"Health, Education, Care and Safeguarding",Adult Social Care,101,Third Party Payments,505,Private Contractors,5042,Revenue,22.RESIDENTIAL
02/10/2017,1506150,538.64,ST MARTINS CARE LIMITED,383318,"Health, Education, Care and Safeguarding",Adult Social Care,101,Third Party Payments,505,Private Contractors,5042,Revenue,22.RESIDENTIAL
02/10/2017,1506150,538.64,ST MARTINS CARE LIMITED,383318,"Health, Education, Care and Safeguarding",Adult Social Care,101,Third Party Payments,505,Private Contractors,5042,Revenue,22.RESIDENTIAL
02/10/2017,1506150,538.64,ST MARTINS CARE LIMITED,383318,"Health, Education, Care and Safeguarding",Adult Social Care,101,Third Party Payments,505,Private Contractors,5042,Revenue,22.RESIDENTIAL
02/10/2017,1506150,538.64,ST MARTINS CARE LIMITED,383318,"Health, Education, Care and Safeguarding",Adult Social Care,101,Third Party Payments,505,Private Contractors,5042,Revenue,22.RESIDENTIAL
02/10/2017,1506150,538.64,ST MARTINS CARE LIMITED,383318,"Health, Education, Care and Safeguarding",Adult Social Care,101,Third Party Payments,505,Private Contractors,5042,Revenue,22.RESIDENTIAL
02/10/2017,1506150,538.64,ST MARTINS CARE LIMITED,383318,"Health, Education, Care and Safeguarding",Adult Social Care,101,Third Party Payments,505,Private Contractors,5042,Revenue,22.RESIDENTIAL
02/10/2017,1506150,538.64,ST MARTINS CARE LIMITED,383318,"Health, Education, Care and Safeguarding",Adult Social Care,101,Third Party Payments,505,Private Contractors,5042,Revenue,22.RESIDENTIAL
02/10/2017,1506150,538.64,ST MARTINS CARE LIMITED,383318,"Health, Education, Care and Safeguarding",Adult Social Care,101,Third Party Payments,505,Private Contractors,5042,Revenue,22.RESIDENTIAL
02/10/2017,1506150,538.64,ST MARTINS CARE LIMITED,383318,"Health, Education, Care and Safeguarding",Adult Social Care,101,Third Party Payments,505,Private Contractors,5042,Revenue,22.RESIDENTIAL
02/10/2017,1506150,538.64,ST MARTINS CARE LIMITED,383318,"Health, Education, Care and Safeguarding",Adult Social Care,101,Third Party Payments,505,Private Contractors,5042,Revenue,22.RESIDENTIAL
02/10/2017,1506150,538.64,ST MARTINS CARE LIMITED,383318,"Health, Education, Care and Safeguarding",Adult Social Care,101,Third Party Payments,505,Private Contractors,5042,Revenue,22.RESIDENTIAL
02/10/2017,1506150,538.64,ST MARTINS CARE LIMITED,383318,"Health, Education, Care and Safeguarding",Adult Social Care,101,Third Party Payments,505,Private Contractors,5042,Revenue,22.RESIDENTIAL
02/10/2017,1506150,538.64,ST MARTINS CARE LIMITED,383318,"Health, Education, Care and Safeguarding",Adult Social Care,101,Third Party Payments,505,Private Contractors,5042,Revenue,22.RESIDENTIAL
02/10/2017,1506150,538.64,ST MARTINS CARE LIMITED,383318,"Health, Education, Care and Safeguarding",Adult Social Care,101,Third Party Payments,505,Private Contractors,5042,Revenue,22.RESIDENTIAL
02/10/2017,1506150,538.64,ST MARTINS CARE LIMITED,383318,"Health, Education, Care and Safeguarding",Adult Social Care,101,Third Party Payments,505,Private Contractors,5042,Revenue,22.RESIDENTIAL
02/10/2017,1506150,538.64,ST MARTINS CARE LIMITED,383318,"Health, Education, Care and Safeguarding",Adult Social Care,101,Third Party Payments,505,Private Contractors,5042,Revenue,22.RESIDENTIAL
02/10/2017,1506150,538.64,ST MARTINS CARE LIMITED,383318,"Health, Education, Care and Safeguarding",Adult Social Care,101,Third Party Payments,505,Private Contractors,5042,Revenue,22.RESIDENTIAL
02/10/2017,1506150,538.64,ST MARTINS CARE LIMITED,383318,"Health, Education, Care and Safeguarding",Adult Social Care,101,Third Party Payments,505,Private Contractors,5042,Revenue,22.RESIDENTIAL
02/10/2017,1506152,329.00,NEW PROSPECTS - ISF FUND,389249,"Health, Education, Care and Safeguarding",Adult Social Care,101,Third Party Payments,505,Other Establishments,5041,Revenue,22.SUPPORT SERVICES
02/10/2017,1506153,258.40,NEW PROSPECTS ASSOCIATION LIMITED,203069,"Health, Education, Care and Safeguarding",Adult Social Care,101,Third Party Payments,505,Private Contractors,5042,Revenue,22.DAY CARE SERVICES
02/10/2017,1506153,271.32,NEW PROSPECTS ASSOCIATION LIMITED,203069,"Health, Education, Care and Safeguarding",Adult Social Care,101,Third Party Payments,505,Private Contractors,5042,Revenue,22.DAY CARE SERVICES
02/10/2017,1506153,277.78,NEW PROSPECTS ASSOCIATION LIMITED,203069,"Health, Education, Care and Safeguarding",Adult Social Care,101,Third Party Payments,505,Private Contractors,5042,Revenue,22.DAY CARE SERVICES
02/10/2017,1506153,355.30,NEW PROSPECTS ASSOCIATION LIMITED,203069,"Health, Education, Care and Safeguarding",Adult Social Care,101,Third Party Payments,505,Private Contractors,5042,Revenue,22.DAY CARE SERVICES
02/10/2017,1506153,365.58,NEW PROSPECTS ASSOCIATION LIMITED,203069,"Health, Education, Care and Safeguarding",Adult Social Care,101,Third Party Payments,505,Private Contractors,5042,Revenue,22.DAY CARE SERVICES
02/10/2017,1506153,387.60,NEW PROSPECTS ASSOCIATION LIMITED,203069,"Health, Education, Care and Safeguarding",Adult Social Care,101,Third Party Payments,505,Private Contractors,5042,Revenue,22.DAY CARE SERVICES
02/10/2017,1506153,542.64,NEW PROSPECTS ASSOCIATION LIMITED,203069,"Health, Education, Care and Safeguarding",Adult Social Care,101,Third Party Payments,505,Private Contractors,5042,Revenue,22.DAY CARE SERVICES
02/10/2017,1506153,601.48,NEW PROSPECTS ASSOCIATION LIMITED,203069,"Health, Education, Care and Safeguarding",Adult Social Care,101,Third Party Payments,505,Private Contractors,5042,Revenue,22.DAY CARE SERVICES
02/10/2017,1506153,619.50,NEW PROSPECTS ASSOCIATION LIMITED,203069,"Health, Education, Care and Safeguarding",Adult Social Care,101,Third Party Payments,505,Private Contractors,5042,Revenue,22.DAY CARE SERVICES
02/10/2017,1506153,619.50,NEW PROSPECTS ASSOCIATION LIMITED,203069,"Health, Education, Care and Safeguarding",Adult Social Care,101,Third Party Payments,505,Private Contractors,5042,Revenue,22.DAY CARE SERVICES
02/10/2017,1506153,638.51,NEW PROSPECTS ASSOCIATION LIMITED,203069,"Health, Education, Care and Safeguarding",Adult Social Care,101,Third Party Payments,505,Private Contractors,5042,Revenue,22.DAY CARE SERVICES
02/10/2017,1506153,644.99,NEW PROSPECTS ASSOCIATION LIMITED,203069,"Health, Education, Care and Safeguarding",Adult Social Care,101,Third Party Payments,505,Private Contractors,5042,Revenue,22.DAY CARE SERVICES
02/10/2017,1506153,684.76,NEW PROSPECTS ASSOCIATION LIMITED,203069,"Health, Education, Care and Safeguarding",Adult Social Care,101,Third Party Payments,505,Private Contractors,5042,Revenue,22.DAY CARE SERVICES
02/10/2017,1506153,688.51,NEW PROSPECTS ASSOCIATION LIMITED,203069,"Health, Education, Care and Safeguarding",Adult Social Care,101,Third Party Payments,505,Private Contractors,5042,Revenue,22.DAY CARE SERVICES
02/10/2017,1506153,688.51,NEW PROSPECTS ASSOCIATION LIMITED,203069,"Health, Education, Care and Safeguarding",Adult Social Care,101,Third Party Payments,505,Private Contractors,5042,Revenue,22.DAY CARE SERVICES
02/10/2017,1506153,698.91,NEW PROSPECTS ASSOCIATION LIMITED,203069,"Health, Education, Care and Safeguarding",Adult Social Care,101,Third Party Payments,505,Private Contractors,5042,Revenue,22.DAY CARE SERVICES
02/10/2017,1506153,718.03,NEW PROSPECTS ASSOCIATION LIMITED,203069,"Health, Education, Care and Safeguarding",Adult Social Care,101,Third Party Payments,505,Private Contractors,5042,Revenue,22.DAY CARE SERVICES
02/10/2017,1506153,719.46,NEW PROSPECTS ASSOCIATION LIMITED,203069,"Health, Education, Care and Safeguarding",Adult Social Care,101,Third Party Payments,505,Private Contractors,5042,Revenue,22.DAY CARE SERVICES
02/10/2017,1506153,719.46,NEW PROSPECTS ASSOCIATION LIMITED,203069,"Health, Education, Care and Safeguarding",Adult Social Care,101,Third Party Payments,505,Private Contractors,5042,Revenue,22.DAY CARE SERVICES
02/10/2017,1506153,730.28,NEW PROSPECTS ASSOCIATION LIMITED,203069,"Health, Education, Care and Safeguarding",Adult Social Care,101,Third Party Payments,505,Private Contractors,5042,Revenue,22.DAY CARE SERVICES
02/10/2017,1506153,742.53,NEW PROSPECTS ASSOCIATION LIMITED,203069,"Health, Education, Care and Safeguarding",Adult Social Care,101,Third Party Payments,505,Private Contractors,5042,Revenue,22.DAY CARE SERVICES
02/10/2017,1506153,758.31,NEW PROSPECTS ASSOCIATION LIMITED,203069,"Health, Education, Care and Safeguarding",Adult Social Care,101,Third Party Payments,505,Private Contractors,5042,Revenue,22.DAY CARE SERVICES
02/10/2017,1506153,808.68,NEW PROSPECTS ASSOCIATION LIMITED,203069,"Health, Education, Care and Safeguarding",Adult Social Care,101,Third Party Payments,505,Private Contractors,5042,Revenue,22.DAY CARE SERVICES
02/10/2017,1506153,809.25,NEW PROSPECTS ASSOCIATION LIMITED,203069,"Health, Education, Care and Safeguarding",Adult Social Care,101,Third Party Payments,505,Private Contractors,5042,Revenue,22.DAY CARE SERVICES
02/10/2017,1506153,823.96,NEW PROSPECTS ASSOCIATION LIMITED,203069,"Health, Education, Care and Safeguarding",Adult Social Care,101,Third Party Payments,505,Private Contractors,5042,Revenue,22.DAY CARE SERVICES
02/10/2017,1506153,834.58,NEW PROSPECTS ASSOCIATION LIMITED,203069,"Health, Education, Care and Safeguarding",Adult Social Care,101,Third Party Payments,505,Private Contractors,5042,Revenue,22.DAY CARE SERVICES
02/10/2017,1506153,840.35,NEW PROSPECTS ASSOCIATION LIMITED,203069,"Health, Education, Care and Safeguarding",Adult Social Care,101,Third Party Payments,505,Private Contractors,5042,Revenue,22.DAY CARE SERVICES
02/10/2017,1506153,916.65,NEW PROSPECTS ASSOCIATION LIMITED,203069,"Health, Education, Care and Safeguarding",Adult Social Care,101,Third Party Payments,505,Private Contractors,5042,Revenue,22.DAY CARE SERVICES
02/10/2017,1506153,948.73,NEW PROSPECTS ASSOCIATION LIMITED,203069,"Health, Education, Care and Safeguarding",Adult Social Care,101,Third Party Payments,505,Private Contractors,5042,Revenue,22.DAY CARE SERVICES
02/10/2017,1506153,948.73,NEW PROSPECTS ASSOCIATION LIMITED,203069,"Health, Education, Care and Safeguarding",Adult Social Care,101,Third Party Payments,505,Private Contractors,5042,Revenue,22.DAY CARE SERVICES
02/10/2017,1506153,961.68,NEW PROSPECTS ASSOCIATION LIMITED,203069,"Health, Education, Care and Safeguarding",Adult Social Care,101,Third Party Payments,505,Private Contractors,5042,Revenue,22.DAY CARE SERVICES
02/10/2017,1506153,995.75,NEW PROSPECTS ASSOCIATION LIMITED,203069,"Health, Education, Care and Safeguarding",Adult Social Care,101,Third Party Payments,505,Private Contractors,5042,Revenue,22.DAY CARE SERVICES
02/10/2017,1506153,1012.26,NEW PROSPECTS ASSOCIATION LIMITED,203069,"Health, Education, Care and Safeguarding",Adult Social Care,101,Third Party Payments,505,Private Contractors,5042,Revenue,22.DAY CARE SERVICES
02/10/2017,1506153,1118.78,NEW PROSPECTS ASSOCIATION LIMITED,203069,"Health, Education, Care and Safeguarding",Adult Social Care,101,Third Party Payments,505,Private Contractors,5042,Revenue,22.DAY CARE SERVICES
02/10/2017,1506153,1175.00,NEW PROSPECTS ASSOCIATION LIMITED,203069,"Health, Education, Care and Safeguarding",Adult Social Care,101,Third Party Payments,505,Private Contractors,5042,Revenue,22.DAY CARE SERVICES
02/10/2017,1506153,1254.75,NEW PROSPECTS ASSOCIATION LIMITED,203069,"Health, Education, Care and Safeguarding",Adult Social Care,101,Third Party Payments,505,Private Contractors,5042,Revenue,22.DAY CARE SERVICES
02/10/2017,1506153,1293.60,NEW PROSPECTS ASSOCIATION LIMITED,203069,"Health, Education, Care and Safeguarding",Adult Social Care,101,Third Party Payments,505,Private Contractors,5042,Revenue,22.DAY CARE SERVICES
02/10/2017,1506153,1387.40,NEW PROSPECTS ASSOCIATION LIMITED,203069,"Health, Education, Care and Safeguarding",Adult Social Care,101,Third Party Payments,505,Private Contractors,5042,Revenue,22.DAY CARE SERVICES
02/10/2017,1506153,1469.02,NEW PROSPECTS ASSOCIATION LIMITED,203069,"Health, Education, Care and Safeguarding",Adult Social Care,101,Third Party Payments,505,Private Contractors,5042,Revenue,22.DAY CARE SERVICES
02/10/2017,1506153,1505.58,NEW PROSPECTS ASSOCIATION LIMITED,203069,"Health, Education, Care and Safeguarding",Adult Social Care,101,Third Party Payments,505,Private Contractors,5042,Revenue,22.DAY CARE SERVICES
02/10/2017,1506153,1505.58,NEW PROSPECTS ASSOCIATION LIMITED,203069,"Health, Education, Care and Safeguarding",Adult Social Care,101,Third Party Payments,505,Private Contractors,5042,Revenue,22.DAY CARE SERVICES
02/10/2017,1506153,1570.33,NEW PROSPECTS ASSOCIATION LIMITED,203069,"Health, Education, Care and Safeguarding",Adult Social Care,101,Third Party Payments,505,Private Contractors,5042,Revenue,22.DAY CARE SERVICES
02/10/2017,1506153,1779.50,NEW PROSPECTS ASSOCIATION LIMITED,203069,"Health, Education, Care and Safeguarding",Adult Social Care,101,Third Party Payments,505,Private Contractors,5042,Revenue,22.DAY CARE SERVICES
02/10/2017,1506153,1833.30,NEW PROSPECTS ASSOCIATION LIMITED,203069,"Health, Education, Care and Safeguarding",Adult Social Care,101,Third Party Payments,505,Private Contractors,5042,Revenue,22.DAY CARE SERVICES
02/10/2017,1506153,1838.20,NEW PROSPECTS ASSOCIATION LIMITED,203069,"Health, Education, Care and Safeguarding",Adult Social Care,101,Third Party Payments,505,Private Contractors,5042,Revenue,22.DAY CARE SERVICES
02/10/2017,1506153,2156.10,NEW PROSPECTS ASSOCIATION LIMITED,203069,"Health, Education, Care and Safeguarding",Adult Social Care,101,Third Party Payments,505,Private Contractors,5042,Revenue,22.DAY CARE SERVICES
02/10/2017,1506153,2485.63,NEW PROSPECTS ASSOCIATION LIMITED,203069,"Health, Education, Care and Safeguarding",Adult Social Care,101,Third Party Payments,505,Private Contractors,5042,Revenue,22.DAY CARE SERVICES
02/10/2017,1506153,2492.35,NEW PROSPECTS ASSOCIATION LIMITED,203069,"Health, Education, Care and Safeguarding",Adult Social Care,101,Third Party Payments,505,Private Contractors,5042,Revenue,22.DAY CARE SERVICES
02/10/2017,1506154,1101.96,RODWELL FARM NURSING HOME LTD,390686,"Health, Education, Care and Safeguarding",Adult Social Care,101,Third Party Payments,505,Private Contractors,5042,Revenue,22.RESIDENTIAL
02/10/2017,1506156,250.82,EVERLASTING CARE LTD,363743,"Health, Education, Care and Safeguarding",Adult Social Care,101,Third Party Payments,505,Other Establishments,5041,Revenue,22.HOMECARE
02/10/2017,1506157,3273.27,THE DAVID LEWIS CENTRE,390402,"Health, Education, Care and Safeguarding",Adult Social Care,101,Third Party Payments,505,Private Contractors,5042,Revenue,18.CONFERENCING
02/10/2017,1506158,525.00,PATHWAYS CARE GROUP,390437,"Health, Education, Care and Safeguarding",Adult Social Care,101,Third Party Payments,505,Private Contractors,5042,Revenue,22.RESIDENTIAL
02/10/2017,1506160,491.93,CHARLOTTE STRAKER PROJECT,340178,"Health, Education, Care and Safeguarding",Adult Social Care,101,Third Party Payments,505,Private Contractors,5042,Revenue,22.RESIDENTIAL
02/10/2017,1506161,-692.54,DAV HOMES LTD,390262,"Health, Education, Care and Safeguarding",Adult Social Care,101,Third Party Payments,505,Private Contractors,5042,Revenue,22.RESIDENTIAL
02/10/2017,1506161,379.63,DAV HOMES LTD,390262,"Health, Education, Care and Safeguarding",Public Health,112,Third Party Payments,505,Other Establishments,5041,Revenue,22.RESIDENTIAL
02/10/2017,1506161,520.05,DAV HOMES LTD,390262,"Health, Education, Care and Safeguarding",Adult Social Care,101,Third Party Payments,505,Private Contractors,5042,Revenue,22.RESIDENTIAL
02/10/2017,1506161,520.05,DAV HOMES LTD,390262,"Health, Education, Care and Safeguarding",Adult Social Care,101,Third Party Payments,505,Private Contractors,5042,Revenue,22.RESIDENTIAL
02/10/2017,1506161,520.05,DAV HOMES LTD,390262,"Health, Education, Care and Safeguarding",Adult Social Care,101,Third Party Payments,505,Private Contractors,5042,Revenue,22.RESIDENTIAL
02/10/2017,1506161,520.05,DAV HOMES LTD,390262,"Health, Education, Care and Safeguarding",Adult Social Care,101,Third Party Payments,505,Private Contractors,5042,Revenue,22.RESIDENTIAL
02/10/2017,1506161,520.05,DAV HOMES LTD,390262,"Health, Education, Care and Safeguarding",Adult Social Care,101,Third Party Payments,505,Private Contractors,5042,Revenue,22.RESIDENTIAL
02/10/2017,1506161,520.05,DAV HOMES LTD,390262,"Health, Education, Care and Safeguarding",Adult Social Care,101,Third Party Payments,505,Private Contractors,5042,Revenue,22.RESIDENTIAL
02/10/2017,1506161,525.00,DAV HOMES LTD,390262,"Health, Education, Care and Safeguarding",Public Health,112,Third Party Payments,505,Other Establishments,5041,Revenue,22.RESIDENTIAL
02/10/2017,1506161,538.64,DAV HOMES LTD,390262,"Health, Education, Care and Safeguarding",Adult Social Care,101,Third Party Payments,505,Private Contractors,5042,Revenue,22.RESIDENTIAL
02/10/2017,1506161,538.64,DAV HOMES LTD,390262,"Health, Education, Care and Safeguarding",Adult Social Care,101,Third Party Payments,505,Private Contractors,5042,Revenue,22.RESIDENTIAL
02/10/2017,1506161,538.64,DAV HOMES LTD,390262,"Health, Education, Care and Safeguarding",Adult Social Care,101,Third Party Payments,505,Private Contractors,5042,Revenue,22.RESIDENTIAL
02/10/2017,1506161,538.64,DAV HOMES LTD,390262,"Health, Education, Care and Safeguarding",Adult Social Care,101,Third Party Payments,505,Private Contractors,5042,Revenue,22.RESIDENTIAL
02/10/2017,1506161,538.64,DAV HOMES LTD,390262,"Health, Education, Care and Safeguarding",Adult Social Care,101,Third Party Payments,505,Private Contractors,5042,Revenue,22.RESIDENTIAL
02/10/2017,1506161,538.64,DAV HOMES LTD,390262,"Health, Education, Care and Safeguarding",Adult Social Care,101,Third Party Payments,505,Private Contractors,5042,Revenue,22.RESIDENTIAL
02/10/2017,1506161,538.64,DAV HOMES LTD,390262,"Health, Education, Care and Safeguarding",Adult Social Care,101,Third Party Payments,505,Private Contractors,5042,Revenue,22.RESIDENTIAL
02/10/2017,1506161,538.64,DAV HOMES LTD,390262,"Health, Education, Care and Safeguarding",Adult Social Care,101,Third Party Payments,505,Private Contractors,5042,Revenue,22.RESIDENTIAL
02/10/2017,1506161,538.64,DAV HOMES LTD,390262,"Health, Education, Care and Safeguarding",Adult Social Care,101,Third Party Payments,505,Private Contractors,5042,Revenue,22.RESIDENTIAL
02/10/2017,1506161,538.64,DAV HOMES LTD,390262,"Health, Education, Care and Safeguarding",Adult Social Care,101,Third Party Payments,505,Private Contractors,5042,Revenue,22.RESIDENTIAL
02/10/2017,1506161,538.64,DAV HOMES LTD,390262,"Health, Education, Care and Safeguarding",Adult Social Care,101,Third Party Payments,505,Private Contractors,5042,Revenue,22.RESIDENTIAL
02/10/2017,1506161,538.64,DAV HOMES LTD,390262,"Health, Education, Care and Safeguarding",Adult Social Care,101,Third Party Payments,505,Private Contractors,5042,Revenue,22.RESIDENTIAL
02/10/2017,1506161,560.10,DAV HOMES LTD,390262,"Health, Education, Care and Safeguarding",Adult Social Care,101,Third Party Payments,505,Private Contractors,5042,Revenue,22.RESIDENTIAL
02/10/2017,1506161,584.59,DAV HOMES LTD,390262,"Health, Education, Care and Safeguarding",Adult Social Care,101,Third Party Payments,505,Private Contractors,5042,Revenue,22.RESIDENTIAL
02/10/2017,1506161,584.59,DAV HOMES LTD,390262,"Health, Education, Care and Safeguarding",Adult Social Care,101,Third Party Payments,505,Private Contractors,5042,Revenue,22.RESIDENTIAL
02/10/2017,1506161,584.59,DAV HOMES LTD,390262,"Health, Education, Care and Safeguarding",Adult Social Care,101,Third Party Payments,505,Private Contractors,5042,Revenue,22.RESIDENTIAL
02/10/2017,1506161,584.59,DAV HOMES LTD,390262,"Health, Education, Care and Safeguarding",Adult Social Care,101,Third Party Payments,505,Private Contractors,5042,Revenue,22.RESIDENTIAL
02/10/2017,1506161,584.59,DAV HOMES LTD,390262,"Health, Education, Care and Safeguarding",Adult Social Care,101,Third Party Payments,505,Private Contractors,5042,Revenue,22.RESIDENTIAL
02/10/2017,1506161,584.59,DAV HOMES LTD,390262,"Health, Education, Care and Safeguarding",Adult Social Care,101,Third Party Payments,505,Private Contractors,5042,Revenue,22.RESIDENTIAL
02/10/2017,1506161,584.59,DAV HOMES LTD,390262,"Health, Education, Care and Safeguarding",Adult Social Care,101,Third Party Payments,505,Private Contractors,5042,Revenue,22.RESIDENTIAL
02/10/2017,1506161,584.59,DAV HOMES LTD,390262,"Health, Education, Care and Safeguarding",Adult Social Care,101,Third Party Payments,505,Private Contractors,5042,Revenue,22.RESIDENTIAL
02/10/2017,1506161,584.59,DAV HOMES LTD,390262,"Health, Education, Care and Safeguarding",Adult Social Care,101,Third Party Payments,505,Private Contractors,5042,Revenue,22.RESIDENTIAL
02/10/2017,1506161,675.10,DAV HOMES LTD,390262,"Health, Education, Care and Safeguarding",Adult Social Care,101,Third Party Payments,505,Other Establishments,5041,Revenue,22.RESIDENTIAL
02/10/2017,1506161,705.10,DAV HOMES LTD,390262,"Health, Education, Care and Safeguarding",Adult Social Care,101,Third Party Payments,505,Other Establishments,5041,Revenue,22.RESIDENTIAL
02/10/2017,1506161,705.10,DAV HOMES LTD,390262,"Health, Education, Care and Safeguarding",Adult Social Care,101,Third Party Payments,505,Other Establishments,5041,Revenue,22.RESIDENTIAL
02/10/2017,1506161,705.10,DAV HOMES LTD,390262,"Health, Education, Care and Safeguarding",Public Health,112,Third Party Payments,505,Other Establishments,5041,Revenue,22.RESIDENTIAL
02/10/2017,1506161,723.69,DAV HOMES LTD,390262,"Health, Education, Care and Safeguarding",Adult Social Care,101,Third Party Payments,505,Other Establishments,5041,Revenue,22.RESIDENTIAL
02/10/2017,1506161,723.69,DAV HOMES LTD,390262,"Health, Education, Care and Safeguarding",Public Health,112,Third Party Payments,505,Other Establishments,5041,Revenue,22.RESIDENTIAL
02/10/2017,1506161,723.69,DAV HOMES LTD,390262,"Health, Education, Care and Safeguarding",Public Health,112,Third Party Payments,505,Other Establishments,5041,Revenue,22.RESIDENTIAL
02/10/2017,1506161,723.69,DAV HOMES LTD,390262,"Health, Education, Care and Safeguarding",Public Health,112,Third Party Payments,505,Other Establishments,5041,Revenue,22.RESIDENTIAL
02/10/2017,1506161,723.69,DAV HOMES LTD,390262,"Health, Education, Care and Safeguarding",Public Health,112,Third Party Payments,505,Other Establishments,5041,Revenue,22.RESIDENTIAL
02/10/2017,1506161,723.69,DAV HOMES LTD,390262,"Health, Education, Care and Safeguarding",Public Health,112,Third Party Payments,505,Other Establishments,5041,Revenue,22.RESIDENTIAL
02/10/2017,1506161,723.69,DAV HOMES LTD,390262,"Health, Education, Care and Safeguarding",Public Health,112,Third Party Payments,505,Other Establishments,5041,Revenue,22.RESIDENTIAL
02/10/2017,1506161,747.41,DAV HOMES LTD,390262,"Health, Education, Care and Safeguarding",Public Health,112,Third Party Payments,505,Other Establishments,5041,Revenue,22.RESIDENTIAL
02/10/2017,1506161,769.64,DAV HOMES LTD,390262,"Health, Education, Care and Safeguarding",Public Health,112,Third Party Payments,505,Other Establishments,5041,Revenue,22.RESIDENTIAL
02/10/2017,1506161,837.20,DAV HOMES LTD,390262,"Health, Education, Care and Safeguarding",Adult Social Care,101,Third Party Payments,505,Private Contractors,5042,Revenue,22.RESIDENTIAL
02/10/2017,1506161,837.20,DAV HOMES LTD,390262,"Health, Education, Care and Safeguarding",Adult Social Care,101,Third Party Payments,505,Private Contractors,5042,Revenue,22.RESIDENTIAL
02/10/2017,1506161,837.20,DAV HOMES LTD,390262,"Health, Education, Care and Safeguarding",Adult Social Care,101,Third Party Payments,505,Private Contractors,5042,Revenue,22.RESIDENTIAL
02/10/2017,1506161,854.18,DAV HOMES LTD,390262,"Health, Education, Care and Safeguarding",Public Health,112,Third Party Payments,505,Other Establishments,5041,Revenue,22.RESIDENTIAL
02/10/2017,1506161,1022.25,DAV HOMES LTD,390262,"Health, Education, Care and Safeguarding",Adult Social Care,101,Third Party Payments,505,Other Establishments,5041,Revenue,22.RESIDENTIAL
02/10/2017,1506161,1022.25,DAV HOMES LTD,390262,"Health, Education, Care and Safeguarding",Adult Social Care,101,Third Party Payments,505,Other Establishments,5041,Revenue,22.RESIDENTIAL
02/10/2017,1506161,1157.31,DAV HOMES LTD,390262,"Health, Education, Care and Safeguarding",Adult Social Care,101,Third Party Payments,505,Other Establishments,5041,Revenue,22.RESIDENTIAL
02/10/2017,1506163,210.00,INSPIRED SUPPORT LIMITED,390108,"Health, Education, Care and Safeguarding",Adult Social Care,101,Third Party Payments,505,Other Establishments,5041,Revenue,22.SUPPORT SERVICES
02/10/2017,1506163,215.00,INSPIRED SUPPORT LIMITED,390108,"Health, Education, Care and Safeguarding",Adult Social Care,101,Third Party Payments,505,Other Establishments,5041,Revenue,22.SUPPORT SERVICES
02/10/2017,1506163,237.50,INSPIRED SUPPORT LIMITED,390108,"Health, Education, Care and Safeguarding",Adult Social Care,101,Third Party Payments,505,Other Establishments,5041,Revenue,22.SUPPORT SERVICES
02/10/2017,1506163,260.00,INSPIRED SUPPORT LIMITED,390108,"Health, Education, Care and Safeguarding",Adult Social Care,101,Third Party Payments,505,Other Establishments,5041,Revenue,22.SUPPORT SERVICES
02/10/2017,1506163,265.00,INSPIRED SUPPORT LIMITED,390108,"Health, Education, Care and Safeguarding",Adult Social Care,101,Third Party Payments,505,Other Establishments,5041,Revenue,22.SUPPORT SERVICES
02/10/2017,1506163,285.78,INSPIRED SUPPORT LIMITED,390108,"Health, Education, Care and Safeguarding",Adult Social Care,101,Third Party Payments,505,Other Establishments,5041,Revenue,22.SUPPORT SERVICES
02/10/2017,1506166,492.00,NEWCASTLE HOME CARE ASSOCIATES LTD,382474,"Health, Education, Care and Safeguarding",Adult Social Care,101,Third Party Payments,505,Private Contractors,5042,Revenue,22.HOMECARE
02/10/2017,1506176,333.00,SWIFT - PREPAID CARDS,299980,"Health, Education, Care and Safeguarding",Adult Social Care,101,Third Party Payments,505,Other Establishments,5041,Revenue,22.SUPPORT SERVICES
02/10/2017,1506178,1585.40,NE LIFESTYLES LTD,395210,"Health, Education, Care and Safeguarding",Adult Social Care,101,Third Party Payments,505,Private Contractors,5042,Revenue,22.RESIDENTIAL
02/10/2017,1506179,551.00,Redacted Personal Data,395082,"Health, Education, Care and Safeguarding",Adult Social Care,101,Third Party Payments,505,Private Contractors,5042,Revenue,22.RESIDENTIAL
02/10/2017,1506180,316.00,Redacted Personal Data,372033,"Health, Education, Care and Safeguarding",Adult Social Care,101,Third Party Payments,505,Other Establishments,5041,Revenue,00.NON INFLUENCIBLE
02/10/2017,1506181,450.34,Redacted Personal Data,395079,"Health, Education, Care and Safeguarding",Adult Social Care,101,Third Party Payments,505,Private Contractors,5042,Revenue,22.RESIDENTIAL
02/10/2017,1506182,495.43,Redacted Personal Data,395077,"Health, Education, Care and Safeguarding",Adult Social Care,101,Third Party Payments,505,Private Contractors,5042,Revenue,22.RESIDENTIAL
02/10/2017,1506182,650.48,Redacted Personal Data,395077,"Health, Education, Care and Safeguarding",Public Health,112,Third Party Payments,505,Other Establishments,5041,Revenue,22.RESIDENTIAL
02/10/2017,1506183,646.00,Redacted Personal Data,395039,"Health, Education, Care and Safeguarding",Adult Social Care,101,Third Party Payments,505,Private Contractors,5042,Revenue,22.RESIDENTIAL
02/10/2017,1506184,470.26,Redacted Personal Data,394963,"Health, Education, Care and Safeguarding",Adult Social Care,101,Third Party Payments,505,Private Contractors,5042,Revenue,22.RESIDENTIAL
02/10/2017,1506187,-100.65,BRIAR DENE,321950,"Health, Education, Care and Safeguarding",Adult Social Care,101,Income,509,"Other Grants, Reimbursements & Contributions",5063,Revenue,22.RESIDENTIAL
02/10/2017,1506187,890.12,BRIAR DENE,321950,"Health, Education, Care and Safeguarding",Adult Social Care,101,Third Party Payments,505,Private Contractors,5042,Revenue,22.RESIDENTIAL
02/10/2017,1506188,901.22,FOCUS SOCIAL CARE,391317,"Health, Education, Care and Safeguarding",Adult Social Care,101,Third Party Payments,505,Other Establishments,5041,Revenue,22.SUPPORT SERVICES
02/10/2017,1506188,1114.04,FOCUS SOCIAL CARE,391317,"Health, Education, Care and Safeguarding",Adult Social Care,101,Third Party Payments,505,Other Establishments,5041,Revenue,22.SUPPORT SERVICES
02/10/2017,1506189,258.54,Redacted Personal Data,376386,"Health, Education, Care and Safeguarding",Adult Social Care,101,Third Party Payments,505,Other Establishments,5041,Revenue,NON INDIVIDUAL
02/10/2017,1506189,316.00,Redacted Personal Data,376386,"Health, Education, Care and Safeguarding",Adult Social Care,101,Third Party Payments,505,Other Establishments,5041,Revenue,NON INDIVIDUAL
02/10/2017,1506190,559.39,Redacted Personal Data,394671,"Health, Education, Care and Safeguarding",Adult Social Care,101,Third Party Payments,505,Private Contractors,5042,Revenue,22.RESIDENTIAL
02/10/2017,1506191,307.79,EOTHEN HOMES LTD,276943,"Health, Education, Care and Safeguarding",Adult Social Care,101,Third Party Payments,505,Private Contractors,5042,Revenue,22.RESIDENTIAL
02/10/2017,1506191,430.91,EOTHEN HOMES LTD,276943,"Health, Education, Care and Safeguarding",Adult Social Care,101,Third Party Payments,505,Private Contractors,5042,Revenue,22.RESIDENTIAL
02/10/2017,1506191,520.05,EOTHEN HOMES LTD,276943,"Health, Education, Care and Safeguarding",Adult Social Care,101,Third Party Payments,505,Private Contractors,5042,Revenue,22.RESIDENTIAL
02/10/2017,1506191,520.05,EOTHEN HOMES LTD,276943,"Health, Education, Care and Safeguarding",Adult Social Care,101,Third Party Payments,505,Private Contractors,5042,Revenue,22.RESIDENTIAL
02/10/2017,1506191,520.05,EOTHEN HOMES LTD,276943,"Health, Education, Care and Safeguarding",Adult Social Care,101,Third Party Payments,505,Private Contractors,5042,Revenue,22.RESIDENTIAL
02/10/2017,1506191,520.05,EOTHEN HOMES LTD,276943,"Health, Education, Care and Safeguarding",Adult Social Care,101,Third Party Payments,505,Private Contractors,5042,Revenue,22.RESIDENTIAL
02/10/2017,1506191,520.05,EOTHEN HOMES LTD,276943,"Health, Education, Care and Safeguarding",Adult Social Care,101,Third Party Payments,505,Private Contractors,5042,Revenue,22.RESIDENTIAL
02/10/2017,1506191,520.05,EOTHEN HOMES LTD,276943,"Health, Education, Care and Safeguarding",Adult Social Care,101,Third Party Payments,505,Private Contractors,5042,Revenue,22.RESIDENTIAL
02/10/2017,1506191,520.05,EOTHEN HOMES LTD,276943,"Health, Education, Care and Safeguarding",Adult Social Care,101,Third Party Payments,505,Private Contractors,5042,Revenue,22.RESIDENTIAL
02/10/2017,1506191,520.05,EOTHEN HOMES LTD,276943,"Health, Education, Care and Safeguarding",Adult Social Care,101,Third Party Payments,505,Private Contractors,5042,Revenue,22.RESIDENTIAL
02/10/2017,1506191,520.05,EOTHEN HOMES LTD,276943,"Health, Education, Care and Safeguarding",Adult Social Care,101,Third Party Payments,505,Private Contractors,5042,Revenue,22.RESIDENTIAL
02/10/2017,1506191,538.64,EOTHEN HOMES LTD,276943,"Health, Education, Care and Safeguarding",Adult Social Care,101,Third Party Payments,505,Private Contractors,5042,Revenue,22.RESIDENTIAL
02/10/2017,1506191,538.64,EOTHEN HOMES LTD,276943,"Health, Education, Care and Safeguarding",Adult Social Care,101,Third Party Payments,505,Private Contractors,5042,Revenue,22.RESIDENTIAL
02/10/2017,1506191,538.64,EOTHEN HOMES LTD,276943,"Health, Education, Care and Safeguarding",Adult Social Care,101,Third Party Payments,505,Private Contractors,5042,Revenue,22.RESIDENTIAL
02/10/2017,1506191,538.64,EOTHEN HOMES LTD,276943,"Health, Education, Care and Safeguarding",Adult Social Care,101,Third Party Payments,505,Private Contractors,5042,Revenue,22.RESIDENTIAL
02/10/2017,1506191,538.64,EOTHEN HOMES LTD,276943,"Health, Education, Care and Safeguarding",Adult Social Care,101,Third Party Payments,505,Private Contractors,5042,Revenue,22.RESIDENTIAL
02/10/2017,1506191,538.64,EOTHEN HOMES LTD,276943,"Health, Education, Care and Safeguarding",Adult Social Care,101,Third Party Payments,505,Private Contractors,5042,Revenue,22.RESIDENTIAL
02/10/2017,1506191,538.64,EOTHEN HOMES LTD,276943,"Health, Education, Care and Safeguarding",Adult Social Care,101,Third Party Payments,505,Private Contractors,5042,Revenue,22.RESIDENTIAL
02/10/2017,1506191,538.64,EOTHEN HOMES LTD,276943,"Health, Education, Care and Safeguarding",Adult Social Care,101,Third Party Payments,505,Private Contractors,5042,Revenue,22.RESIDENTIAL
02/10/2017,1506191,538.64,EOTHEN HOMES LTD,276943,"Health, Education, Care and Safeguarding",Adult Social Care,101,Third Party Payments,505,Private Contractors,5042,Revenue,22.RESIDENTIAL
02/10/2017,1506191,538.64,EOTHEN HOMES LTD,276943,"Health, Education, Care and Safeguarding",Adult Social Care,101,Third Party Payments,505,Private Contractors,5042,Revenue,22.RESIDENTIAL
02/10/2017,1506191,538.64,EOTHEN HOMES LTD,276943,"Health, Education, Care and Safeguarding",Adult Social Care,101,Third Party Payments,505,Private Contractors,5042,Revenue,22.RESIDENTIAL
02/10/2017,1506191,538.64,EOTHEN HOMES LTD,276943,"Health, Education, Care and Safeguarding",Adult Social Care,101,Third Party Payments,505,Private Contractors,5042,Revenue,22.RESIDENTIAL
02/10/2017,1506191,538.64,EOTHEN HOMES LTD,276943,"Health, Education, Care and Safeguarding",Adult Social Care,101,Third Party Payments,505,Private Contractors,5042,Revenue,22.RESIDENTIAL
02/10/2017,1506191,538.64,EOTHEN HOMES LTD,276943,"Health, Education, Care and Safeguarding",Adult Social Care,101,Third Party Payments,505,Private Contractors,5042,Revenue,22.RESIDENTIAL
02/10/2017,1506191,538.64,EOTHEN HOMES LTD,276943,"Health, Education, Care and Safeguarding",Adult Social Care,101,Third Party Payments,505,Private Contractors,5042,Revenue,22.RESIDENTIAL
02/10/2017,1506192,-817.22,AKARI CARE HOMES LIMITED,387465,"Health, Education, Care and Safeguarding",Adult Social Care,101,Third Party Payments,505,Private Contractors,5042,Revenue,22.RESIDENTIAL
02/10/2017,1506192,418.41,AKARI CARE HOMES LIMITED,387465,"Health, Education, Care and Safeguarding",Adult Social Care,101,Third Party Payments,505,Private Contractors,5042,Revenue,22.RESIDENTIAL
02/10/2017,1506192,488.15,AKARI CARE HOMES LIMITED,387465,"Health, Education, Care and Safeguarding",Adult Social Care,101,Third Party Payments,505,Private Contractors,5042,Revenue,22.RESIDENTIAL
02/10/2017,1506192,488.15,AKARI CARE HOMES LIMITED,387465,"Health, Education, Care and Safeguarding",Adult Social Care,101,Third Party Payments,505,Private Contractors,5042,Revenue,22.RESIDENTIAL
02/10/2017,1506192,488.15,AKARI CARE HOMES LIMITED,387465,"Health, Education, Care and Safeguarding",Adult Social Care,101,Third Party Payments,505,Private Contractors,5042,Revenue,22.RESIDENTIAL
02/10/2017,1506192,488.15,AKARI CARE HOMES LIMITED,387465,"Health, Education, Care and Safeguarding",Adult Social Care,101,Third Party Payments,505,Private Contractors,5042,Revenue,22.RESIDENTIAL
02/10/2017,1506192,488.15,AKARI CARE HOMES LIMITED,387465,"Health, Education, Care and Safeguarding",Adult Social Care,101,Third Party Payments,505,Private Contractors,5042,Revenue,22.RESIDENTIAL
02/10/2017,1506192,488.15,AKARI CARE HOMES LIMITED,387465,"Health, Education, Care and Safeguarding",Adult Social Care,101,Third Party Payments,505,Private Contractors,5042,Revenue,22.RESIDENTIAL
02/10/2017,1506192,488.15,AKARI CARE HOMES LIMITED,387465,"Health, Education, Care and Safeguarding",Adult Social Care,101,Third Party Payments,505,Private Contractors,5042,Revenue,22.RESIDENTIAL
02/10/2017,1506192,488.15,AKARI CARE HOMES LIMITED,387465,"Health, Education, Care and Safeguarding",Adult Social Care,101,Third Party Payments,505,Private Contractors,5042,Revenue,22.RESIDENTIAL
02/10/2017,1506192,488.15,AKARI CARE HOMES LIMITED,387465,"Health, Education, Care and Safeguarding",Adult Social Care,101,Third Party Payments,505,Private Contractors,5042,Revenue,22.RESIDENTIAL
02/10/2017,1506192,488.15,AKARI CARE HOMES LIMITED,387465,"Health, Education, Care and Safeguarding",Adult Social Care,101,Third Party Payments,505,Private Contractors,5042,Revenue,22.RESIDENTIAL
02/10/2017,1506192,488.15,AKARI CARE HOMES LIMITED,387465,"Health, Education, Care and Safeguarding",Adult Social Care,101,Third Party Payments,505,Private Contractors,5042,Revenue,22.RESIDENTIAL
02/10/2017,1506192,488.15,AKARI CARE HOMES LIMITED,387465,"Health, Education, Care and Safeguarding",Adult Social Care,101,Third Party Payments,505,Private Contractors,5042,Revenue,22.RESIDENTIAL
02/10/2017,1506192,488.15,AKARI CARE HOMES LIMITED,387465,"Health, Education, Care and Safeguarding",Adult Social Care,101,Third Party Payments,505,Private Contractors,5042,Revenue,22.RESIDENTIAL
02/10/2017,1506192,488.15,AKARI CARE HOMES LIMITED,387465,"Health, Education, Care and Safeguarding",Adult Social Care,101,Third Party Payments,505,Private Contractors,5042,Revenue,22.RESIDENTIAL
02/10/2017,1506192,488.15,AKARI CARE HOMES LIMITED,387465,"Health, Education, Care and Safeguarding",Adult Social Care,101,Third Party Payments,505,Private Contractors,5042,Revenue,22.RESIDENTIAL
02/10/2017,1506192,488.15,AKARI CARE HOMES LIMITED,387465,"Health, Education, Care and Safeguarding",Adult Social Care,101,Third Party Payments,505,Private Contractors,5042,Revenue,22.RESIDENTIAL
02/10/2017,1506192,520.05,AKARI CARE HOMES LIMITED,387465,"Health, Education, Care and Safeguarding",Adult Social Care,101,Third Party Payments,505,Private Contractors,5042,Revenue,22.RESIDENTIAL
02/10/2017,1506192,520.05,AKARI CARE HOMES LIMITED,387465,"Health, Education, Care and Safeguarding",Adult Social Care,101,Third Party Payments,505,Private Contractors,5042,Revenue,22.RESIDENTIAL
02/10/2017,1506192,520.05,AKARI CARE HOMES LIMITED,387465,"Health, Education, Care and Safeguarding",Adult Social Care,101,Third Party Payments,505,Private Contractors,5042,Revenue,22.RESIDENTIAL
02/10/2017,1506192,520.05,AKARI CARE HOMES LIMITED,387465,"Health, Education, Care and Safeguarding",Adult Social Care,101,Third Party Payments,505,Private Contractors,5042,Revenue,22.RESIDENTIAL
02/10/2017,1506192,520.05,AKARI CARE HOMES LIMITED,387465,"Health, Education, Care and Safeguarding",Adult Social Care,101,Third Party Payments,505,Private Contractors,5042,Revenue,22.RESIDENTIAL
02/10/2017,1506192,520.05,AKARI CARE HOMES LIMITED,387465,"Health, Education, Care and Safeguarding",Adult Social Care,101,Third Party Payments,505,Private Contractors,5042,Revenue,22.RESIDENTIAL
02/10/2017,1506192,520.05,AKARI CARE HOMES LIMITED,387465,"Health, Education, Care and Safeguarding",Adult Social Care,101,Third Party Payments,505,Private Contractors,5042,Revenue,22.RESIDENTIAL
02/10/2017,1506192,520.05,AKARI CARE HOMES LIMITED,387465,"Health, Education, Care and Safeguarding",Adult Social Care,101,Third Party Payments,505,Private Contractors,5042,Revenue,22.RESIDENTIAL
02/10/2017,1506192,520.05,AKARI CARE HOMES LIMITED,387465,"Health, Education, Care and Safeguarding",Adult Social Care,101,Third Party Payments,505,Private Contractors,5042,Revenue,22.RESIDENTIAL
02/10/2017,1506192,520.05,AKARI CARE HOMES LIMITED,387465,"Health, Education, Care and Safeguarding",Adult Social Care,101,Third Party Payments,505,Private Contractors,5042,Revenue,22.RESIDENTIAL
02/10/2017,1506192,520.05,AKARI CARE HOMES LIMITED,387465,"Health, Education, Care and Safeguarding",Adult Social Care,101,Third Party Payments,505,Private Contractors,5042,Revenue,22.RESIDENTIAL
02/10/2017,1506192,520.05,AKARI CARE HOMES LIMITED,387465,"Health, Education, Care and Safeguarding",Adult Social Care,101,Third Party Payments,505,Private Contractors,5042,Revenue,22.RESIDENTIAL
02/10/2017,1506192,520.05,AKARI CARE HOMES LIMITED,387465,"Health, Education, Care and Safeguarding",Adult Social Care,101,Third Party Payments,505,Private Contractors,5042,Revenue,22.RESIDENTIAL
02/10/2017,1506192,520.05,AKARI CARE HOMES LIMITED,387465,"Health, Education, Care and Safeguarding",Adult Social Care,101,Third Party Payments,505,Private Contractors,5042,Revenue,22.RESIDENTIAL
02/10/2017,1506192,520.05,AKARI CARE HOMES LIMITED,387465,"Health, Education, Care and Safeguarding",Adult Social Care,101,Third Party Payments,505,Private Contractors,5042,Revenue,22.RESIDENTIAL
02/10/2017,1506192,520.05,AKARI CARE HOMES LIMITED,387465,"Health, Education, Care and Safeguarding",Adult Social Care,101,Third Party Payments,505,Private Contractors,5042,Revenue,22.RESIDENTIAL
02/10/2017,1506192,520.05,AKARI CARE HOMES LIMITED,387465,"Health, Education, Care and Safeguarding",Adult Social Care,101,Third Party Payments,505,Private Contractors,5042,Revenue,22.RESIDENTIAL
02/10/2017,1506192,520.05,AKARI CARE HOMES LIMITED,387465,"Health, Education, Care and Safeguarding",Adult Social Care,101,Third Party Payments,505,Private Contractors,5042,Revenue,22.RESIDENTIAL
02/10/2017,1506194,958.23,CREATIVE SUPPORT LTD,359340,"Health, Education, Care and Safeguarding",Adult Social Care,101,Third Party Payments,505,Private Contractors,5042,Revenue,22.HOMECARE
02/10/2017,1506194,1874.95,CREATIVE SUPPORT LTD,359340,"Health, Education, Care and Safeguarding",Adult Social Care,101,Third Party Payments,505,Private Contractors,5042,Revenue,22.HOMECARE
02/10/2017,1506195,841.96,WILKINSON PARK,322345,"Health, Education, Care and Safeguarding",Adult Social Care,101,Third Party Payments,505,Private Contractors,5042,Revenue,22.RESIDENTIAL
02/10/2017,1506195,925.41,WILKINSON PARK,322345,"Health, Education, Care and Safeguarding",Adult Social Care,101,Third Party Payments,505,Private Contractors,5042,Revenue,22.RESIDENTIAL
02/10/2017,1506195,1275.00,WILKINSON PARK,322345,"Health, Education, Care and Safeguarding",Adult Social Care,101,Third Party Payments,505,Private Contractors,5042,Revenue,22.RESIDENTIAL
02/10/2017,1506195,1633.10,WILKINSON PARK,322345,"Health, Education, Care and Safeguarding",Adult Social Care,101,Third Party Payments,505,Private Contractors,5042,Revenue,22.RESIDENTIAL
02/10/2017,1506196,497.10,HC ONE LIMITED - ASHINGTON GRANGE,394401,"Health, Education, Care and Safeguarding",Adult Social Care,101,Third Party Payments,505,Private Contractors,5042,Revenue,22.RESIDENTIAL
02/10/2017,1506197,523.60,Redacted Personal Data,394343,"Health, Education, Care and Safeguarding",Adult Social Care,101,Third Party Payments,505,Private Contractors,5042,Revenue,22.RESIDENTIAL
02/10/2017,1506198,1683.68,LEONARD CHESHIRE DISABILITY,375897,"Health, Education, Care and Safeguarding",Adult Social Care,101,Third Party Payments,505,Other Establishments,5041,Revenue,22.SUPPORT SERVICES
02/10/2017,1506199,1417.75,Redacted Personal Data,388380,"Health, Education, Care and Safeguarding",Adult Social Care,101,Third Party Payments,505,Other Establishments,5041,Revenue,00.NON INFLUENCIBLE
02/10/2017,1506200,1599.00,VOYAGE LIMITED,387358,"Health, Education, Care and Safeguarding",Adult Social Care,101,Third Party Payments,505,Private Contractors,5042,Revenue,22.RESIDENTIAL
02/10/2017,1506201,-134.45,ASPIRE HEALTHCARE,375113,"Health, Education, Care and Safeguarding",Adult Social Care,101,Income,509,"Other Grants, Reimbursements & Contributions",5063,Revenue,22.RESIDENTIAL
02/10/2017,1506201,-134.45,ASPIRE HEALTHCARE,375113,"Health, Education, Care and Safeguarding",Adult Social Care,101,Income,509,"Other Grants, Reimbursements & Contributions",5063,Revenue,22.RESIDENTIAL
02/10/2017,1506201,-134.45,ASPIRE HEALTHCARE,375113,"Health, Education, Care and Safeguarding",Adult Social Care,101,Income,509,"Other Grants, Reimbursements & Contributions",5063,Revenue,22.RESIDENTIAL
02/10/2017,1506201,-134.45,ASPIRE HEALTHCARE,375113,"Health, Education, Care and Safeguarding",Adult Social Care,101,Income,509,"Other Grants, Reimbursements & Contributions",5063,Revenue,22.RESIDENTIAL
02/10/2017,1506201,-134.45,ASPIRE HEALTHCARE,375113,"Health, Education, Care and Safeguarding",Adult Social Care,101,Income,509,"Other Grants, Reimbursements & Contributions",5063,Revenue,22.RESIDENTIAL
02/10/2017,1506201,-134.45,ASPIRE HEALTHCARE,375113,"Health, Education, Care and Safeguarding",Adult Social Care,101,Income,509,"Other Grants, Reimbursements & Contributions",5063,Revenue,22.RESIDENTIAL
02/10/2017,1506201,-128.48,ASPIRE HEALTHCARE,375113,"Health, Education, Care and Safeguarding",Adult Social Care,101,Income,509,"Other Grants, Reimbursements & Contributions",5063,Revenue,22.RESIDENTIAL
02/10/2017,1506201,-100.65,ASPIRE HEALTHCARE,375113,"Health, Education, Care and Safeguarding",Adult Social Care,101,Income,509,"Other Grants, Reimbursements & Contributions",5063,Revenue,22.RESIDENTIAL
02/10/2017,1506201,-100.15,ASPIRE HEALTHCARE,375113,"Health, Education, Care and Safeguarding",Adult Social Care,101,Income,509,"Other Grants, Reimbursements & Contributions",5063,Revenue,22.RESIDENTIAL
02/10/2017,1506201,393.00,ASPIRE HEALTHCARE,375113,"Health, Education, Care and Safeguarding",Adult Social Care,101,Third Party Payments,505,Private Contractors,5042,Revenue,22.RESIDENTIAL
02/10/2017,1506201,393.00,ASPIRE HEALTHCARE,375113,"Health, Education, Care and Safeguarding",Adult Social Care,101,Third Party Payments,505,Private Contractors,5042,Revenue,22.RESIDENTIAL
02/10/2017,1506201,401.15,ASPIRE HEALTHCARE,375113,"Health, Education, Care and Safeguarding",Adult Social Care,101,Third Party Payments,505,Private Contractors,5042,Revenue,22.RESIDENTIAL
02/10/2017,1506201,450.34,ASPIRE HEALTHCARE,375113,"Health, Education, Care and Safeguarding",Adult Social Care,101,Third Party Payments,505,Private Contractors,5042,Revenue,22.RESIDENTIAL
02/10/2017,1506201,450.34,ASPIRE HEALTHCARE,375113,"Health, Education, Care and Safeguarding",Adult Social Care,101,Third Party Payments,505,Private Contractors,5042,Revenue,22.RESIDENTIAL
02/10/2017,1506201,450.34,ASPIRE HEALTHCARE,375113,"Health, Education, Care and Safeguarding",Adult Social Care,101,Third Party Payments,505,Private Contractors,5042,Revenue,22.RESIDENTIAL
02/10/2017,1506201,450.34,ASPIRE HEALTHCARE,375113,"Health, Education, Care and Safeguarding",Adult Social Care,101,Third Party Payments,505,Private Contractors,5042,Revenue,22.RESIDENTIAL
02/10/2017,1506201,450.34,ASPIRE HEALTHCARE,375113,"Health, Education, Care and Safeguarding",Adult Social Care,101,Third Party Payments,505,Private Contractors,5042,Revenue,22.RESIDENTIAL
02/10/2017,1506201,450.34,ASPIRE HEALTHCARE,375113,"Health, Education, Care and Safeguarding",Adult Social Care,101,Third Party Payments,505,Private Contractors,5042,Revenue,22.RESIDENTIAL
02/10/2017,1506201,450.34,ASPIRE HEALTHCARE,375113,"Health, Education, Care and Safeguarding",Adult Social Care,101,Third Party Payments,505,Private Contractors,5042,Revenue,22.RESIDENTIAL
02/10/2017,1506201,450.34,ASPIRE HEALTHCARE,375113,"Health, Education, Care and Safeguarding",Adult Social Care,101,Third Party Payments,505,Private Contractors,5042,Revenue,22.RESIDENTIAL
02/10/2017,1506201,450.34,ASPIRE HEALTHCARE,375113,"Health, Education, Care and Safeguarding",Adult Social Care,101,Third Party Payments,505,Private Contractors,5042,Revenue,22.RESIDENTIAL
02/10/2017,1506192,520.05,AKARI CARE HOMES LIMITED,387465,"Health, Education, Care and Safeguarding",Adult Social Care,101,Third Party Payments,505,Private Contractors,5042,Revenue,22.RESIDENTIAL
02/10/2017,1506192,520.05,AKARI CARE HOMES LIMITED,387465,"Health, Education, Care and Safeguarding",Adult Social Care,101,Third Party Payments,505,Private Contractors,5042,Revenue,22.RESIDENTIAL
02/10/2017,1506192,520.05,AKARI CARE HOMES LIMITED,387465,"Health, Education, Care and Safeguarding",Adult Social Care,101,Third Party Payments,505,Private Contractors,5042,Revenue,22.RESIDENTIAL
02/10/2017,1506192,520.05,AKARI CARE HOMES LIMITED,387465,"Health, Education, Care and Safeguarding",Adult Social Care,101,Third Party Payments,505,Private Contractors,5042,Revenue,22.RESIDENTIAL
02/10/2017,1506192,520.05,AKARI CARE HOMES LIMITED,387465,"Health, Education, Care and Safeguarding",Adult Social Care,101,Third Party Payments,505,Private Contractors,5042,Revenue,22.RESIDENTIAL
02/10/2017,1506192,520.05,AKARI CARE HOMES LIMITED,387465,"Health, Education, Care and Safeguarding",Adult Social Care,101,Third Party Payments,505,Private Contractors,5042,Revenue,22.RESIDENTIAL
02/10/2017,1506192,520.05,AKARI CARE HOMES LIMITED,387465,"Health, Education, Care and Safeguarding",Adult Social Care,101,Third Party Payments,505,Private Contractors,5042,Revenue,22.RESIDENTIAL
02/10/2017,1506192,520.05,AKARI CARE HOMES LIMITED,387465,"Health, Education, Care and Safeguarding",Adult Social Care,101,Third Party Payments,505,Private Contractors,5042,Revenue,22.RESIDENTIAL
02/10/2017,1506192,520.05,AKARI CARE HOMES LIMITED,387465,"Health, Education, Care and Safeguarding",Adult Social Care,101,Third Party Payments,505,Private Contractors,5042,Revenue,22.RESIDENTIAL
02/10/2017,1506192,520.05,AKARI CARE HOMES LIMITED,387465,"Health, Education, Care and Safeguarding",Adult Social Care,101,Third Party Payments,505,Private Contractors,5042,Revenue,22.RESIDENTIAL
02/10/2017,1506192,520.05,AKARI CARE HOMES LIMITED,387465,"Health, Education, Care and Safeguarding",Adult Social Care,101,Third Party Payments,505,Private Contractors,5042,Revenue,22.RESIDENTIAL
02/10/2017,1506192,520.05,AKARI CARE HOMES LIMITED,387465,"Health, Education, Care and Safeguarding",Adult Social Care,101,Third Party Payments,505,Private Contractors,5042,Revenue,22.RESIDENTIAL
02/10/2017,1506192,520.05,AKARI CARE HOMES LIMITED,387465,"Health, Education, Care and Safeguarding",Adult Social Care,101,Third Party Payments,505,Private Contractors,5042,Revenue,22.RESIDENTIAL
02/10/2017,1506192,520.05,AKARI CARE HOMES LIMITED,387465,"Health, Education, Care and Safeguarding",Adult Social Care,101,Third Party Payments,505,Private Contractors,5042,Revenue,22.RESIDENTIAL
02/10/2017,1506192,520.05,AKARI CARE HOMES LIMITED,387465,"Health, Education, Care and Safeguarding",Adult Social Care,101,Third Party Payments,505,Private Contractors,5042,Revenue,22.RESIDENTIAL
02/10/2017,1506192,520.05,AKARI CARE HOMES LIMITED,387465,"Health, Education, Care and Safeguarding",Adult Social Care,101,Third Party Payments,505,Private Contractors,5042,Revenue,22.RESIDENTIAL
02/10/2017,1506192,520.05,AKARI CARE HOMES LIMITED,387465,"Health, Education, Care and Safeguarding",Adult Social Care,101,Third Party Payments,505,Private Contractors,5042,Revenue,22.RESIDENTIAL
02/10/2017,1506192,520.05,AKARI CARE HOMES LIMITED,387465,"Health, Education, Care and Safeguarding",Adult Social Care,101,Third Party Payments,505,Private Contractors,5042,Revenue,22.RESIDENTIAL
02/10/2017,1506192,520.05,AKARI CARE HOMES LIMITED,387465,"Health, Education, Care and Safeguarding",Adult Social Care,101,Third Party Payments,505,Private Contractors,5042,Revenue,22.RESIDENTIAL
02/10/2017,1506192,520.05,AKARI CARE HOMES LIMITED,387465,"Health, Education, Care and Safeguarding",Adult Social Care,101,Third Party Payments,505,Private Contractors,5042,Revenue,22.RESIDENTIAL
02/10/2017,1506192,520.05,AKARI CARE HOMES LIMITED,387465,"Health, Education, Care and Safeguarding",Adult Social Care,101,Third Party Payments,505,Private Contractors,5042,Revenue,22.RESIDENTIAL
02/10/2017,1506192,520.05,AKARI CARE HOMES LIMITED,387465,"Health, Education, Care and Safeguarding",Adult Social Care,101,Third Party Payments,505,Private Contractors,5042,Revenue,22.RESIDENTIAL
02/10/2017,1506192,520.05,AKARI CARE HOMES LIMITED,387465,"Health, Education, Care and Safeguarding",Adult Social Care,101,Third Party Payments,505,Private Contractors,5042,Revenue,22.RESIDENTIAL
02/10/2017,1506192,520.05,AKARI CARE HOMES LIMITED,387465,"Health, Education, Care and Safeguarding",Adult Social Care,101,Third Party Payments,505,Private Contractors,5042,Revenue,22.RESIDENTIAL
02/10/2017,1506192,520.05,AKARI CARE HOMES LIMITED,387465,"Health, Education, Care and Safeguarding",Adult Social Care,101,Third Party Payments,505,Private Contractors,5042,Revenue,22.RESIDENTIAL
02/10/2017,1506192,520.05,AKARI CARE HOMES LIMITED,387465,"Health, Education, Care and Safeguarding",Adult Social Care,101,Third Party Payments,505,Private Contractors,5042,Revenue,22.RESIDENTIAL
02/10/2017,1506192,520.05,AKARI CARE HOMES LIMITED,387465,"Health, Education, Care and Safeguarding",Adult Social Care,101,Third Party Payments,505,Private Contractors,5042,Revenue,22.RESIDENTIAL
02/10/2017,1506192,520.05,AKARI CARE HOMES LIMITED,387465,"Health, Education, Care and Safeguarding",Adult Social Care,101,Third Party Payments,505,Private Contractors,5042,Revenue,22.RESIDENTIAL
02/10/2017,1506192,520.05,AKARI CARE HOMES LIMITED,387465,"Health, Education, Care and Safeguarding",Adult Social Care,101,Third Party Payments,505,Private Contractors,5042,Revenue,22.RESIDENTIAL
02/10/2017,1506192,520.05,AKARI CARE HOMES LIMITED,387465,"Health, Education, Care and Safeguarding",Adult Social Care,101,Third Party Payments,505,Private Contractors,5042,Revenue,22.RESIDENTIAL
02/10/2017,1506192,520.05,AKARI CARE HOMES LIMITED,387465,"Health, Education, Care and Safeguarding",Adult Social Care,101,Third Party Payments,505,Private Contractors,5042,Revenue,22.RESIDENTIAL
02/10/2017,1506192,520.05,AKARI CARE HOMES LIMITED,387465,"Health, Education, Care and Safeguarding",Adult Social Care,101,Third Party Payments,505,Private Contractors,5042,Revenue,22.RESIDENTIAL
02/10/2017,1506192,520.05,AKARI CARE HOMES LIMITED,387465,"Health, Education, Care and Safeguarding",Adult Social Care,101,Third Party Payments,505,Private Contractors,5042,Revenue,22.RESIDENTIAL
02/10/2017,1506192,520.05,AKARI CARE HOMES LIMITED,387465,"Health, Education, Care and Safeguarding",Adult Social Care,101,Third Party Payments,505,Private Contractors,5042,Revenue,22.RESIDENTIAL
02/10/2017,1506192,520.05,AKARI CARE HOMES LIMITED,387465,"Health, Education, Care and Safeguarding",Adult Social Care,101,Third Party Payments,505,Private Contractors,5042,Revenue,22.RESIDENTIAL
02/10/2017,1506192,538.64,AKARI CARE HOMES LIMITED,387465,"Health, Education, Care and Safeguarding",Adult Social Care,101,Third Party Payments,505,Private Contractors,5042,Revenue,22.RESIDENTIAL
02/10/2017,1506192,538.64,AKARI CARE HOMES LIMITED,387465,"Health, Education, Care and Safeguarding",Adult Social Care,101,Third Party Payments,505,Private Contractors,5042,Revenue,22.RESIDENTIAL
02/10/2017,1506192,538.64,AKARI CARE HOMES LIMITED,387465,"Health, Education, Care and Safeguarding",Adult Social Care,101,Third Party Payments,505,Private Contractors,5042,Revenue,22.RESIDENTIAL
02/10/2017,1506192,538.64,AKARI CARE HOMES LIMITED,387465,"Health, Education, Care and Safeguarding",Adult Social Care,101,Third Party Payments,505,Private Contractors,5042,Revenue,22.RESIDENTIAL
02/10/2017,1506192,538.64,AKARI CARE HOMES LIMITED,387465,"Health, Education, Care and Safeguarding",Adult Social Care,101,Third Party Payments,505,Private Contractors,5042,Revenue,22.RESIDENTIAL
02/10/2017,1506192,538.64,AKARI CARE HOMES LIMITED,387465,"Health, Education, Care and Safeguarding",Adult Social Care,101,Third Party Payments,505,Private Contractors,5042,Revenue,22.RESIDENTIAL
02/10/2017,1506192,538.64,AKARI CARE HOMES LIMITED,387465,"Health, Education, Care and Safeguarding",Adult Social Care,101,Third Party Payments,505,Private Contractors,5042,Revenue,22.RESIDENTIAL
02/10/2017,1506192,538.64,AKARI CARE HOMES LIMITED,387465,"Health, Education, Care and Safeguarding",Adult Social Care,101,Third Party Payments,505,Private Contractors,5042,Revenue,22.RESIDENTIAL
02/10/2017,1506192,538.64,AKARI CARE HOMES LIMITED,387465,"Health, Education, Care and Safeguarding",Adult Social Care,101,Third Party Payments,505,Private Contractors,5042,Revenue,22.RESIDENTIAL
02/10/2017,1506192,538.64,AKARI CARE HOMES LIMITED,387465,"Health, Education, Care and Safeguarding",Adult Social Care,101,Third Party Payments,505,Private Contractors,5042,Revenue,22.RESIDENTIAL
02/10/2017,1506192,538.64,AKARI CARE HOMES LIMITED,387465,"Health, Education, Care and Safeguarding",Adult Social Care,101,Third Party Payments,505,Private Contractors,5042,Revenue,22.RESIDENTIAL
02/10/2017,1506192,538.64,AKARI CARE HOMES LIMITED,387465,"Health, Education, Care and Safeguarding",Adult Social Care,101,Third Party Payments,505,Private Contractors,5042,Revenue,22.RESIDENTIAL
02/10/2017,1506192,538.64,AKARI CARE HOMES LIMITED,387465,"Health, Education, Care and Safeguarding",Adult Social Care,101,Third Party Payments,505,Private Contractors,5042,Revenue,22.RESIDENTIAL
02/10/2017,1506192,538.64,AKARI CARE HOMES LIMITED,387465,"Health, Education, Care and Safeguarding",Adult Social Care,101,Third Party Payments,505,Private Contractors,5042,Revenue,22.RESIDENTIAL
02/10/2017,1506192,538.64,AKARI CARE HOMES LIMITED,387465,"Health, Education, Care and Safeguarding",Adult Social Care,101,Third Party Payments,505,Private Contractors,5042,Revenue,22.RESIDENTIAL
02/10/2017,1506192,538.64,AKARI CARE HOMES LIMITED,387465,"Health, Education, Care and Safeguarding",Adult Social Care,101,Third Party Payments,505,Private Contractors,5042,Revenue,22.RESIDENTIAL
02/10/2017,1506192,538.64,AKARI CARE HOMES LIMITED,387465,"Health, Education, Care and Safeguarding",Adult Social Care,101,Third Party Payments,505,Private Contractors,5042,Revenue,22.RESIDENTIAL
02/10/2017,1506192,538.64,AKARI CARE HOMES LIMITED,387465,"Health, Education, Care and Safeguarding",Adult Social Care,101,Third Party Payments,505,Private Contractors,5042,Revenue,22.RESIDENTIAL
02/10/2017,1506192,538.64,AKARI CARE HOMES LIMITED,387465,"Health, Education, Care and Safeguarding",Adult Social Care,101,Third Party Payments,505,Private Contractors,5042,Revenue,22.RESIDENTIAL
02/10/2017,1506192,538.64,AKARI CARE HOMES LIMITED,387465,"Health, Education, Care and Safeguarding",Adult Social Care,101,Third Party Payments,505,Private Contractors,5042,Revenue,22.RESIDENTIAL
02/10/2017,1506192,538.64,AKARI CARE HOMES LIMITED,387465,"Health, Education, Care and Safeguarding",Adult Social Care,101,Third Party Payments,505,Private Contractors,5042,Revenue,22.RESIDENTIAL
02/10/2017,1506192,538.64,AKARI CARE HOMES LIMITED,387465,"Health, Education, Care and Safeguarding",Adult Social Care,101,Third Party Payments,505,Private Contractors,5042,Revenue,22.RESIDENTIAL
02/10/2017,1506192,538.64,AKARI CARE HOMES LIMITED,387465,"Health, Education, Care and Safeguarding",Adult Social Care,101,Third Party Payments,505,Private Contractors,5042,Revenue,22.RESIDENTIAL
02/10/2017,1506192,538.64,AKARI CARE HOMES LIMITED,387465,"Health, Education, Care and Safeguarding",Adult Social Care,101,Third Party Payments,505,Private Contractors,5042,Revenue,22.RESIDENTIAL
02/10/2017,1506192,538.64,AKARI CARE HOMES LIMITED,387465,"Health, Education, Care and Safeguarding",Adult Social Care,101,Third Party Payments,505,Private Contractors,5042,Revenue,22.RESIDENTIAL
02/10/2017,1506192,538.64,AKARI CARE HOMES LIMITED,387465,"Health, Education, Care and Safeguarding",Adult Social Care,101,Third Party Payments,505,Private Contractors,5042,Revenue,22.RESIDENTIAL
02/10/2017,1506192,538.64,AKARI CARE HOMES LIMITED,387465,"Health, Education, Care and Safeguarding",Adult Social Care,101,Third Party Payments,505,Private Contractors,5042,Revenue,22.RESIDENTIAL
02/10/2017,1506192,538.64,AKARI CARE HOMES LIMITED,387465,"Health, Education, Care and Safeguarding",Adult Social Care,101,Third Party Payments,505,Private Contractors,5042,Revenue,22.RESIDENTIAL
02/10/2017,1506192,538.64,AKARI CARE HOMES LIMITED,387465,"Health, Education, Care and Safeguarding",Adult Social Care,101,Third Party Payments,505,Private Contractors,5042,Revenue,22.RESIDENTIAL
02/10/2017,1506192,538.86,AKARI CARE HOMES LIMITED,387465,"Health, Education, Care and Safeguarding",Adult Social Care,101,Third Party Payments,505,Private Contractors,5042,Revenue,22.RESIDENTIAL
02/10/2017,1506192,538.86,AKARI CARE HOMES LIMITED,387465,"Health, Education, Care and Safeguarding",Adult Social Care,101,Third Party Payments,505,Private Contractors,5042,Revenue,22.RESIDENTIAL
02/10/2017,1506192,538.86,AKARI CARE HOMES LIMITED,387465,"Health, Education, Care and Safeguarding",Adult Social Care,101,Third Party Payments,505,Private Contractors,5042,Revenue,22.RESIDENTIAL
02/10/2017,1506192,538.86,AKARI CARE HOMES LIMITED,387465,"Health, Education, Care and Safeguarding",Adult Social Care,101,Third Party Payments,505,Private Contractors,5042,Revenue,22.RESIDENTIAL
02/10/2017,1506192,538.86,AKARI CARE HOMES LIMITED,387465,"Health, Education, Care and Safeguarding",Adult Social Care,101,Third Party Payments,505,Private Contractors,5042,Revenue,22.RESIDENTIAL
02/10/2017,1506192,615.50,AKARI CARE HOMES LIMITED,387465,"Health, Education, Care and Safeguarding",Public Health,112,Third Party Payments,505,Other Establishments,5041,Revenue,22.RESIDENTIAL
02/10/2017,1506192,643.20,AKARI CARE HOMES LIMITED,387465,"Health, Education, Care and Safeguarding",Adult Social Care,101,Third Party Payments,505,Other Establishments,5041,Revenue,22.RESIDENTIAL
02/10/2017,1506192,643.20,AKARI CARE HOMES LIMITED,387465,"Health, Education, Care and Safeguarding",Adult Social Care,101,Third Party Payments,505,Other Establishments,5041,Revenue,22.RESIDENTIAL
02/10/2017,1506192,643.20,AKARI CARE HOMES LIMITED,387465,"Health, Education, Care and Safeguarding",Adult Social Care,101,Third Party Payments,505,Other Establishments,5041,Revenue,22.RESIDENTIAL
02/10/2017,1506192,663.12,AKARI CARE HOMES LIMITED,387465,"Health, Education, Care and Safeguarding",Public Health,112,Third Party Payments,505,Other Establishments,5041,Revenue,22.RESIDENTIAL
02/10/2017,1506192,668.10,AKARI CARE HOMES LIMITED,387465,"Health, Education, Care and Safeguarding",Public Health,112,Third Party Payments,505,Other Establishments,5041,Revenue,22.RESIDENTIAL
02/10/2017,1506192,673.20,AKARI CARE HOMES LIMITED,387465,"Health, Education, Care and Safeguarding",Public Health,112,Third Party Payments,505,Other Establishments,5041,Revenue,22.RESIDENTIAL
02/10/2017,1506192,673.20,AKARI CARE HOMES LIMITED,387465,"Health, Education, Care and Safeguarding",Public Health,112,Third Party Payments,505,Other Establishments,5041,Revenue,22.RESIDENTIAL
02/10/2017,1506192,673.20,AKARI CARE HOMES LIMITED,387465,"Health, Education, Care and Safeguarding",Public Health,112,Third Party Payments,505,Other Establishments,5041,Revenue,22.RESIDENTIAL
02/10/2017,1506192,673.20,AKARI CARE HOMES LIMITED,387465,"Health, Education, Care and Safeguarding",Public Health,112,Third Party Payments,505,Other Establishments,5041,Revenue,22.RESIDENTIAL
02/10/2017,1506192,673.20,AKARI CARE HOMES LIMITED,387465,"Health, Education, Care and Safeguarding",Public Health,112,Third Party Payments,505,Other Establishments,5041,Revenue,22.RESIDENTIAL
02/10/2017,1506192,673.20,AKARI CARE HOMES LIMITED,387465,"Health, Education, Care and Safeguarding",Public Health,112,Third Party Payments,505,Other Establishments,5041,Revenue,22.RESIDENTIAL
02/10/2017,1506192,673.20,AKARI CARE HOMES LIMITED,387465,"Health, Education, Care and Safeguarding",Public Health,112,Third Party Payments,505,Other Establishments,5041,Revenue,22.RESIDENTIAL
02/10/2017,1506192,675.10,AKARI CARE HOMES LIMITED,387465,"Health, Education, Care and Safeguarding",Adult Social Care,101,Third Party Payments,505,Other Establishments,5041,Revenue,22.RESIDENTIAL
02/10/2017,1506192,675.10,AKARI CARE HOMES LIMITED,387465,"Health, Education, Care and Safeguarding",Adult Social Care,101,Third Party Payments,505,Other Establishments,5041,Revenue,22.RESIDENTIAL
02/10/2017,1506192,675.10,AKARI CARE HOMES LIMITED,387465,"Health, Education, Care and Safeguarding",Adult Social Care,101,Third Party Payments,505,Other Establishments,5041,Revenue,22.RESIDENTIAL
02/10/2017,1506192,675.10,AKARI CARE HOMES LIMITED,387465,"Health, Education, Care and Safeguarding",Adult Social Care,101,Third Party Payments,505,Other Establishments,5041,Revenue,22.RESIDENTIAL
02/10/2017,1506192,675.10,AKARI CARE HOMES LIMITED,387465,"Health, Education, Care and Safeguarding",Adult Social Care,101,Third Party Payments,505,Other Establishments,5041,Revenue,22.RESIDENTIAL
02/10/2017,1506192,675.10,AKARI CARE HOMES LIMITED,387465,"Health, Education, Care and Safeguarding",Public Health,112,Third Party Payments,505,Other Establishments,5041,Revenue,22.RESIDENTIAL
02/10/2017,1506192,703.25,AKARI CARE HOMES LIMITED,387465,"Health, Education, Care and Safeguarding",Public Health,112,Third Party Payments,505,Other Establishments,5041,Revenue,22.RESIDENTIAL
02/10/2017,1506192,705.10,AKARI CARE HOMES LIMITED,387465,"Health, Education, Care and Safeguarding",Adult Social Care,101,Third Party Payments,505,Other Establishments,5041,Revenue,22.RESIDENTIAL
02/10/2017,1506192,705.10,AKARI CARE HOMES LIMITED,387465,"Health, Education, Care and Safeguarding",Adult Social Care,101,Third Party Payments,505,Other Establishments,5041,Revenue,22.RESIDENTIAL
02/10/2017,1506192,705.10,AKARI CARE HOMES LIMITED,387465,"Health, Education, Care and Safeguarding",Public Health,112,Third Party Payments,505,Other Establishments,5041,Revenue,22.RESIDENTIAL
02/10/2017,1506192,705.10,AKARI CARE HOMES LIMITED,387465,"Health, Education, Care and Safeguarding",Public Health,112,Third Party Payments,505,Other Establishments,5041,Revenue,22.RESIDENTIAL
02/10/2017,1506192,705.10,AKARI CARE HOMES LIMITED,387465,"Health, Education, Care and Safeguarding",Public Health,112,Third Party Payments,505,Other Establishments,5041,Revenue,22.RESIDENTIAL
02/10/2017,1506192,705.10,AKARI CARE HOMES LIMITED,387465,"Health, Education, Care and Safeguarding",Public Health,112,Third Party Payments,505,Other Establishments,5041,Revenue,22.RESIDENTIAL
02/10/2017,1506192,705.10,AKARI CARE HOMES LIMITED,387465,"Health, Education, Care and Safeguarding",Public Health,112,Third Party Payments,505,Other Establishments,5041,Revenue,22.RESIDENTIAL
02/10/2017,1506192,705.10,AKARI CARE HOMES LIMITED,387465,"Health, Education, Care and Safeguarding",Public Health,112,Third Party Payments,505,Other Establishments,5041,Revenue,22.RESIDENTIAL
02/10/2017,1506192,705.10,AKARI CARE HOMES LIMITED,387465,"Health, Education, Care and Safeguarding",Public Health,112,Third Party Payments,505,Other Establishments,5041,Revenue,22.RESIDENTIAL
02/10/2017,1506192,705.10,AKARI CARE HOMES LIMITED,387465,"Health, Education, Care and Safeguarding",Public Health,112,Third Party Payments,505,Other Establishments,5041,Revenue,22.RESIDENTIAL
02/10/2017,1506192,705.10,AKARI CARE HOMES LIMITED,387465,"Health, Education, Care and Safeguarding",Public Health,112,Third Party Payments,505,Other Establishments,5041,Revenue,22.RESIDENTIAL
02/10/2017,1506192,705.10,AKARI CARE HOMES LIMITED,387465,"Health, Education, Care and Safeguarding",Public Health,112,Third Party Payments,505,Other Establishments,5041,Revenue,22.RESIDENTIAL
02/10/2017,1506192,705.10,AKARI CARE HOMES LIMITED,387465,"Health, Education, Care and Safeguarding",Public Health,112,Third Party Payments,505,Other Establishments,5041,Revenue,22.RESIDENTIAL
02/10/2017,1506192,705.10,AKARI CARE HOMES LIMITED,387465,"Health, Education, Care and Safeguarding",Public Health,112,Third Party Payments,505,Other Establishments,5041,Revenue,22.RESIDENTIAL
02/10/2017,1506192,723.69,AKARI CARE HOMES LIMITED,387465,"Health, Education, Care and Safeguarding",Public Health,112,Third Party Payments,505,Other Establishments,5041,Revenue,22.RESIDENTIAL
02/10/2017,1506192,723.91,AKARI CARE HOMES LIMITED,387465,"Health, Education, Care and Safeguarding",Public Health,112,Third Party Payments,505,Other Establishments,5041,Revenue,22.RESIDENTIAL
02/10/2017,1506192,723.91,AKARI CARE HOMES LIMITED,387465,"Health, Education, Care and Safeguarding",Public Health,112,Third Party Payments,505,Other Establishments,5041,Revenue,22.RESIDENTIAL
02/10/2017,1506192,723.91,AKARI CARE HOMES LIMITED,387465,"Health, Education, Care and Safeguarding",Public Health,112,Third Party Payments,505,Other Establishments,5041,Revenue,22.RESIDENTIAL
02/10/2017,1506192,762.05,AKARI CARE HOMES LIMITED,387465,"Health, Education, Care and Safeguarding",Public Health,112,Third Party Payments,505,Other Establishments,5041,Revenue,22.RESIDENTIAL
02/10/2017,1506192,846.43,AKARI CARE HOMES LIMITED,387465,"Health, Education, Care and Safeguarding",Adult Social Care,101,Third Party Payments,505,Private Contractors,5042,Revenue,22.RESIDENTIAL
02/10/2017,1506192,1560.15,AKARI CARE HOMES LIMITED,387465,"Health, Education, Care and Safeguarding",Adult Social Care,101,Third Party Payments,505,Private Contractors,5042,Revenue,22.RESIDENTIAL
02/10/2017,1506193,500.00,Redacted Personal Data,394653,"Health, Education, Care and Safeguarding",Adult Social Care,101,Third Party Payments,505,Private Contractors,5042,Revenue,22.RESIDENTIAL
02/10/2017,1506194,485.63,CREATIVE SUPPORT LTD,359340,"Health, Education, Care and Safeguarding",Adult Social Care,101,Third Party Payments,505,Private Contractors,5042,Revenue,22.HOMECARE
02/10/2017,1506194,504.35,CREATIVE SUPPORT LTD,359340,"Health, Education, Care and Safeguarding",Adult Social Care,101,Third Party Payments,505,Private Contractors,5042,Revenue,22.HOMECARE
02/10/2017,1506194,517.30,CREATIVE SUPPORT LTD,359340,"Health, Education, Care and Safeguarding",Adult Social Care,101,Third Party Payments,505,Private Contractors,5042,Revenue,22.HOMECARE
02/10/2017,1506194,530.25,CREATIVE SUPPORT LTD,359340,"Health, Education, Care and Safeguarding",Adult Social Care,101,Third Party Payments,505,Private Contractors,5042,Revenue,22.HOMECARE
02/10/2017,1506194,582.05,CREATIVE SUPPORT LTD,359340,"Health, Education, Care and Safeguarding",Adult Social Care,101,Third Party Payments,505,Private Contractors,5042,Revenue,22.HOMECARE
02/10/2017,1506194,645.99,CREATIVE SUPPORT LTD,359340,"Health, Education, Care and Safeguarding",Adult Social Care,101,Third Party Payments,505,Private Contractors,5042,Revenue,22.HOMECARE
02/10/2017,1506201,450.34,ASPIRE HEALTHCARE,375113,"Health, Education, Care and Safeguarding",Adult Social Care,101,Third Party Payments,505,Private Contractors,5042,Revenue,22.RESIDENTIAL
02/10/2017,1506201,450.34,ASPIRE HEALTHCARE,375113,"Health, Education, Care and Safeguarding",Adult Social Care,101,Third Party Payments,505,Private Contractors,5042,Revenue,22.RESIDENTIAL
02/10/2017,1506201,450.34,ASPIRE HEALTHCARE,375113,"Health, Education, Care and Safeguarding",Adult Social Care,101,Third Party Payments,505,Private Contractors,5042,Revenue,22.RESIDENTIAL
02/10/2017,1506201,450.34,ASPIRE HEALTHCARE,375113,"Health, Education, Care and Safeguarding",Adult Social Care,101,Third Party Payments,505,Private Contractors,5042,Revenue,22.RESIDENTIAL
02/10/2017,1506201,450.34,ASPIRE HEALTHCARE,375113,"Health, Education, Care and Safeguarding",Adult Social Care,101,Third Party Payments,505,Private Contractors,5042,Revenue,22.RESIDENTIAL
02/10/2017,1506201,450.34,ASPIRE HEALTHCARE,375113,"Health, Education, Care and Safeguarding",Adult Social Care,101,Third Party Payments,505,Private Contractors,5042,Revenue,22.RESIDENTIAL
02/10/2017,1506201,491.30,ASPIRE HEALTHCARE,375113,"Health, Education, Care and Safeguarding",Adult Social Care,101,Third Party Payments,505,Private Contractors,5042,Revenue,22.RESIDENTIAL
02/10/2017,1506201,495.55,ASPIRE HEALTHCARE,375113,"Health, Education, Care and Safeguarding",Adult Social Care,101,Third Party Payments,505,Private Contractors,5042,Revenue,22.RESIDENTIAL
02/10/2017,1506201,495.55,ASPIRE HEALTHCARE,375113,"Health, Education, Care and Safeguarding",Adult Social Care,101,Third Party Payments,505,Private Contractors,5042,Revenue,22.RESIDENTIAL
02/10/2017,1506201,566.22,ASPIRE HEALTHCARE,375113,"Health, Education, Care and Safeguarding",Adult Social Care,101,Third Party Payments,505,Private Contractors,5042,Revenue,22.RESIDENTIAL
02/10/2017,1506201,594.76,ASPIRE HEALTHCARE,375113,"Health, Education, Care and Safeguarding",Adult Social Care,101,Third Party Payments,505,Private Contractors,5042,Revenue,22.RESIDENTIAL
02/10/2017,1506201,594.76,ASPIRE HEALTHCARE,375113,"Health, Education, Care and Safeguarding",Adult Social Care,101,Third Party Payments,505,Private Contractors,5042,Revenue,22.RESIDENTIAL
02/10/2017,1506201,594.76,ASPIRE HEALTHCARE,375113,"Health, Education, Care and Safeguarding",Adult Social Care,101,Third Party Payments,505,Private Contractors,5042,Revenue,22.RESIDENTIAL
02/10/2017,1506201,727.28,ASPIRE HEALTHCARE,375113,"Health, Education, Care and Safeguarding",Adult Social Care,101,Third Party Payments,505,Private Contractors,5042,Revenue,22.RESIDENTIAL
02/10/2017,1506201,756.18,ASPIRE HEALTHCARE,375113,"Health, Education, Care and Safeguarding",Adult Social Care,101,Third Party Payments,505,Private Contractors,5042,Revenue,22.RESIDENTIAL
02/10/2017,1506201,835.95,ASPIRE HEALTHCARE,375113,"Health, Education, Care and Safeguarding",Adult Social Care,101,Third Party Payments,505,Private Contractors,5042,Revenue,22.RESIDENTIAL
02/10/2017,1506201,875.00,ASPIRE HEALTHCARE,375113,"Health, Education, Care and Safeguarding",Adult Social Care,101,Third Party Payments,505,Private Contractors,5042,Revenue,22.RESIDENTIAL
02/10/2017,1506201,1157.05,ASPIRE HEALTHCARE,375113,"Health, Education, Care and Safeguarding",Adult Social Care,101,Third Party Payments,505,Private Contractors,5042,Revenue,22.RESIDENTIAL
02/10/2017,1506201,1205.40,ASPIRE HEALTHCARE,375113,"Health, Education, Care and Safeguarding",Adult Social Care,101,Third Party Payments,505,Private Contractors,5042,Revenue,22.RESIDENTIAL
02/10/2017,1506201,1229.15,ASPIRE HEALTHCARE,375113,"Health, Education, Care and Safeguarding",Adult Social Care,101,Third Party Payments,505,Private Contractors,5042,Revenue,22.RESIDENTIAL
02/10/2017,1506201,1629.55,ASPIRE HEALTHCARE,375113,"Health, Education, Care and Safeguarding",Adult Social Care,101,Third Party Payments,505,Private Contractors,5042,Revenue,22.RESIDENTIAL
02/10/2017,1506201,1759.85,ASPIRE HEALTHCARE,375113,"Health, Education, Care and Safeguarding",Adult Social Care,101,Third Party Payments,505,Private Contractors,5042,Revenue,22.RESIDENTIAL
02/10/2017,1506201,1776.05,ASPIRE HEALTHCARE,375113,"Health, Education, Care and Safeguarding",Adult Social Care,101,Third Party Payments,505,Private Contractors,5042,Revenue,22.RESIDENTIAL
02/10/2017,1506201,1798.50,ASPIRE HEALTHCARE,375113,"Health, Education, Care and Safeguarding",Adult Social Care,101,Third Party Payments,505,Private Contractors,5042,Revenue,22.RESIDENTIAL
02/10/2017,1506201,1798.50,ASPIRE HEALTHCARE,375113,"Health, Education, Care and Safeguarding",Adult Social Care,101,Third Party Payments,505,Private Contractors,5042,Revenue,22.RESIDENTIAL
02/10/2017,1506201,1899.67,ASPIRE HEALTHCARE,375113,"Health, Education, Care and Safeguarding",Adult Social Care,101,Third Party Payments,505,Private Contractors,5042,Revenue,22.RESIDENTIAL
02/10/2017,1506201,1899.67,ASPIRE HEALTHCARE,375113,"Health, Education, Care and Safeguarding",Adult Social Care,101,Third Party Payments,505,Private Contractors,5042,Revenue,22.RESIDENTIAL
02/10/2017,1506205,554.55,DERWENT CARE HOME,388802,"Health, Education, Care and Safeguarding",Adult Social Care,101,Third Party Payments,505,Private Contractors,5042,Revenue,00.NON INFLUENCIBLE
02/10/2017,1506208,450.34,MELROSE HOUSE,388684,"Health, Education, Care and Safeguarding",Adult Social Care,101,Third Party Payments,505,Private Contractors,5042,Revenue,22.RESIDENTIAL
02/10/2017,1506208,450.34,MELROSE HOUSE,388684,"Health, Education, Care and Safeguarding",Adult Social Care,101,Third Party Payments,505,Private Contractors,5042,Revenue,22.RESIDENTIAL
02/10/2017,1506208,450.34,MELROSE HOUSE,388684,"Health, Education, Care and Safeguarding",Adult Social Care,101,Third Party Payments,505,Private Contractors,5042,Revenue,22.RESIDENTIAL
02/10/2017,1506208,450.34,MELROSE HOUSE,388684,"Health, Education, Care and Safeguarding",Adult Social Care,101,Third Party Payments,505,Private Contractors,5042,Revenue,22.RESIDENTIAL
02/10/2017,1506208,450.34,MELROSE HOUSE,388684,"Health, Education, Care and Safeguarding",Adult Social Care,101,Third Party Payments,505,Private Contractors,5042,Revenue,22.RESIDENTIAL
02/10/2017,1506208,450.34,MELROSE HOUSE,388684,"Health, Education, Care and Safeguarding",Adult Social Care,101,Third Party Payments,505,Private Contractors,5042,Revenue,22.RESIDENTIAL
02/10/2017,1506208,460.00,MELROSE HOUSE,388684,"Health, Education, Care and Safeguarding",Adult Social Care,101,Third Party Payments,505,Private Contractors,5042,Revenue,22.RESIDENTIAL
02/10/2017,1506211,1004.08,Redacted Personal Data,388436,"Health, Education, Care and Safeguarding",Adult Social Care,101,Third Party Payments,505,Other Establishments,5041,Revenue,00.NON INFLUENCIBLE
02/10/2017,1506214,1896.65,HOMECAREDIRECT,380128,"Health, Education, Care and Safeguarding",Adult Social Care,101,Third Party Payments,505,Private Contractors,5042,Revenue,00.NON INFLUENCIBLE
02/10/2017,1506215,487.01,BUPA CARE HOMES,365785,"Health, Education, Care and Safeguarding",Adult Social Care,101,Third Party Payments,505,Private Contractors,5042,Revenue,22.RESIDENTIAL
02/10/2017,1506216,629.16,BONDCARE - DE BALLIOL,388231,"Health, Education, Care and Safeguarding",Adult Social Care,101,Third Party Payments,505,Other Establishments,5041,Revenue,22.RESIDENTIAL
02/10/2017,1506220,416.44,FLEXIBLE SUPPORT OPTIONS UK LIMITED,342478,"Health, Education, Care and Safeguarding",Adult Social Care,101,Third Party Payments,505,Other Establishments,5041,Revenue,22.SUPPORT SERVICES
02/10/2017,1506220,454.65,FLEXIBLE SUPPORT OPTIONS UK LIMITED,342478,"Health, Education, Care and Safeguarding",Adult Social Care,101,Third Party Payments,505,Other Establishments,5041,Revenue,22.SUPPORT SERVICES
02/10/2017,1506220,700.14,FLEXIBLE SUPPORT OPTIONS UK LIMITED,342478,"Health, Education, Care and Safeguarding",Adult Social Care,101,Third Party Payments,505,Private Contractors,5042,Revenue,22.SUPPORT SERVICES
02/10/2017,1506220,700.14,FLEXIBLE SUPPORT OPTIONS UK LIMITED,342478,"Health, Education, Care and Safeguarding",Adult Social Care,101,Third Party Payments,505,Private Contractors,5042,Revenue,22.SUPPORT SERVICES
02/10/2017,1506220,748.80,FLEXIBLE SUPPORT OPTIONS UK LIMITED,342478,"Health, Education, Care and Safeguarding",Adult Social Care,101,Third Party Payments,505,Private Contractors,5042,Revenue,22.SUPPORT SERVICES
02/10/2017,1506220,1833.30,FLEXIBLE SUPPORT OPTIONS UK LIMITED,342478,"Health, Education, Care and Safeguarding",Adult Social Care,101,Third Party Payments,505,Other Establishments,5041,Revenue,22.SUPPORT SERVICES
02/10/2017,1506220,2774.14,FLEXIBLE SUPPORT OPTIONS UK LIMITED,342478,"Health, Education, Care and Safeguarding",Adult Social Care,101,Third Party Payments,505,Private Contractors,5042,Revenue,22.SUPPORT SERVICES
02/10/2017,1506223,282.08,RICHMOND FELLOWSHIP LTD,018025,"Health, Education, Care and Safeguarding",Adult Social Care,101,Third Party Payments,505,Other Establishments,5041,Revenue,22.RESIDENTIAL
02/10/2017,1506223,821.15,RICHMOND FELLOWSHIP LTD,018025,"Health, Education, Care and Safeguarding",Adult Social Care,101,Third Party Payments,505,Private Contractors,5042,Revenue,22.RESIDENTIAL
02/10/2017,1506224,2442.30,NORTH EAST AUTISM SOCIETY,329004,"Health, Education, Care and Safeguarding",Adult Social Care,101,Third Party Payments,505,Private Contractors,5042,Revenue,22.SUPPORT SERVICES
02/10/2017,1506224,2846.15,NORTH EAST AUTISM SOCIETY,329004,"Health, Education, Care and Safeguarding",Adult Social Care,101,Third Party Payments,505,Private Contractors,5042,Revenue,22.SUPPORT SERVICES
02/10/2017,1506226,1323.92,Redacted Personal Data,386860,"Health, Education, Care and Safeguarding",Adult Social Care,101,Third Party Payments,505,Other Establishments,5041,Revenue,00.NON INFLUENCIBLE
02/10/2017,1506228,511.67,CARE HOMES UK LTD,387674,"Health, Education, Care and Safeguarding",Adult Social Care,101,Third Party Payments,505,Private Contractors,5042,Revenue,22.RESIDENTIAL
02/10/2017,1506228,511.67,CARE HOMES UK LTD,387674,"Health, Education, Care and Safeguarding",Adult Social Care,101,Third Party Payments,505,Private Contractors,5042,Revenue,22.RESIDENTIAL
02/10/2017,1506228,511.67,CARE HOMES UK LTD,387674,"Health, Education, Care and Safeguarding",Adult Social Care,101,Third Party Payments,505,Private Contractors,5042,Revenue,22.RESIDENTIAL
02/10/2017,1506228,533.93,CARE HOMES UK LTD,387674,"Health, Education, Care and Safeguarding",Adult Social Care,101,Third Party Payments,505,Private Contractors,5042,Revenue,22.RESIDENTIAL
02/10/2017,1506228,950.24,CARE HOMES UK LTD,387674,"Health, Education, Care and Safeguarding",Adult Social Care,101,Third Party Payments,505,Private Contractors,5042,Revenue,22.RESIDENTIAL
02/10/2017,1506231,457.36,ROSEBERRY CARE CENTRES,387542,"Health, Education, Care and Safeguarding",Adult Social Care,101,Third Party Payments,505,Private Contractors,5042,Revenue,22.RESIDENTIAL
02/10/2017,1506231,457.36,ROSEBERRY CARE CENTRES,387542,"Health, Education, Care and Safeguarding",Adult Social Care,101,Third Party Payments,505,Private Contractors,5042,Revenue,22.RESIDENTIAL
02/10/2017,1506231,457.36,ROSEBERRY CARE CENTRES,387542,"Health, Education, Care and Safeguarding",Adult Social Care,101,Third Party Payments,505,Private Contractors,5042,Revenue,22.RESIDENTIAL
02/10/2017,1506231,457.36,ROSEBERRY CARE CENTRES,387542,"Health, Education, Care and Safeguarding",Adult Social Care,101,Third Party Payments,505,Private Contractors,5042,Revenue,22.RESIDENTIAL
02/10/2017,1506231,457.36,ROSEBERRY CARE CENTRES,387542,"Health, Education, Care and Safeguarding",Adult Social Care,101,Third Party Payments,505,Private Contractors,5042,Revenue,22.RESIDENTIAL
02/10/2017,1506231,457.36,ROSEBERRY CARE CENTRES,387542,"Health, Education, Care and Safeguarding",Adult Social Care,101,Third Party Payments,505,Private Contractors,5042,Revenue,22.RESIDENTIAL
02/10/2017,1506231,457.36,ROSEBERRY CARE CENTRES,387542,"Health, Education, Care and Safeguarding",Adult Social Care,101,Third Party Payments,505,Private Contractors,5042,Revenue,22.RESIDENTIAL
02/10/2017,1506231,457.36,ROSEBERRY CARE CENTRES,387542,"Health, Education, Care and Safeguarding",Adult Social Care,101,Third Party Payments,505,Private Contractors,5042,Revenue,22.RESIDENTIAL
02/10/2017,1506231,457.36,ROSEBERRY CARE CENTRES,387542,"Health, Education, Care and Safeguarding",Adult Social Care,101,Third Party Payments,505,Private Contractors,5042,Revenue,22.RESIDENTIAL
02/10/2017,1506231,457.36,ROSEBERRY CARE CENTRES,387542,"Health, Education, Care and Safeguarding",Adult Social Care,101,Third Party Payments,505,Private Contractors,5042,Revenue,22.RESIDENTIAL
02/10/2017,1506231,457.36,ROSEBERRY CARE CENTRES,387542,"Health, Education, Care and Safeguarding",Adult Social Care,101,Third Party Payments,505,Private Contractors,5042,Revenue,22.RESIDENTIAL
02/10/2017,1506231,457.36,ROSEBERRY CARE CENTRES,387542,"Health, Education, Care and Safeguarding",Adult Social Care,101,Third Party Payments,505,Private Contractors,5042,Revenue,22.RESIDENTIAL
02/10/2017,1506231,457.36,ROSEBERRY CARE CENTRES,387542,"Health, Education, Care and Safeguarding",Adult Social Care,101,Third Party Payments,505,Private Contractors,5042,Revenue,22.RESIDENTIAL
02/10/2017,1506231,457.36,ROSEBERRY CARE CENTRES,387542,"Health, Education, Care and Safeguarding",Adult Social Care,101,Third Party Payments,505,Private Contractors,5042,Revenue,22.RESIDENTIAL
02/10/2017,1506231,457.36,ROSEBERRY CARE CENTRES,387542,"Health, Education, Care and Safeguarding",Adult Social Care,101,Third Party Payments,505,Private Contractors,5042,Revenue,22.RESIDENTIAL
02/10/2017,1506234,538.64,CARE UK COMMUNITY PARTNERSHIPS LIMITED,330181,"Health, Education, Care and Safeguarding",Adult Social Care,101,Third Party Payments,505,Private Contractors,5042,Revenue,22.RESIDENTIAL
02/10/2017,1506234,538.64,CARE UK COMMUNITY PARTNERSHIPS LIMITED,330181,"Health, Education, Care and Safeguarding",Adult Social Care,101,Third Party Payments,505,Private Contractors,5042,Revenue,22.RESIDENTIAL
02/10/2017,1506234,538.64,CARE UK COMMUNITY PARTNERSHIPS LIMITED,330181,"Health, Education, Care and Safeguarding",Adult Social Care,101,Third Party Payments,505,Private Contractors,5042,Revenue,22.RESIDENTIAL
02/10/2017,1506234,538.64,CARE UK COMMUNITY PARTNERSHIPS LIMITED,330181,"Health, Education, Care and Safeguarding",Adult Social Care,101,Third Party Payments,505,Private Contractors,5042,Revenue,22.RESIDENTIAL
02/10/2017,1506234,538.64,CARE UK COMMUNITY PARTNERSHIPS LIMITED,330181,"Health, Education, Care and Safeguarding",Adult Social Care,101,Third Party Payments,505,Private Contractors,5042,Revenue,22.RESIDENTIAL
02/10/2017,1506234,538.64,CARE UK COMMUNITY PARTNERSHIPS LIMITED,330181,"Health, Education, Care and Safeguarding",Adult Social Care,101,Third Party Payments,505,Private Contractors,5042,Revenue,22.RESIDENTIAL
02/10/2017,1506234,538.64,CARE UK COMMUNITY PARTNERSHIPS LIMITED,330181,"Health, Education, Care and Safeguarding",Adult Social Care,101,Third Party Payments,505,Private Contractors,5042,Revenue,22.RESIDENTIAL
02/10/2017,1506234,538.64,CARE UK COMMUNITY PARTNERSHIPS LIMITED,330181,"Health, Education, Care and Safeguarding",Adult Social Care,101,Third Party Payments,505,Private Contractors,5042,Revenue,22.RESIDENTIAL
02/10/2017,1506234,538.64,CARE UK COMMUNITY PARTNERSHIPS LIMITED,330181,"Health, Education, Care and Safeguarding",Adult Social Care,101,Third Party Payments,505,Private Contractors,5042,Revenue,22.RESIDENTIAL
02/10/2017,1506234,538.64,CARE UK COMMUNITY PARTNERSHIPS LIMITED,330181,"Health, Education, Care and Safeguarding",Adult Social Care,101,Third Party Payments,505,Private Contractors,5042,Revenue,22.RESIDENTIAL
02/10/2017,1506234,538.64,CARE UK COMMUNITY PARTNERSHIPS LIMITED,330181,"Health, Education, Care and Safeguarding",Adult Social Care,101,Third Party Payments,505,Private Contractors,5042,Revenue,22.RESIDENTIAL
02/10/2017,1506234,538.64,CARE UK COMMUNITY PARTNERSHIPS LIMITED,330181,"Health, Education, Care and Safeguarding",Adult Social Care,101,Third Party Payments,505,Private Contractors,5042,Revenue,22.RESIDENTIAL
02/10/2017,1506234,538.64,CARE UK COMMUNITY PARTNERSHIPS LIMITED,330181,"Health, Education, Care and Safeguarding",Adult Social Care,101,Third Party Payments,505,Private Contractors,5042,Revenue,22.RESIDENTIAL
02/10/2017,1506234,538.64,CARE UK COMMUNITY PARTNERSHIPS LIMITED,330181,"Health, Education, Care and Safeguarding",Adult Social Care,101,Third Party Payments,505,Private Contractors,5042,Revenue,22.RESIDENTIAL
02/10/2017,1506234,538.64,CARE UK COMMUNITY PARTNERSHIPS LIMITED,330181,"Health, Education, Care and Safeguarding",Adult Social Care,101,Third Party Payments,505,Private Contractors,5042,Revenue,22.RESIDENTIAL
02/10/2017,1506234,538.64,CARE UK COMMUNITY PARTNERSHIPS LIMITED,330181,"Health, Education, Care and Safeguarding",Adult Social Care,101,Third Party Payments,505,Private Contractors,5042,Revenue,22.RESIDENTIAL
02/10/2017,1506234,538.64,CARE UK COMMUNITY PARTNERSHIPS LIMITED,330181,"Health, Education, Care and Safeguarding",Adult Social Care,101,Third Party Payments,505,Private Contractors,5042,Revenue,22.RESIDENTIAL
02/10/2017,1506234,538.64,CARE UK COMMUNITY PARTNERSHIPS LIMITED,330181,"Health, Education, Care and Safeguarding",Adult Social Care,101,Third Party Payments,505,Private Contractors,5042,Revenue,22.RESIDENTIAL
02/10/2017,1506234,538.64,CARE UK COMMUNITY PARTNERSHIPS LIMITED,330181,"Health, Education, Care and Safeguarding",Adult Social Care,101,Third Party Payments,505,Private Contractors,5042,Revenue,22.RESIDENTIAL
02/10/2017,1506234,675.10,CARE UK COMMUNITY PARTNERSHIPS LIMITED,330181,"Health, Education, Care and Safeguarding",Adult Social Care,101,Third Party Payments,505,Other Establishments,5041,Revenue,22.RESIDENTIAL
02/10/2017,1506235,584.59,KENTON MANOR CARE HOME,387534,"Health, Education, Care and Safeguarding",Adult Social Care,101,Third Party Payments,505,Private Contractors,5042,Revenue,22.RESIDENTIAL
02/10/2017,1506236,529.04,BONDCARE SHAFTESBURY LTD,387477,"Health, Education, Care and Safeguarding",Adult Social Care,101,Third Party Payments,505,Private Contractors,5042,Revenue,22.RESIDENTIAL
02/10/2017,1506236,552.89,BONDCARE SHAFTESBURY LTD,387477,"Health, Education, Care and Safeguarding",Adult Social Care,101,Third Party Payments,505,Private Contractors,5042,Revenue,22.RESIDENTIAL
02/10/2017,1506237,307.79,PRESTWICK CARE LTD,387214,"Health, Education, Care and Safeguarding",Adult Social Care,101,Third Party Payments,505,Private Contractors,5042,Revenue,22.RESIDENTIAL
02/10/2017,1506237,360.00,PRESTWICK CARE LTD,387214,"Health, Education, Care and Safeguarding",Public Health,112,Third Party Payments,505,Other Establishments,5041,Revenue,22.RESIDENTIAL
02/10/2017,1506237,430.91,PRESTWICK CARE LTD,387214,"Health, Education, Care and Safeguarding",Adult Social Care,101,Third Party Payments,505,Private Contractors,5042,Revenue,22.RESIDENTIAL
02/10/2017,1506237,477.08,PRESTWICK CARE LTD,387214,"Health, Education, Care and Safeguarding",Adult Social Care,101,Third Party Payments,505,Private Contractors,5042,Revenue,22.RESIDENTIAL
02/10/2017,1506237,498.75,PRESTWICK CARE LTD,387214,"Health, Education, Care and Safeguarding",Public Health,112,Third Party Payments,505,Other Establishments,5041,Revenue,22.RESIDENTIAL
02/10/2017,1506237,520.05,PRESTWICK CARE LTD,387214,"Health, Education, Care and Safeguarding",Adult Social Care,101,Third Party Payments,505,Private Contractors,5042,Revenue,22.RESIDENTIAL
02/10/2017,1506237,520.05,PRESTWICK CARE LTD,387214,"Health, Education, Care and Safeguarding",Adult Social Care,101,Third Party Payments,505,Private Contractors,5042,Revenue,22.RESIDENTIAL
02/10/2017,1506237,520.05,PRESTWICK CARE LTD,387214,"Health, Education, Care and Safeguarding",Adult Social Care,101,Third Party Payments,505,Private Contractors,5042,Revenue,22.RESIDENTIAL
02/10/2017,1506231,457.36,ROSEBERRY CARE CENTRES,387542,"Health, Education, Care and Safeguarding",Adult Social Care,101,Third Party Payments,505,Private Contractors,5042,Revenue,22.RESIDENTIAL
02/10/2017,1506231,594.91,ROSEBERRY CARE CENTRES,387542,"Health, Education, Care and Safeguarding",Adult Social Care,101,Third Party Payments,505,Other Establishments,5041,Revenue,22.RESIDENTIAL
02/10/2017,1506231,613.61,ROSEBERRY CARE CENTRES,387542,"Health, Education, Care and Safeguarding",Adult Social Care,101,Third Party Payments,505,Private Contractors,5042,Revenue,22.RESIDENTIAL
02/10/2017,1506231,642.41,ROSEBERRY CARE CENTRES,387542,"Health, Education, Care and Safeguarding",Public Health,112,Third Party Payments,505,Other Establishments,5041,Revenue,22.RESIDENTIAL
02/10/2017,1506232,348.68,ROSEBERRY CARE CENTRES,387541,"Health, Education, Care and Safeguarding",Adult Social Care,101,Third Party Payments,505,Private Contractors,5042,Revenue,22.RESIDENTIAL
02/10/2017,1506232,488.15,ROSEBERRY CARE CENTRES,387541,"Health, Education, Care and Safeguarding",Adult Social Care,101,Third Party Payments,505,Private Contractors,5042,Revenue,22.RESIDENTIAL
02/10/2017,1506232,488.15,ROSEBERRY CARE CENTRES,387541,"Health, Education, Care and Safeguarding",Adult Social Care,101,Third Party Payments,505,Private Contractors,5042,Revenue,22.RESIDENTIAL
02/10/2017,1506232,488.15,ROSEBERRY CARE CENTRES,387541,"Health, Education, Care and Safeguarding",Adult Social Care,101,Third Party Payments,505,Private Contractors,5042,Revenue,22.RESIDENTIAL
02/10/2017,1506232,488.15,ROSEBERRY CARE CENTRES,387541,"Health, Education, Care and Safeguarding",Adult Social Care,101,Third Party Payments,505,Private Contractors,5042,Revenue,22.RESIDENTIAL
02/10/2017,1506232,488.15,ROSEBERRY CARE CENTRES,387541,"Health, Education, Care and Safeguarding",Adult Social Care,101,Third Party Payments,505,Private Contractors,5042,Revenue,22.RESIDENTIAL
02/10/2017,1506232,488.15,ROSEBERRY CARE CENTRES,387541,"Health, Education, Care and Safeguarding",Adult Social Care,101,Third Party Payments,505,Private Contractors,5042,Revenue,22.RESIDENTIAL
02/10/2017,1506232,488.15,ROSEBERRY CARE CENTRES,387541,"Health, Education, Care and Safeguarding",Adult Social Care,101,Third Party Payments,505,Private Contractors,5042,Revenue,22.RESIDENTIAL
02/10/2017,1506232,508.70,ROSEBERRY CARE CENTRES,387541,"Health, Education, Care and Safeguarding",Adult Social Care,101,Third Party Payments,505,Private Contractors,5042,Revenue,22.RESIDENTIAL
02/10/2017,1506232,508.70,ROSEBERRY CARE CENTRES,387541,"Health, Education, Care and Safeguarding",Adult Social Care,101,Third Party Payments,505,Private Contractors,5042,Revenue,22.RESIDENTIAL
02/10/2017,1506232,508.70,ROSEBERRY CARE CENTRES,387541,"Health, Education, Care and Safeguarding",Adult Social Care,101,Third Party Payments,505,Private Contractors,5042,Revenue,22.RESIDENTIAL
02/10/2017,1506232,508.70,ROSEBERRY CARE CENTRES,387541,"Health, Education, Care and Safeguarding",Adult Social Care,101,Third Party Payments,505,Private Contractors,5042,Revenue,22.RESIDENTIAL
02/10/2017,1506232,508.70,ROSEBERRY CARE CENTRES,387541,"Health, Education, Care and Safeguarding",Adult Social Care,101,Third Party Payments,505,Private Contractors,5042,Revenue,22.RESIDENTIAL
02/10/2017,1506232,508.70,ROSEBERRY CARE CENTRES,387541,"Health, Education, Care and Safeguarding",Adult Social Care,101,Third Party Payments,505,Private Contractors,5042,Revenue,22.RESIDENTIAL
02/10/2017,1506232,508.70,ROSEBERRY CARE CENTRES,387541,"Health, Education, Care and Safeguarding",Adult Social Care,101,Third Party Payments,505,Private Contractors,5042,Revenue,22.RESIDENTIAL
02/10/2017,1506232,508.70,ROSEBERRY CARE CENTRES,387541,"Health, Education, Care and Safeguarding",Adult Social Care,101,Third Party Payments,505,Private Contractors,5042,Revenue,22.RESIDENTIAL
02/10/2017,1506233,520.05,COUNTRYWIDE CARE HOMES LIMITED,387540,"Health, Education, Care and Safeguarding",Adult Social Care,101,Third Party Payments,505,Private Contractors,5042,Revenue,22.RESIDENTIAL
02/10/2017,1506233,520.05,COUNTRYWIDE CARE HOMES LIMITED,387540,"Health, Education, Care and Safeguarding",Adult Social Care,101,Third Party Payments,505,Private Contractors,5042,Revenue,22.RESIDENTIAL
02/10/2017,1506233,520.05,COUNTRYWIDE CARE HOMES LIMITED,387540,"Health, Education, Care and Safeguarding",Adult Social Care,101,Third Party Payments,505,Private Contractors,5042,Revenue,22.RESIDENTIAL
02/10/2017,1506233,520.05,COUNTRYWIDE CARE HOMES LIMITED,387540,"Health, Education, Care and Safeguarding",Adult Social Care,101,Third Party Payments,505,Private Contractors,5042,Revenue,22.RESIDENTIAL
02/10/2017,1506233,520.05,COUNTRYWIDE CARE HOMES LIMITED,387540,"Health, Education, Care and Safeguarding",Adult Social Care,101,Third Party Payments,505,Private Contractors,5042,Revenue,22.RESIDENTIAL
02/10/2017,1506233,520.05,COUNTRYWIDE CARE HOMES LIMITED,387540,"Health, Education, Care and Safeguarding",Adult Social Care,101,Third Party Payments,505,Private Contractors,5042,Revenue,22.RESIDENTIAL
02/10/2017,1506233,520.05,COUNTRYWIDE CARE HOMES LIMITED,387540,"Health, Education, Care and Safeguarding",Adult Social Care,101,Third Party Payments,505,Private Contractors,5042,Revenue,22.RESIDENTIAL
02/10/2017,1506233,520.05,COUNTRYWIDE CARE HOMES LIMITED,387540,"Health, Education, Care and Safeguarding",Adult Social Care,101,Third Party Payments,505,Private Contractors,5042,Revenue,22.RESIDENTIAL
02/10/2017,1506233,520.05,COUNTRYWIDE CARE HOMES LIMITED,387540,"Health, Education, Care and Safeguarding",Adult Social Care,101,Third Party Payments,505,Private Contractors,5042,Revenue,22.RESIDENTIAL
02/10/2017,1506233,520.05,COUNTRYWIDE CARE HOMES LIMITED,387540,"Health, Education, Care and Safeguarding",Adult Social Care,101,Third Party Payments,505,Private Contractors,5042,Revenue,22.RESIDENTIAL
02/10/2017,1506233,520.05,COUNTRYWIDE CARE HOMES LIMITED,387540,"Health, Education, Care and Safeguarding",Adult Social Care,101,Third Party Payments,505,Private Contractors,5042,Revenue,22.RESIDENTIAL
02/10/2017,1506233,538.64,COUNTRYWIDE CARE HOMES LIMITED,387540,"Health, Education, Care and Safeguarding",Adult Social Care,101,Third Party Payments,505,Private Contractors,5042,Revenue,22.RESIDENTIAL
02/10/2017,1506233,538.64,COUNTRYWIDE CARE HOMES LIMITED,387540,"Health, Education, Care and Safeguarding",Adult Social Care,101,Third Party Payments,505,Private Contractors,5042,Revenue,22.RESIDENTIAL
02/10/2017,1506233,538.64,COUNTRYWIDE CARE HOMES LIMITED,387540,"Health, Education, Care and Safeguarding",Adult Social Care,101,Third Party Payments,505,Private Contractors,5042,Revenue,22.RESIDENTIAL
02/10/2017,1506233,538.64,COUNTRYWIDE CARE HOMES LIMITED,387540,"Health, Education, Care and Safeguarding",Adult Social Care,101,Third Party Payments,505,Private Contractors,5042,Revenue,22.RESIDENTIAL
02/10/2017,1506233,538.64,COUNTRYWIDE CARE HOMES LIMITED,387540,"Health, Education, Care and Safeguarding",Adult Social Care,101,Third Party Payments,505,Private Contractors,5042,Revenue,22.RESIDENTIAL
02/10/2017,1506233,538.64,COUNTRYWIDE CARE HOMES LIMITED,387540,"Health, Education, Care and Safeguarding",Adult Social Care,101,Third Party Payments,505,Private Contractors,5042,Revenue,22.RESIDENTIAL
02/10/2017,1506233,538.64,COUNTRYWIDE CARE HOMES LIMITED,387540,"Health, Education, Care and Safeguarding",Adult Social Care,101,Third Party Payments,505,Private Contractors,5042,Revenue,22.RESIDENTIAL
02/10/2017,1506233,538.64,COUNTRYWIDE CARE HOMES LIMITED,387540,"Health, Education, Care and Safeguarding",Adult Social Care,101,Third Party Payments,505,Private Contractors,5042,Revenue,22.RESIDENTIAL
02/10/2017,1506233,538.64,COUNTRYWIDE CARE HOMES LIMITED,387540,"Health, Education, Care and Safeguarding",Adult Social Care,101,Third Party Payments,505,Private Contractors,5042,Revenue,22.RESIDENTIAL
02/10/2017,1506233,538.64,COUNTRYWIDE CARE HOMES LIMITED,387540,"Health, Education, Care and Safeguarding",Adult Social Care,101,Third Party Payments,505,Private Contractors,5042,Revenue,22.RESIDENTIAL
02/10/2017,1506233,538.64,COUNTRYWIDE CARE HOMES LIMITED,387540,"Health, Education, Care and Safeguarding",Adult Social Care,101,Third Party Payments,505,Private Contractors,5042,Revenue,22.RESIDENTIAL
02/10/2017,1506233,538.64,COUNTRYWIDE CARE HOMES LIMITED,387540,"Health, Education, Care and Safeguarding",Adult Social Care,101,Third Party Payments,505,Private Contractors,5042,Revenue,22.RESIDENTIAL
02/10/2017,1506233,538.64,COUNTRYWIDE CARE HOMES LIMITED,387540,"Health, Education, Care and Safeguarding",Adult Social Care,101,Third Party Payments,505,Private Contractors,5042,Revenue,22.RESIDENTIAL
02/10/2017,1506233,1560.15,COUNTRYWIDE CARE HOMES LIMITED,387540,"Health, Education, Care and Safeguarding",Adult Social Care,101,Third Party Payments,505,Private Contractors,5042,Revenue,22.RESIDENTIAL
02/10/2017,1506234,297.17,CARE UK COMMUNITY PARTNERSHIPS LIMITED,330181,"Health, Education, Care and Safeguarding",Adult Social Care,101,Third Party Payments,505,Private Contractors,5042,Revenue,22.RESIDENTIAL
02/10/2017,1506234,307.79,CARE UK COMMUNITY PARTNERSHIPS LIMITED,330181,"Health, Education, Care and Safeguarding",Adult Social Care,101,Third Party Payments,505,Private Contractors,5042,Revenue,22.RESIDENTIAL
02/10/2017,1506234,520.05,CARE UK COMMUNITY PARTNERSHIPS LIMITED,330181,"Health, Education, Care and Safeguarding",Adult Social Care,101,Third Party Payments,505,Private Contractors,5042,Revenue,22.RESIDENTIAL
02/10/2017,1506234,520.05,CARE UK COMMUNITY PARTNERSHIPS LIMITED,330181,"Health, Education, Care and Safeguarding",Adult Social Care,101,Third Party Payments,505,Private Contractors,5042,Revenue,22.RESIDENTIAL
02/10/2017,1506234,520.05,CARE UK COMMUNITY PARTNERSHIPS LIMITED,330181,"Health, Education, Care and Safeguarding",Adult Social Care,101,Third Party Payments,505,Private Contractors,5042,Revenue,22.RESIDENTIAL
02/10/2017,1506234,520.05,CARE UK COMMUNITY PARTNERSHIPS LIMITED,330181,"Health, Education, Care and Safeguarding",Adult Social Care,101,Third Party Payments,505,Private Contractors,5042,Revenue,22.RESIDENTIAL
02/10/2017,1506234,520.05,CARE UK COMMUNITY PARTNERSHIPS LIMITED,330181,"Health, Education, Care and Safeguarding",Adult Social Care,101,Third Party Payments,505,Private Contractors,5042,Revenue,22.RESIDENTIAL
02/10/2017,1506234,520.05,CARE UK COMMUNITY PARTNERSHIPS LIMITED,330181,"Health, Education, Care and Safeguarding",Adult Social Care,101,Third Party Payments,505,Private Contractors,5042,Revenue,22.RESIDENTIAL
02/10/2017,1506234,520.05,CARE UK COMMUNITY PARTNERSHIPS LIMITED,330181,"Health, Education, Care and Safeguarding",Adult Social Care,101,Third Party Payments,505,Private Contractors,5042,Revenue,22.RESIDENTIAL
02/10/2017,1506234,520.05,CARE UK COMMUNITY PARTNERSHIPS LIMITED,330181,"Health, Education, Care and Safeguarding",Adult Social Care,101,Third Party Payments,505,Private Contractors,5042,Revenue,22.RESIDENTIAL
02/10/2017,1506234,520.05,CARE UK COMMUNITY PARTNERSHIPS LIMITED,330181,"Health, Education, Care and Safeguarding",Adult Social Care,101,Third Party Payments,505,Private Contractors,5042,Revenue,22.RESIDENTIAL
02/10/2017,1506234,520.05,CARE UK COMMUNITY PARTNERSHIPS LIMITED,330181,"Health, Education, Care and Safeguarding",Adult Social Care,101,Third Party Payments,505,Private Contractors,5042,Revenue,22.RESIDENTIAL
02/10/2017,1506234,520.05,CARE UK COMMUNITY PARTNERSHIPS LIMITED,330181,"Health, Education, Care and Safeguarding",Adult Social Care,101,Third Party Payments,505,Private Contractors,5042,Revenue,22.RESIDENTIAL
02/10/2017,1506234,520.05,CARE UK COMMUNITY PARTNERSHIPS LIMITED,330181,"Health, Education, Care and Safeguarding",Adult Social Care,101,Third Party Payments,505,Private Contractors,5042,Revenue,22.RESIDENTIAL
02/10/2017,1506234,520.05,CARE UK COMMUNITY PARTNERSHIPS LIMITED,330181,"Health, Education, Care and Safeguarding",Adult Social Care,101,Third Party Payments,505,Private Contractors,5042,Revenue,22.RESIDENTIAL
02/10/2017,1506234,520.05,CARE UK COMMUNITY PARTNERSHIPS LIMITED,330181,"Health, Education, Care and Safeguarding",Adult Social Care,101,Third Party Payments,505,Private Contractors,5042,Revenue,22.RESIDENTIAL
02/10/2017,1506234,520.05,CARE UK COMMUNITY PARTNERSHIPS LIMITED,330181,"Health, Education, Care and Safeguarding",Adult Social Care,101,Third Party Payments,505,Private Contractors,5042,Revenue,22.RESIDENTIAL
02/10/2017,1506234,520.05,CARE UK COMMUNITY PARTNERSHIPS LIMITED,330181,"Health, Education, Care and Safeguarding",Adult Social Care,101,Third Party Payments,505,Private Contractors,5042,Revenue,22.RESIDENTIAL
02/10/2017,1506234,520.05,CARE UK COMMUNITY PARTNERSHIPS LIMITED,330181,"Health, Education, Care and Safeguarding",Adult Social Care,101,Third Party Payments,505,Private Contractors,5042,Revenue,22.RESIDENTIAL
02/10/2017,1506234,520.05,CARE UK COMMUNITY PARTNERSHIPS LIMITED,330181,"Health, Education, Care and Safeguarding",Adult Social Care,101,Third Party Payments,505,Private Contractors,5042,Revenue,22.RESIDENTIAL
02/10/2017,1506234,520.05,CARE UK COMMUNITY PARTNERSHIPS LIMITED,330181,"Health, Education, Care and Safeguarding",Adult Social Care,101,Third Party Payments,505,Private Contractors,5042,Revenue,22.RESIDENTIAL
02/10/2017,1506234,520.05,CARE UK COMMUNITY PARTNERSHIPS LIMITED,330181,"Health, Education, Care and Safeguarding",Adult Social Care,101,Third Party Payments,505,Private Contractors,5042,Revenue,22.RESIDENTIAL
02/10/2017,1506234,520.05,CARE UK COMMUNITY PARTNERSHIPS LIMITED,330181,"Health, Education, Care and Safeguarding",Adult Social Care,101,Third Party Payments,505,Private Contractors,5042,Revenue,22.RESIDENTIAL
02/10/2017,1506234,520.05,CARE UK COMMUNITY PARTNERSHIPS LIMITED,330181,"Health, Education, Care and Safeguarding",Adult Social Care,101,Third Party Payments,505,Private Contractors,5042,Revenue,22.RESIDENTIAL
02/10/2017,1506234,520.05,CARE UK COMMUNITY PARTNERSHIPS LIMITED,330181,"Health, Education, Care and Safeguarding",Adult Social Care,101,Third Party Payments,505,Private Contractors,5042,Revenue,22.RESIDENTIAL
02/10/2017,1506234,520.05,CARE UK COMMUNITY PARTNERSHIPS LIMITED,330181,"Health, Education, Care and Safeguarding",Adult Social Care,101,Third Party Payments,505,Private Contractors,5042,Revenue,22.RESIDENTIAL
02/10/2017,1506237,520.05,PRESTWICK CARE LTD,387214,"Health, Education, Care and Safeguarding",Adult Social Care,101,Third Party Payments,505,Private Contractors,5042,Revenue,22.RESIDENTIAL
02/10/2017,1506237,520.05,PRESTWICK CARE LTD,387214,"Health, Education, Care and Safeguarding",Adult Social Care,101,Third Party Payments,505,Private Contractors,5042,Revenue,22.RESIDENTIAL
02/10/2017,1506237,520.05,PRESTWICK CARE LTD,387214,"Health, Education, Care and Safeguarding",Adult Social Care,101,Third Party Payments,505,Private Contractors,5042,Revenue,22.RESIDENTIAL
02/10/2017,1506237,520.05,PRESTWICK CARE LTD,387214,"Health, Education, Care and Safeguarding",Adult Social Care,101,Third Party Payments,505,Private Contractors,5042,Revenue,22.RESIDENTIAL
02/10/2017,1506237,538.64,PRESTWICK CARE LTD,387214,"Health, Education, Care and Safeguarding",Adult Social Care,101,Third Party Payments,505,Private Contractors,5042,Revenue,22.RESIDENTIAL
02/10/2017,1506237,538.64,PRESTWICK CARE LTD,387214,"Health, Education, Care and Safeguarding",Adult Social Care,101,Third Party Payments,505,Private Contractors,5042,Revenue,22.RESIDENTIAL
02/10/2017,1506237,538.64,PRESTWICK CARE LTD,387214,"Health, Education, Care and Safeguarding",Adult Social Care,101,Third Party Payments,505,Private Contractors,5042,Revenue,22.RESIDENTIAL
02/10/2017,1506237,538.64,PRESTWICK CARE LTD,387214,"Health, Education, Care and Safeguarding",Adult Social Care,101,Third Party Payments,505,Private Contractors,5042,Revenue,22.RESIDENTIAL
02/10/2017,1506237,538.64,PRESTWICK CARE LTD,387214,"Health, Education, Care and Safeguarding",Adult Social Care,101,Third Party Payments,505,Private Contractors,5042,Revenue,22.RESIDENTIAL
02/10/2017,1506237,538.64,PRESTWICK CARE LTD,387214,"Health, Education, Care and Safeguarding",Adult Social Care,101,Third Party Payments,505,Private Contractors,5042,Revenue,22.RESIDENTIAL
02/10/2017,1506237,538.64,PRESTWICK CARE LTD,387214,"Health, Education, Care and Safeguarding",Adult Social Care,101,Third Party Payments,505,Private Contractors,5042,Revenue,22.RESIDENTIAL
02/10/2017,1506237,538.64,PRESTWICK CARE LTD,387214,"Health, Education, Care and Safeguarding",Adult Social Care,101,Third Party Payments,505,Private Contractors,5042,Revenue,22.RESIDENTIAL
02/10/2017,1506237,538.64,PRESTWICK CARE LTD,387214,"Health, Education, Care and Safeguarding",Adult Social Care,101,Third Party Payments,505,Private Contractors,5042,Revenue,22.RESIDENTIAL
02/10/2017,1506237,538.64,PRESTWICK CARE LTD,387214,"Health, Education, Care and Safeguarding",Adult Social Care,101,Third Party Payments,505,Private Contractors,5042,Revenue,22.RESIDENTIAL
02/10/2017,1506237,538.64,PRESTWICK CARE LTD,387214,"Health, Education, Care and Safeguarding",Adult Social Care,101,Third Party Payments,505,Private Contractors,5042,Revenue,22.RESIDENTIAL
02/10/2017,1506237,538.64,PRESTWICK CARE LTD,387214,"Health, Education, Care and Safeguarding",Adult Social Care,101,Third Party Payments,505,Private Contractors,5042,Revenue,22.RESIDENTIAL
02/10/2017,1506237,538.64,PRESTWICK CARE LTD,387214,"Health, Education, Care and Safeguarding",Adult Social Care,101,Third Party Payments,505,Private Contractors,5042,Revenue,22.RESIDENTIAL
02/10/2017,1506237,538.64,PRESTWICK CARE LTD,387214,"Health, Education, Care and Safeguarding",Adult Social Care,101,Third Party Payments,505,Private Contractors,5042,Revenue,22.RESIDENTIAL
02/10/2017,1506237,538.64,PRESTWICK CARE LTD,387214,"Health, Education, Care and Safeguarding",Adult Social Care,101,Third Party Payments,505,Private Contractors,5042,Revenue,22.RESIDENTIAL
02/10/2017,1506237,538.64,PRESTWICK CARE LTD,387214,"Health, Education, Care and Safeguarding",Adult Social Care,101,Third Party Payments,505,Private Contractors,5042,Revenue,22.RESIDENTIAL
02/10/2017,1506237,538.64,PRESTWICK CARE LTD,387214,"Health, Education, Care and Safeguarding",Adult Social Care,101,Third Party Payments,505,Private Contractors,5042,Revenue,22.RESIDENTIAL
02/10/2017,1506237,550.05,PRESTWICK CARE LTD,387214,"Health, Education, Care and Safeguarding",Adult Social Care,101,Third Party Payments,505,Other Establishments,5041,Revenue,22.RESIDENTIAL
02/10/2017,1506237,562.36,PRESTWICK CARE LTD,387214,"Health, Education, Care and Safeguarding",Adult Social Care,101,Third Party Payments,505,Private Contractors,5042,Revenue,22.RESIDENTIAL
02/10/2017,1506237,562.36,PRESTWICK CARE LTD,387214,"Health, Education, Care and Safeguarding",Adult Social Care,101,Third Party Payments,505,Private Contractors,5042,Revenue,22.RESIDENTIAL
02/10/2017,1506237,582.36,PRESTWICK CARE LTD,387214,"Health, Education, Care and Safeguarding",Adult Social Care,101,Third Party Payments,505,Private Contractors,5042,Revenue,22.RESIDENTIAL
02/10/2017,1506237,584.59,PRESTWICK CARE LTD,387214,"Health, Education, Care and Safeguarding",Adult Social Care,101,Third Party Payments,505,Private Contractors,5042,Revenue,22.RESIDENTIAL
02/10/2017,1506237,584.59,PRESTWICK CARE LTD,387214,"Health, Education, Care and Safeguarding",Adult Social Care,101,Third Party Payments,505,Private Contractors,5042,Revenue,22.RESIDENTIAL
02/10/2017,1506237,675.10,PRESTWICK CARE LTD,387214,"Health, Education, Care and Safeguarding",Public Health,112,Third Party Payments,505,Other Establishments,5041,Revenue,22.RESIDENTIAL
02/10/2017,1506237,690.47,PRESTWICK CARE LTD,387214,"Health, Education, Care and Safeguarding",Public Health,112,Third Party Payments,505,Other Establishments,5041,Revenue,22.RESIDENTIAL
02/10/2017,1506237,705.10,PRESTWICK CARE LTD,387214,"Health, Education, Care and Safeguarding",Adult Social Care,101,Third Party Payments,505,Other Establishments,5041,Revenue,22.RESIDENTIAL
02/10/2017,1506237,705.10,PRESTWICK CARE LTD,387214,"Health, Education, Care and Safeguarding",Adult Social Care,101,Third Party Payments,505,Other Establishments,5041,Revenue,22.RESIDENTIAL
02/10/2017,1506237,705.10,PRESTWICK CARE LTD,387214,"Health, Education, Care and Safeguarding",Adult Social Care,101,Third Party Payments,505,Other Establishments,5041,Revenue,22.RESIDENTIAL
02/10/2017,1506237,705.10,PRESTWICK CARE LTD,387214,"Health, Education, Care and Safeguarding",Public Health,112,Third Party Payments,505,Other Establishments,5041,Revenue,22.RESIDENTIAL
02/10/2017,1506237,705.10,PRESTWICK CARE LTD,387214,"Health, Education, Care and Safeguarding",Public Health,112,Third Party Payments,505,Other Establishments,5041,Revenue,22.RESIDENTIAL
02/10/2017,1506237,723.69,PRESTWICK CARE LTD,387214,"Health, Education, Care and Safeguarding",Public Health,112,Third Party Payments,505,Other Establishments,5041,Revenue,22.RESIDENTIAL
02/10/2017,1506237,723.69,PRESTWICK CARE LTD,387214,"Health, Education, Care and Safeguarding",Public Health,112,Third Party Payments,505,Other Establishments,5041,Revenue,22.RESIDENTIAL
02/10/2017,1506237,723.69,PRESTWICK CARE LTD,387214,"Health, Education, Care and Safeguarding",Public Health,112,Third Party Payments,505,Other Establishments,5041,Revenue,22.RESIDENTIAL
02/10/2017,1506237,723.69,PRESTWICK CARE LTD,387214,"Health, Education, Care and Safeguarding",Public Health,112,Third Party Payments,505,Other Establishments,5041,Revenue,22.RESIDENTIAL
02/10/2017,1506237,747.41,PRESTWICK CARE LTD,387214,"Health, Education, Care and Safeguarding",Public Health,112,Third Party Payments,505,Other Establishments,5041,Revenue,22.RESIDENTIAL
02/10/2017,1506237,747.41,PRESTWICK CARE LTD,387214,"Health, Education, Care and Safeguarding",Public Health,112,Third Party Payments,505,Other Establishments,5041,Revenue,22.RESIDENTIAL
02/10/2017,1506237,769.64,PRESTWICK CARE LTD,387214,"Health, Education, Care and Safeguarding",Public Health,112,Third Party Payments,505,Other Establishments,5041,Revenue,22.RESIDENTIAL
02/10/2017,1506237,769.64,PRESTWICK CARE LTD,387214,"Health, Education, Care and Safeguarding",Public Health,112,Third Party Payments,505,Other Establishments,5041,Revenue,22.RESIDENTIAL
02/10/2017,1506238,332.50,LADHAR GROUP CARE HOMES,377323,"Health, Education, Care and Safeguarding",Public Health,112,Third Party Payments,505,Other Establishments,5041,Revenue,22.RESIDENTIAL
02/10/2017,1506238,488.15,LADHAR GROUP CARE HOMES,377323,"Health, Education, Care and Safeguarding",Adult Social Care,101,Third Party Payments,505,Private Contractors,5042,Revenue,22.RESIDENTIAL
02/10/2017,1506238,488.15,LADHAR GROUP CARE HOMES,377323,"Health, Education, Care and Safeguarding",Adult Social Care,101,Third Party Payments,505,Private Contractors,5042,Revenue,22.RESIDENTIAL
02/10/2017,1506238,488.15,LADHAR GROUP CARE HOMES,377323,"Health, Education, Care and Safeguarding",Adult Social Care,101,Third Party Payments,505,Private Contractors,5042,Revenue,22.RESIDENTIAL
02/10/2017,1506238,488.15,LADHAR GROUP CARE HOMES,377323,"Health, Education, Care and Safeguarding",Adult Social Care,101,Third Party Payments,505,Private Contractors,5042,Revenue,22.RESIDENTIAL
02/10/2017,1506238,488.15,LADHAR GROUP CARE HOMES,377323,"Health, Education, Care and Safeguarding",Adult Social Care,101,Third Party Payments,505,Private Contractors,5042,Revenue,22.RESIDENTIAL
02/10/2017,1506238,488.15,LADHAR GROUP CARE HOMES,377323,"Health, Education, Care and Safeguarding",Adult Social Care,101,Third Party Payments,505,Private Contractors,5042,Revenue,22.RESIDENTIAL
02/10/2017,1506238,508.70,LADHAR GROUP CARE HOMES,377323,"Health, Education, Care and Safeguarding",Adult Social Care,101,Third Party Payments,505,Private Contractors,5042,Revenue,22.RESIDENTIAL
02/10/2017,1506238,508.70,LADHAR GROUP CARE HOMES,377323,"Health, Education, Care and Safeguarding",Adult Social Care,101,Third Party Payments,505,Private Contractors,5042,Revenue,22.RESIDENTIAL
02/10/2017,1506238,508.70,LADHAR GROUP CARE HOMES,377323,"Health, Education, Care and Safeguarding",Adult Social Care,101,Third Party Payments,505,Private Contractors,5042,Revenue,22.RESIDENTIAL
02/10/2017,1506238,508.70,LADHAR GROUP CARE HOMES,377323,"Health, Education, Care and Safeguarding",Adult Social Care,101,Third Party Payments,505,Private Contractors,5042,Revenue,22.RESIDENTIAL
02/10/2017,1506238,508.70,LADHAR GROUP CARE HOMES,377323,"Health, Education, Care and Safeguarding",Adult Social Care,101,Third Party Payments,505,Private Contractors,5042,Revenue,22.RESIDENTIAL
02/10/2017,1506238,508.70,LADHAR GROUP CARE HOMES,377323,"Health, Education, Care and Safeguarding",Adult Social Care,101,Third Party Payments,505,Private Contractors,5042,Revenue,22.RESIDENTIAL
02/10/2017,1506238,508.70,LADHAR GROUP CARE HOMES,377323,"Health, Education, Care and Safeguarding",Adult Social Care,101,Third Party Payments,505,Private Contractors,5042,Revenue,22.RESIDENTIAL
02/10/2017,1506238,508.70,LADHAR GROUP CARE HOMES,377323,"Health, Education, Care and Safeguarding",Adult Social Care,101,Third Party Payments,505,Private Contractors,5042,Revenue,22.RESIDENTIAL
02/10/2017,1506238,508.70,LADHAR GROUP CARE HOMES,377323,"Health, Education, Care and Safeguarding",Adult Social Care,101,Third Party Payments,505,Private Contractors,5042,Revenue,22.RESIDENTIAL
02/10/2017,1506238,508.70,LADHAR GROUP CARE HOMES,377323,"Health, Education, Care and Safeguarding",Adult Social Care,101,Third Party Payments,505,Private Contractors,5042,Revenue,22.RESIDENTIAL
02/10/2017,1506238,508.70,LADHAR GROUP CARE HOMES,377323,"Health, Education, Care and Safeguarding",Adult Social Care,101,Third Party Payments,505,Private Contractors,5042,Revenue,22.RESIDENTIAL
02/10/2017,1506238,508.70,LADHAR GROUP CARE HOMES,377323,"Health, Education, Care and Safeguarding",Adult Social Care,101,Third Party Payments,505,Private Contractors,5042,Revenue,22.RESIDENTIAL
02/10/2017,1506238,508.70,LADHAR GROUP CARE HOMES,377323,"Health, Education, Care and Safeguarding",Adult Social Care,101,Third Party Payments,505,Private Contractors,5042,Revenue,22.RESIDENTIAL
02/10/2017,1506238,508.70,LADHAR GROUP CARE HOMES,377323,"Health, Education, Care and Safeguarding",Adult Social Care,101,Third Party Payments,505,Private Contractors,5042,Revenue,22.RESIDENTIAL
02/10/2017,1506238,508.70,LADHAR GROUP CARE HOMES,377323,"Health, Education, Care and Safeguarding",Adult Social Care,101,Third Party Payments,505,Private Contractors,5042,Revenue,22.RESIDENTIAL
02/10/2017,1506238,508.70,LADHAR GROUP CARE HOMES,377323,"Health, Education, Care and Safeguarding",Adult Social Care,101,Third Party Payments,505,Private Contractors,5042,Revenue,22.RESIDENTIAL
02/10/2017,1506238,508.70,LADHAR GROUP CARE HOMES,377323,"Health, Education, Care and Safeguarding",Adult Social Care,101,Third Party Payments,505,Private Contractors,5042,Revenue,22.RESIDENTIAL
02/10/2017,1506238,508.70,LADHAR GROUP CARE HOMES,377323,"Health, Education, Care and Safeguarding",Adult Social Care,101,Third Party Payments,505,Private Contractors,5042,Revenue,22.RESIDENTIAL
02/10/2017,1506238,584.59,LADHAR GROUP CARE HOMES,377323,"Health, Education, Care and Safeguarding",Adult Social Care,101,Third Party Payments,505,Private Contractors,5042,Revenue,22.RESIDENTIAL
02/10/2017,1506238,584.59,LADHAR GROUP CARE HOMES,377323,"Health, Education, Care and Safeguarding",Adult Social Care,101,Third Party Payments,505,Private Contractors,5042,Revenue,22.RESIDENTIAL
02/10/2017,1506238,584.64,LADHAR GROUP CARE HOMES,377323,"Health, Education, Care and Safeguarding",Adult Social Care,101,Third Party Payments,505,Private Contractors,5042,Revenue,22.RESIDENTIAL
02/10/2017,1506238,673.20,LADHAR GROUP CARE HOMES,377323,"Health, Education, Care and Safeguarding",Public Health,112,Third Party Payments,505,Other Establishments,5041,Revenue,22.RESIDENTIAL
02/10/2017,1506238,693.75,LADHAR GROUP CARE HOMES,377323,"Health, Education, Care and Safeguarding",Public Health,112,Third Party Payments,505,Other Establishments,5041,Revenue,22.RESIDENTIAL
02/10/2017,1506238,693.75,LADHAR GROUP CARE HOMES,377323,"Health, Education, Care and Safeguarding",Public Health,112,Third Party Payments,505,Other Establishments,5041,Revenue,22.RESIDENTIAL
02/10/2017,1506238,693.75,LADHAR GROUP CARE HOMES,377323,"Health, Education, Care and Safeguarding",Public Health,112,Third Party Payments,505,Other Establishments,5041,Revenue,22.RESIDENTIAL
02/10/2017,1506238,693.75,LADHAR GROUP CARE HOMES,377323,"Health, Education, Care and Safeguarding",Public Health,112,Third Party Payments,505,Other Establishments,5041,Revenue,22.RESIDENTIAL
02/10/2017,1506238,4839.28,LADHAR GROUP CARE HOMES,377323,"Health, Education, Care and Safeguarding",Adult Social Care,101,Third Party Payments,505,Private Contractors,5042,Revenue,22.RESIDENTIAL
02/10/2017,1506239,-100.65,NORTHERN LIFE CARE LTD T/A UBU LTD,214737,"Health, Education, Care and Safeguarding",Adult Social Care,101,Income,509,"Other Grants, Reimbursements & Contributions",5063,Revenue,22.RESIDENTIAL
02/10/2017,1506239,356.13,NORTHERN LIFE CARE LTD T/A UBU LTD,214737,"Health, Education, Care and Safeguarding",Adult Social Care,101,Third Party Payments,505,Private Contractors,5042,Revenue,22.RESIDENTIAL
02/10/2017,1506239,356.13,NORTHERN LIFE CARE LTD T/A UBU LTD,214737,"Health, Education, Care and Safeguarding",Adult Social Care,101,Third Party Payments,505,Private Contractors,5042,Revenue,22.RESIDENTIAL
02/10/2017,1506239,373.48,NORTHERN LIFE CARE LTD T/A UBU LTD,214737,"Health, Education, Care and Safeguarding",Adult Social Care,101,Third Party Payments,505,Private Contractors,5042,Revenue,22.RESIDENTIAL
02/10/2017,1506239,507.98,NORTHERN LIFE CARE LTD T/A UBU LTD,214737,"Health, Education, Care and Safeguarding",Adult Social Care,101,Third Party Payments,505,Private Contractors,5042,Revenue,22.RESIDENTIAL
02/10/2017,1506239,770.53,NORTHERN LIFE CARE LTD T/A UBU LTD,214737,"Health, Education, Care and Safeguarding",Adult Social Care,101,Third Party Payments,505,Private Contractors,5042,Revenue,22.RESIDENTIAL
02/10/2017,1506239,1096.03,NORTHERN LIFE CARE LTD T/A UBU LTD,214737,"Health, Education, Care and Safeguarding",Adult Social Care,101,Third Party Payments,505,Private Contractors,5042,Revenue,22.RESIDENTIAL
02/10/2017,1506239,1230.53,NORTHERN LIFE CARE LTD T/A UBU LTD,214737,"Health, Education, Care and Safeguarding",Adult Social Care,101,Third Party Payments,505,Private Contractors,5042,Revenue,22.RESIDENTIAL
02/10/2017,1506239,1349.48,NORTHERN LIFE CARE LTD T/A UBU LTD,214737,"Health, Education, Care and Safeguarding",Adult Social Care,101,Third Party Payments,505,Private Contractors,5042,Revenue,22.RESIDENTIAL
02/10/2017,1506239,1349.48,NORTHERN LIFE CARE LTD T/A UBU LTD,214737,"Health, Education, Care and Safeguarding",Adult Social Care,101,Third Party Payments,505,Private Contractors,5042,Revenue,22.RESIDENTIAL
02/10/2017,1506239,1349.48,NORTHERN LIFE CARE LTD T/A UBU LTD,214737,"Health, Education, Care and Safeguarding",Adult Social Care,101,Third Party Payments,505,Private Contractors,5042,Revenue,22.RESIDENTIAL
02/10/2017,1506239,1370.40,NORTHERN LIFE CARE LTD T/A UBU LTD,214737,"Health, Education, Care and Safeguarding",Adult Social Care,101,Third Party Payments,505,Private Contractors,5042,Revenue,22.RESIDENTIAL
02/10/2017,1506239,1489.83,NORTHERN LIFE CARE LTD T/A UBU LTD,214737,"Health, Education, Care and Safeguarding",Adult Social Care,101,Third Party Payments,505,Private Contractors,5042,Revenue,22.RESIDENTIAL
02/10/2017,1506239,1499.53,NORTHERN LIFE CARE LTD T/A UBU LTD,214737,"Health, Education, Care and Safeguarding",Adult Social Care,101,Third Party Payments,505,Private Contractors,5042,Revenue,22.RESIDENTIAL
02/10/2017,1506239,1575.70,NORTHERN LIFE CARE LTD T/A UBU LTD,214737,"Health, Education, Care and Safeguarding",Adult Social Care,101,Third Party Payments,505,Private Contractors,5042,Revenue,22.RESIDENTIAL
02/10/2017,1506239,2118.38,NORTHERN LIFE CARE LTD T/A UBU LTD,214737,"Health, Education, Care and Safeguarding",Public Health,112,Third Party Payments,505,Private Contractors,5042,Revenue,22.RESIDENTIAL
02/10/2017,1506239,2140.60,NORTHERN LIFE CARE LTD T/A UBU LTD,214737,"Health, Education, Care and Safeguarding",Adult Social Care,101,Third Party Payments,505,Private Contractors,5042,Revenue,22.RESIDENTIAL
02/10/2017,1506239,2595.85,NORTHERN LIFE CARE LTD T/A UBU LTD,214737,"Health, Education, Care and Safeguarding",Public Health,112,Third Party Payments,505,Private Contractors,5042,Revenue,22.RESIDENTIAL
02/10/2017,1506240,-134.45,PERCY HEDLEY FOUNDATION,252934,"Health, Education, Care and Safeguarding",Adult Social Care,101,Income,509,"Other Grants, Reimbursements & Contributions",5063,Revenue,22.DAY CARE SERVICES
02/10/2017,1506240,-100.65,PERCY HEDLEY FOUNDATION,252934,"Health, Education, Care and Safeguarding",Adult Social Care,101,Income,509,"Other Grants, Reimbursements & Contributions",5063,Revenue,22.DAY CARE SERVICES
02/10/2017,1506240,-100.65,PERCY HEDLEY FOUNDATION,252934,"Health, Education, Care and Safeguarding",Adult Social Care,101,Income,509,"Other Grants, Reimbursements & Contributions",5063,Revenue,22.DAY CARE SERVICES
02/10/2017,1506240,-100.65,PERCY HEDLEY FOUNDATION,252934,"Health, Education, Care and Safeguarding",Adult Social Care,101,Income,509,"Other Grants, Reimbursements & Contributions",5063,Revenue,22.DAY CARE SERVICES
02/10/2017,1506240,-100.65,PERCY HEDLEY FOUNDATION,252934,"Health, Education, Care and Safeguarding",Adult Social Care,101,Income,509,"Other Grants, Reimbursements & Contributions",5063,Revenue,22.DAY CARE SERVICES
02/10/2017,1506240,-100.65,PERCY HEDLEY FOUNDATION,252934,"Health, Education, Care and Safeguarding",Adult Social Care,101,Income,509,"Other Grants, Reimbursements & Contributions",5063,Revenue,22.DAY CARE SERVICES
02/10/2017,1506287,1348.60,Redacted Personal Data,389290,"Health, Education, Care and Safeguarding",Adult Social Care,101,Third Party Payments,505,Other Establishments,5041,Revenue,00.NON INFLUENCIBLE
02/10/2017,1506289,1430.45,ST ANNE'S COMMUNITY SERVICES,366247,"Health, Education, Care and Safeguarding",Adult Social Care,101,Third Party Payments,505,Private Contractors,5042,Revenue,22.DAY CARE SERVICES
02/10/2017,1506289,1430.45,ST ANNE'S COMMUNITY SERVICES,366247,"Health, Education, Care and Safeguarding",Adult Social Care,101,Third Party Payments,505,Private Contractors,5042,Revenue,22.DAY CARE SERVICES
02/10/2017,1506289,1430.45,ST ANNE'S COMMUNITY SERVICES,366247,"Health, Education, Care and Safeguarding",Adult Social Care,101,Third Party Payments,505,Private Contractors,5042,Revenue,22.DAY CARE SERVICES
02/10/2017,1506289,1671.90,ST ANNE'S COMMUNITY SERVICES,366247,"Health, Education, Care and Safeguarding",Adult Social Care,101,Third Party Payments,505,Private Contractors,5042,Revenue,22.DAY CARE SERVICES
02/10/2017,1506289,1752.60,ST ANNE'S COMMUNITY SERVICES,366247,"Health, Education, Care and Safeguarding",Adult Social Care,101,Third Party Payments,505,Private Contractors,5042,Revenue,22.DAY CARE SERVICES
02/10/2017,1506240,300.00,PERCY HEDLEY FOUNDATION,252934,"Health, Education, Care and Safeguarding",Adult Social Care,101,Third Party Payments,505,Other Establishments,5041,Revenue,22.DAY CARE SERVICES
02/10/2017,1506240,315.24,PERCY HEDLEY FOUNDATION,252934,"Health, Education, Care and Safeguarding",Adult Social Care,101,Third Party Payments,505,Private Contractors,5042,Revenue,22.DAY CARE SERVICES
